Workbook

Sheet Tabelle2
B1: SLA_1_1 | C1: SLA_1_1 | D1: SLA_1_2 | E1: SLA_1_2 | F1: SLA_1_3 | G1: SLA_1_3 | H1: SLA_1_4 | I1: SLA_1_4 | J1: SLA_1_5 | K1: SLA_1_5 | L1: SLA_1_6 | M1: SLA_1_6 | N1: SLA_1_7 | O1: SLA_1_7 | P1: Mittelwert 25°C | S1: SLA_1_1 | T1: SLA_1_1 | U1: SLA_1_2 | V1: SLA_1_2 | W1: SLA_1_3 | X1: SLA_1_3 | Y1: SLA_1_4 | Z1: SLA_1_4 | AA1: SLA_1_5 | AB1: SLA_1_5 | AC1: SLA_1_6 | AD1: SLA_1_6 | AE1: SLA_1_7 | AF1: SLA_1_7 | AG1: SLA_1_8 | AH1: SLA_1_8 | AJ1: SLA_1_1 | AK1: SLA_1_1 | AL1: SLA_1_2 | AM1: SLA_1_2 | AN1: SLA_1_3 | AO1: SLA_1_3 | AP1: SLA_1_4 | AQ1: SLA_1_4 | AR1: SLA_1_5 | AS1: SLA_1_5 | AT1: SLA_1_6 | AU1: SLA_1_6 | AV1: SLA_1_7 | AW1: SLA_1_7 | AX1: SLA_1_8 | AY1: SLA_1_8
B2: Dehnung | C2: Standardkraft | D2: Dehnung | E2: Standardkraft | F2: Dehnung | G2: Standardkraft | H2: Dehnung | I2: Standardkraft | J2: Dehnung | K2: Standardkraft | L2: Dehnung | M2: Standardkraft | N2: Dehnung | O2: Standardkraft | P2: Dehnung | Q2: Standardkraft
B3: % | C3: N/mm² | D3: % | E3: N/mm² | F3: % | G3: N/mm² | H3: % | I3: N/mm² | J3: % | K3: N/mm² | L3: % | M3: N/mm² | N3: % | O3: N/mm² | P3: % | Q3: N/mm²
B4: 0 | C4: 0.101873979 | D4: 0 | E4: 0.1188323977 | F4: 0 | G4: 0.1063718177 | H4: 0 | I4: 0.076828934 | J4: 0 | K4: 0.1196526059 | L4: 0 | M4: 0.1261845353 | N4: 0 | O4: 0.1407581763 | P4: 0 | Q4: 0.1118083067 | S4: 0 | T4: =C4/MAX($C$4:$C$682) -> 0.001926105578 | U4: 0 | V4: =E4/MAX($E$4:$E$682) -> 0.002871617385 | W4: 0 | X4: =G4/MAX($E$4:$E$682) -> 0.002570504063 | Y4: 0 | Z4: =I4/MAX($E$4:$E$682) -> 0.0018565922 | AA4: 0 | AB4: =K4/MAX($E$4:$E$682) -> 0.002891437941 | AC4: 0 | AD4: =M4/MAX($E$4:$E$682) -> 0.003049283802 | AE4: 0 | AF4: =O4/MAX($E$4:$E$682) -> 0.003401459823 | AG4: 0 | AH4: =Q4/MAX($E$4:$E$682) -> 0.002701878306 | AJ4: =AVERAGE(S4:S20) -> 19.43105697 | AK4: =AVERAGE(T4:T20) -> 0.005140049328 | AL4: =AVERAGE(U4:U25) -> 17.86342459 | AM4: =AVERAGE(V4:V25) -> 0.005220632607 | AN4: =AVERAGE(W4:W27) -> 70.29164388 | AO4: =AVERAGE(X4:X27) -> 0.005981340709 | AP4: =AVERAGE(Y4:Y25) -> 28.12874816 | AQ4: =AVERAGE(Z4:Z25) -> 0.005502391099 | AR4: =AVERAGE(AA4:AA23) -> 15.76543845 | AS4: =AVERAGE(AB4:AB23) -> 0.005061260225 | AT4: =AVERAGE(AC4:AC24) -> 14.60045165 | AU4: =AVERAGE(AD4:AD24) -> 0.005628649687 | AV4: =AVERAGE(AE4:AE14) -> 109.716196 | AW4: =AVERAGE(AF4:AF14) -> 0.005401954127 | AX4: =AVERAGE(AG4:AG18) -> 29.97982276 | AY4: =AVERAGE(AH4:AH18) -> 0.005776849383 | BK4: =MITTELWERT(S4:S20) | BL4: =MITTELWERT(T4:T20)
B5: 0.001441798619 | C5: 0.1041678699 | D5: 0.002323462201 | E5: 0.116638002 | F5: 0.01087791442 | G5: 0.1050869423 | H5: 0.004858537577 | I5: 0.07614180184 | J5: -0.00247024834 | K5: 0.1169171642 | L5: 0.007316174451 | M5: 0.1235001314 | N5: 0.0002741312104 | O5: 0.1402782324 | P5: 0.002415224347 | Q5: 0.1109688299 | S5: =C5/B5 -> 72.24855711 | T5: 0.001969475592 | U5: =E5/D5 -> 50.20008585 | V5: =E5/MAX($E$4:$E$682) -> 0.002818589213 | W5: =G5/F5 -> 9.660578144 | X5: =G5/MAX($G$4:$G$682) -> 0.002050329484 | Y5: =I5/H5 -> 15.6717532 | Z5: =I5/MAX($I$4:$I$682) -> 0.001856412991 | AA5: =K5/J5 -> -47.33012562 | AB5: =K5/MAX($K$4:$K$682) -> 0.002586128109 | AC5: =M5/L5 -> 16.88042462 | AD5: =M5/MAX($M$4:$M$682) -> 0.002524813456 | AE5: =O5/N5 -> 511.7193048 | AF5: =O5/MAX($O$4:$O$682) -> 0.003159996004 | AG5: =Q5/P5 -> 45.94555784 | AH5: =Q5/MAX($Q$4:$Q$682) -> 0.002917249718 | AJ5: =AVERAGE(S21:S40) -> 14.10177561 | AK5: =AVERAGE(T21:T40) -> 0.01508372108 | AL5: =AVERAGE(U26:U38) -> 22.18797812 | AM5: =AVERAGE(V26:V38) -> 0.01497721046 | AN5: =AVERAGE(W28:W56) -> 18.21635592 | AO5: =AVERAGE(X28:X56) -> 0.01527729837 | AP5: =AVERAGE(Y26:Y50) -> 12.98313805 | AQ5: =AVERAGE(Z26:Z50) -> 0.01511510606 | AR5: =AVERAGE(AA24:AA38) -> 21.94531844 | AS5: =AVERAGE(AB24:AB38) -> 0.01518256197 | AT5: =AVERAGE(AC25:AC44) -> 19.61947005 | AU5: =AVERAGE(AD25:AD44) -> 0.01489507506 | AV5: =AVERAGE(AE15:AE32) -> 50.10016184 | AW5: =AVERAGE(AF15:AF32) -> 0.01558446558 | AX5: =AVERAGE(AG19:AG35) -> 18.96543128 | AY5: =AVERAGE(AH19:AH35) -> 0.01501915614 | BK5: =MITTELWERT(S21:S40) | BL5: =MITTELWERT(T21:T40)
B6: 0.003053716112 | C6: 0.1022439573 | D6: -0.01152346997 | E6: 0.1162424628 | F6: 0.00213993267 | G6: 0.1050772517 | H6: 0.003696622249 | I6: 0.07659949583 | J6: -0.001531666203 | K6: 0.114853394 | L6: 0.0349354744 | M6: 0.1239824714 | N6: 0.007815652837 | O6: 0.1392337666 | P6: 0.002848896353 | Q6: 0.1105632343 | S6: 33.48181481 | T6: 0.001933100664 | U6: -10.08745309 | V6: 0.002809030902 | W6: =G6/F6 -> 49.10306441 | X6: =G6/MAX($G$4:$G$682) -> 0.002050140414 | Y6: =I6/H6 -> 20.7214832 | Z6: =I6/MAX($I$4:$I$682) -> 0.001867572027 | AA6: =K6/J6 -> -74.98591652 | AB6: =K6/MAX($K$4:$K$682) -> 0.002540478917 | AC6: =M6/L6 -> 3.548899036 | AD6: =M6/MAX($M$4:$M$682) -> 0.002534674325 | AE6: =O6/N6 -> 17.81473275 | AF6: =O6/MAX($O$4:$O$682) -> 0.003136467707 | AG6: =Q6/P6 -> 38.80914592 | AH6: =Q6/MAX($Q$4:$Q$682) -> 0.002906587049 | AJ6: =AVERAGE(S41:S61) -> 12.07576983 | AK6: =AVERAGE(T41:T61) -> 0.0250096234 | AL6: =AVERAGE(U39:U56) -> 14.35413579 | AM6: =AVERAGE(V39:V56) -> 0.02494103555 | AN6: =AVERAGE(W57:W79) -> 10.66660365 | AO6: =AVERAGE(X57:X79) -> 0.02434200984 | AP6: =AVERAGE(Y51:Y71) -> 9.900699321 | AQ6: =AVERAGE(Z51:Z71) -> 0.02482524132 | AR6: =AVERAGE(AA39:AA52) -> 15.72598695 | AS6: =AVERAGE(AB39:AB52) -> 0.02487724148 | AT6: =AVERAGE(AC45:AC62) -> 18.2589815 | AU6: =AVERAGE(AD45:AD62) -> 0.02509939143 | AV6: =AVERAGE(AE33:AE46) -> 44.38743241 | AW6: =AVERAGE(AF33:AF46) -> 0.02485159741 | AX6: =AVERAGE(AG36:AG51) -> 17.63659682 | AY6: =AVERAGE(AH36:AH51) -> 0.02531142015 | BK6: =MITTELWERT(S41:SS61) | BL6: =MITTELWERT(T41:T61)
B7: 0.01161829956 | C7: 0.1029493182 | D7: -0.0002339855079 | E7: 0.1156231028 | F7: 0.02548335431 | G7: 0.1062421136 | H7: 0.005434514411 | I7: 0.07699179981 | J7: 0.004339628698 | K7: 0.1144349431 | L7: 0.01072986439 | M7: 0.1249518985 | N7: 0.005254490534 | O7: 0.1400876744 | P7: 0.006151421302 | Q7: 0.1111409846 | S7: 8.860962628 | T7: 0.001946436744 | U7: -494.1464276 | V7: 0.002794063898 | W7: 4.169078854 | X7: 0.002072867791 | Y7: 14.16719029 | Z7: 0.001877136789 | AA7: 26.36975443 | AB7: 0.002531223066 | AC7: 11.64524489 | AD7: 0.002554493111 | AE7: 26.66056271 | AF7: 0.003155703374 | AG7: 18.06752929 | AH7: 0.002921775475 | AJ7: =AVERAGE(S62:S78) -> 12.70359402 | AK7: =AVERAGE(T62:T78) -> 0.03434331291 | AL7: =AVERAGE(U57:U74) -> 11.7599487 | AM7: =AVERAGE(V57:V74) -> 0.03515994029 | AN7: =AVERAGE(W80:W94) -> 12.03291107 | AO7: =AVERAGE(X80:X94) -> 0.03460388298 | AP7: =AVERAGE(Y72:Y89) -> 9.326126353 | AQ7: =AVERAGE(Z72:Z89) -> 0.03501243681 | AR7: =AVERAGE(AA53:AA67) -> 13.73300606 | AS7: =AVERAGE(AB53:AB67) -> 0.03480630047 | AT7: =AVERAGE(AC63:AC78) -> 18.15949131 | AU7: =AVERAGE(AD63:AD78) -> 0.03477739187 | AV7: =AVERAGE(AE47:AE59) -> 32.65651489 | AW7: =AVERAGE(AF47:AF59) -> 0.03525600456 | AX7: =AVERAGE(AG52:AG66) -> 14.706656 | AY7: =AVERAGE(AH52:AH66) -> 0.03501100203
B8: 0.005128217163 | C8: 0.1177545575 | D8: 0.0002645261945 | E8: 0.127786437 | F8: 0.01153509831 | G8: 0.1329698383 | H8: 0.002052516599 | I8: 0.1019613173 | J8: 0.005128217163 | K8: 0.13101165 | L8: 0.01981507366 | M8: 0.1410821114 | N8: 0.004108691355 | O8: 0.1572908893 | P8: 0.006466515014 | Q8: 0.1298075251 | S8: 22.96208482 | T8: 0.002226355661 | U8: 483.0766844 | V8: 0.003087994194 | W8: 11.52741266 | X8: 0.002594346871 | Y8: 49.67624494 | Z8: 0.002485918503 | AA8: 25.5472118 | AB8: 0.002897888544 | AC8: 7.11993878 | AD8: 0.002884256148 | AE8: 38.2824787 | AF8: 0.003543233851 | AG8: 20.07379939 | AH8: 0.003412498502 | AJ8: =AVERAGE(S79:S92) -> 14.98825096 | AK8: =AVERAGE(T79:T92) -> 0.04495641944 | AL8: =AVERAGE(U75:U91) -> 10.69816209 | AM8: =AVERAGE(V75:V91) -> 0.04478405489 | AN8: =AVERAGE(W95:W109) -> 10.56111989 | AO8: =AVERAGE(X95:X109) -> 0.04493635052 | AP8: =AVERAGE(Y90:Y105) -> 9.835699495 | AQ8: =AVERAGE(Z90:Z105) -> 0.04467162552 | AR8: =AVERAGE(AA68:AA82) -> 14.45927534 | AS8: =AVERAGE(AB68:AB82) -> 0.04510726803 | AT8: =AVERAGE(AC79:AC93) -> 17.79598649 | AU8: =AVERAGE(AD79:AD93) -> 0.04524024796 | AV8: =AVERAGE(AE60:AE71) -> 28.19500412 | AW8: =AVERAGE(AF60:AF71) -> 0.045183912 | AX8: =AVERAGE(AG67:AG80) -> 13.53740246 | AY8: =AVERAGE(AH67:AH80) -> 0.04472580922
B9: 0.008566828134 | C9: 0.1394522157 | D9: 0.0008983058312 | E9: 0.1463671739 | F9: 0.001191751508 | G9: 0.1682334657 | H9: 0.00576393446 | I9: 0.1268547676 | J9: 0.008566828134 | K9: 0.1453569826 | L9: 0.02083976132 | M9: 0.1546160607 | N9: 0.007062836085 | O9: 0.1879982424 | P9: 0.002714395539 | Q9: 0.153920321 | S9: 16.27816195 | T9: 0.002636587803 | U9: 162.9369073 | V9: 0.003537002784 | W9: 141.164886 | X9: 0.003282368175 | Y9: 22.00836399 | Z9: 0.003092845623 | AA9: 16.96742135 | AB9: 0.003215197537 | AC9: 7.419281744 | AD9: 0.003160941663 | AE9: 26.61795349 | AF9: 0.004234967069 | AG9: 56.70519229 | AH9: 0.004046397653 | AJ9: =AVERAGE(S93:S104) -> 14.75110274 | AK9: =AVERAGE(T93:T104) -> 0.05503167174 | AL9: =AVERAGE(U92:U105) -> 11.25632059 | AM9: =AVERAGE(V92:V105) -> 0.05485390142 | AN9: =AVERAGE(W110:W122) -> 12.40800094 | AO9: =AVERAGE(X110:X122) -> 0.05520058848 | AP9: =AVERAGE(Y106:Y120) -> 9.375710824 | AQ9: =AVERAGE(Z106:Z120) -> 0.05492682974 | AR9: =AVERAGE(AA83:AA96) -> 16.57515176 | AS9: =AVERAGE(AB83:AB96) -> 0.05497793408 | AT9: =AVERAGE(AC94:AC105) -> 17.8761268 | AU9: =AVERAGE(AD94:AD105) -> 0.05492608381 | AV9: =AVERAGE(AE72:AE81) -> 27.06049434 | AW9: =AVERAGE(AF72:AF81) -> 0.05499369546 | AX9: =AVERAGE(AG81:AG94) -> 14.41187716 | AY9: =AVERAGE(AH81:AH94) -> 0.05493158285
B10: 0.01113561137 | C10: 0.1780389471 | D10: -0.002325468425 | E10: 0.1607805578 | F10: 0.0002112369354 | G10: 0.2129809018 | H10: 0.002625440829 | I10: 0.175026079 | J10: 0.01113561137 | K10: 0.1580046929 | L10: 0.003188727812 | M10: 0.1873100093 | N10: 0.01458167564 | O10: 0.247455016 | P10: 0.004874726846 | Q10: 0.1902150648 | S10: 15.98825077 | T10: 0.003366137382 | U10: -69.13899842 | V10: 0.003885306146 | W10: 1008.255973 | X10: 0.004155426098 | Y10: 66.66540607 | Z10: 0.00426731019 | AA10: 14.18913498 | AB10: 0.003494956282 | AC10: 58.74129757 | AD10: 0.003829330597 | AE10: 16.97027297 | AF10: 0.005574327878 | AG10: 39.02066123 | AH10: 0.005000546951 | AJ10: =AVERAGE(S105:S116) -> 13.4926948 | AK10: =AVERAGE(T105:T116) -> 0.06499263292 | AL10: =AVERAGE(U106:U118) -> 11.48546105 | AM10: =AVERAGE(V106:V118) -> 0.06477789757 | AN10: =AVERAGE(W123:W134) -> 11.54111061 | AO10: =AVERAGE(X123:X134) -> 0.06497319177 | AP10: =AVERAGE(Y121:Y134) -> 9.157148361 | AQ10: =AVERAGE(Z121:Z134) -> 0.06481122059 | AR10: =AVERAGE(AA97:AA110) -> 19.0583789 | AS10: =AVERAGE(AB97:AB110) -> 0.06477075116 | AT10: =AVERAGE(AC106:AC119) -> 17.44301515 | AU10: =AVERAGE(AD106:AD119) -> 0.06476741832 | AV10: =AVERAGE(AE82:AE92) -> 25.78975169 | AW10: =AVERAGE(AF82:AF92) -> 0.06505050915 | AX10: =AVERAGE(AG95:AG106) -> 13.97821262 | AY10: =AVERAGE(AH95:AH106) -> 0.06500766213
B11: 0.01227382803 | C11: 0.21830135 | D11: -0.002266893086 | E11: 0.1721469066 | F11: 0.009374876972 | G11: 0.2382940469 | H11: 0.009026723759 | I11: 0.1878448864 | J11: 0.01227382803 | K11: 0.163785856 | L11: 0.02077316089 | M11: 0.2140765776 | N11: 0.01735418569 | O11: 0.3039487233 | P11: 0.006897474232 | Q11: 0.2202989472 | S11: 17.78592216 | T11: 0.004127368459 | U11: -75.939579 | V11: 0.004159977073 | W11: 25.41836524 | X11: 0.00464930561 | Y11: 20.80986318 | Z11: 0.004579845486 | AA11: 13.34431732 | AB11: 0.003622831677 | AC11: 10.3054407 | AD11: 0.004376541287 | AE11: 17.51443304 | AF11: 0.006846940788 | AG11: 31.93907507 | AH11: 0.005791419464 | AJ11: =AVERAGE(S117:S128) -> 13.58137074 | AK11: =AVERAGE(T117:T128) -> 0.07521496693 | AL11: =AVERAGE(U119:U130) -> 10.98096203 | AM11: =AVERAGE(V119:V130) -> 0.0747920485 | AN11: =AVERAGE(W135:W146) -> 12.10183111 | AO11: =AVERAGE(X135:X146) -> 0.07503715451 | AP11: =AVERAGE(Y135:Y148) -> 9.0373875 | AQ11: =AVERAGE(Z135:Z148) -> 0.07478766607 | AR11: =AVERAGE(AA111:AA120) -> 26.48474854 | AS11: =AVERAGE(AB111:AB120) -> 0.07534728132 | AT11: =AVERAGE(AC120:AC131) -> 18.50647542 | AU11: =AVERAGE(AD120:AD131) -> 0.07503341216 | AV11: =AVERAGE(AE93:AE102) -> 23.01154117 | AW11: =AVERAGE(AF93:AF102) -> 0.07504480842 | AX11: =AVERAGE(AG107:AG118) -> 13.90626076 | AY11: =AVERAGE(AH107:AH118) -> 0.07484535279
B12: 0.02250765606 | C12: 0.2589420766 | D12: -0.007424849706 | E12: 0.183354565 | F12: 0.01263911137 | G12: 0.2594677393 | H12: 0.004951537509 | I12: 0.1997804187 | J12: 0.02250765606 | K12: 0.1736041959 | L12: 0.01840909167 | M12: 0.2360150617 | N12: 0.01292921215 | O12: 0.348409111 | P12: 0.007134787092 | Q12: 0.24567224 | S12: 11.50462207 | T12: 0.004895752407 | U12: -24.69471737 | V12: 0.004430813203 | W12: 20.52895426 | X12: 0.00506242112 | Y12: 40.3471484 | Z12: 0.004870845655 | AA12: 7.713117506 | AB12: 0.003840006675 | AC12: 12.82057073 | AD12: 0.004825047529 | AE12: 26.94743554 | AF12: 0.007848483543 | AG12: 34.43301627 | AH12: 0.006458455705 | AJ12: =AVERAGE(S129:S139) -> 13.97085291 | AK12: =AVERAGE(T129:T139) -> 0.08515734657 | AL12: =AVERAGE(U131:U141) -> 11.01418249 | AM12: =AVERAGE(V131:V141) -> 0.084807056 | AN12: =AVERAGE(W147:W157) -> 13.11146318 | AO12: =AVERAGE(X147:X157) -> 0.08513636133 | AP12: =AVERAGE(Y149:Y160) -> 8.950055038 | AQ12: =AVERAGE(Z149:Z160) -> 0.08507946843 | AR12: =AVERAGE(AA121:AA129) -> 30.83254916 | AS12: =AVERAGE(AB121:AB129) -> 0.08528578522 | AT12: =AVERAGE(AC132:AC142) -> 18.11123256 | AU12: =AVERAGE(AD132:AD142) -> 0.08479807833 | AV12: =AVERAGE(AE103:AE112) -> 24.83826865 | AW12: =AVERAGE(AF103:AF112) -> 0.08491176991 | AX12: =AVERAGE(AG119:AG130) -> 13.7676849 | AY12: =AVERAGE(AH119:AH130) -> 0.08511851998
B13: 0.01490417713 | C13: 0.2956789074 | D13: 0.002729878373 | E13: 0.189015235 | F13: 0.006132378476 | G13: 0.2790995958 | H13: 0.003897907445 | I13: 0.2102026212 | J13: 0.01490417713 | K13: 0.1816250822 | L13: 0.023735802 | M13: 0.2557085872 | N13: 0.0008084836979 | O13: 0.3925657993 | P13: 0.006832916705 | Q13: 0.2686414239 | S13: 19.83866032 | T13: 0.005590326383 | U13: 69.23943459 | V13: 0.004567604843 | W13: 45.51245441 | X13: 0.005445454192 | Y13: 53.92704268 | Z13: 0.005124949335 | AA13: 12.1861865 | AB13: 0.00401742322 | AC13: 10.77311764 | AD13: 0.005227658259 | AE13: 485.558089 | AF13: 0.008843184975 | AG13: 39.31577619 | AH13: 0.007062290541 | AJ13: =AVERAGE(S140:S150) -> 13.91214825 | AK13: =AVERAGE(T140:T150) -> 0.09488676349 | AL13: =AVERAGE(U142:U152) -> 10.75433067 | AM13: =AVERAGE(V142:V152) -> 0.0946708397 | AN13: =AVERAGE(W158:W168) -> 11.78985185 | AO13: =AVERAGE(X158:X168) -> 0.0951129959 | AP13: =AVERAGE(Y161:Y171) -> 8.970497884 | AQ13: =AVERAGE(Z161:Z171) -> 0.09489423492 | AR13: =AVERAGE(AA130:AA139) -> 29.10274447 | AS13: =AVERAGE(AB130:AB139) -> 0.09509916238 | AT13: =AVERAGE(AC143:AC154) -> 18.94507158 | AU13: =AVERAGE(AD143:AD154) -> 0.094886681 | AV13: =AVERAGE(AE113:AE122) -> 23.22054319 | AW13: =AVERAGE(AF113:AF122) -> 0.09480335658 | AX13: =AVERAGE(AG131:AG141) -> 13.7183517 | AY13: =AVERAGE(AH131:AH141) -> 0.09529067738
B14: 0.0209023788 | C14: 0.3338467209 | D14: 0.0004815436356 | E14: 0.1965635743 | F14: 0.002881341303 | G14: 0.2963992808 | H14: 0.01111445172 | I14: 0.2247071642 | J14: 0.0209023788 | K14: 0.1949860716 | L14: 0.02960861661 | M14: 0.2726772462 | N14: 0.0110733804 | O14: 0.4295684655 | P14: 0.0114741947 | Q14: 0.2898763181 | S14: 15.97170945 | T14: 0.006311955587 | U14: 408.1947299 | V14: 0.004750012525 | W14: 102.8685079 | X14: 0.005782984748 | Y14: 20.21756626 | Z14: 0.005478584545 | AA14: 9.328415369 | AB14: 0.004312959214 | AC14: 9.209388262 | AD14: 0.005574562332 | AE14: 38.79289341 | AF14: 0.009676730389 | AG14: 25.26332573 | AH14: 0.00762053279 | AJ14: =AVERAGE(S151:S161) -> 13.67634979 | AK14: =AVERAGE(T151:T161) -> 0.1047675204 | AL14: =AVERAGE(U153:U162) -> 10.40689252 | AM14: =AVERAGE(V153:V162) -> 0.1047181193 | AN14: =AVERAGE(W169:W178) -> 12.90618868 | AO14: =AVERAGE(X169:X178) -> 0.1049500485 | AP14: =AVERAGE(Y172:Y183) -> 8.857750591 | AQ14: =AVERAGE(Z172:Z183) -> 0.1048990664 | AR14: =AVERAGE(AA140:AA149) -> 33.38425743 | AS14: =AVERAGE(AB140:AB149) -> 0.1054250992 | AT14: =AVERAGE(AC155:AC166) -> 18.54977229 | AU14: =AVERAGE(AD155:AD166) -> 0.1047886529 | AV14: =AVERAGE(AE123:AE132) -> 23.53999163 | AW14: =AVERAGE(AF123:AF132) -> 0.1047488063 | AX14: =AVERAGE(AG142:AG152) -> 13.68587029 | AY14: =AVERAGE(AH142:AH152) -> 0.1053281027
B15: 0.02380250022 | C15: 0.3670460549 | D15: -0.002150964186 | E15: 0.202127142 | F15: 0.003183564598 | G15: 0.3164323422 | H15: 0.006474620895 | I15: 0.2356666929 | J15: 0.02380250022 | K15: 0.2121191578 | L15: 0.02423413253 | M15: 0.2904926428 | N15: 0.009901510396 | O15: 0.4674226977 | P15: 0.01168086588 | Q15: 0.3113713406 | S15: 15.42048321 | T15: 0.006939647007 | U15: -93.97048232 | V15: 0.00488445766 | W15: 99.39560907 | X15: 0.006173845646 | Y15: 36.39853155 | Z15: 0.005745788776 | AA15: 8.911633477 | AB15: 0.004691931421 | AC15: 11.98692144 | AD15: 0.00593877695 | AE15: 47.20721172 | AF15: 0.01052945872 | AG15: 26.65652905 | AH15: 0.008185613528 | AJ15: =AVERAGE(S162:S173) -> 13.69028505 | AK15: =AVERAGE(T162:T173) -> 0.1147679237 | AL15: =AVERAGE(U163:U172) -> 10.20856988 | AM15: =AVERAGE(V163:V172) -> 0.1147146537 | AN15: =AVERAGE(W179:W190) -> 12.38947028 | AO15: =AVERAGE(X179:X190) -> 0.1149852953 | AP15: =AVERAGE(Y184:Y194) -> 8.898724775 | AQ15: =AVERAGE(Z184:Z194) -> 0.1153613638 | AR15: =AVERAGE(AA150:AA158) -> 42.48240786 | AS15: =AVERAGE(AB150:AB158) -> 0.1153177593 | AT15: =AVERAGE(AC167:AC177) -> 18.95387415 | AU15: =AVERAGE(AD167:AD177) -> 0.115095062 | AV15: =AVERAGE(AE133:AE143) -> 23.19007041 | AW15: =AVERAGE(AF133:AF143) -> 0.1150436469 | AX15: =AVERAGE(AG153:AG162) -> 13.50637502 | AY15: =AVERAGE(AH153:AH162) -> 0.1152648958
B16: 0.0285146106 | C16: 0.3987224532 | D16: -0.000970082862 | E16: 0.2112268528 | F16: 0.01179289306 | G16: 0.3290252959 | H16: 0.009573301456 | I16: 0.2480409024 | J16: 0.0285146106 | K16: 0.2346339549 | L16: 0.01785540177 | M16: 0.3066919267 | N16: 0.009106429449 | O16: 0.5008787336 | P16: 0.01212897882 | Q16: 0.3303686592 | S16: 13.98309304 | T16: 0.007538544664 | U16: -217.7410416 | V16: 0.005104354659 | W16: 27.90030354 | X16: 0.006419544146 | Y16: 25.90965129 | Z16: 0.006047484332 | AA16: 8.228551958 | AB16: 0.005189943412 | AC16: 17.17642261 | AD16: 0.006269952063 | AE16: 55.00275782 | AF16: 0.0112831105 | AG16: 27.23796159 | AH16: 0.008685032348 | AJ16: =AVERAGE(S174:S208) -> 14.07212048 | AK16: =AVERAGE(T174:T208) -> 0.1229949192 | AL16: =AVERAGE(U173:U183) -> 10.18148132 | AM16: =AVERAGE(V173:V183) -> 0.1251160971 | AN16: =AVERAGE(W191:W222) -> 12.62151071 | AO16: =AVERAGE(X191:X222) -> 0.1257095818 | AP16: =AVERAGE(Y195:Y203) -> 9.028321402 | AQ16: =AVERAGE(Z195:Z203) -> 0.1248018401 | AR16: =AVERAGE(AA159:AA168) -> 55.67265725 | AS16: =AVERAGE(AB159:AB168) -> 0.1249520944 | AT16: =AVERAGE(AC178:AC189) -> 19.00453596 | AU16: =AVERAGE(AD178:AD189) -> 0.125410431 | AV16: =AVERAGE(AE144:AE153) -> 23.15922944 | AW16: =AVERAGE(AF144:AF153) -> 0.1254040507 | AX16: =AVERAGE(AG163:AG172) -> 13.65304186 | AY16: =AVERAGE(AH163:AH172) -> 0.1250004246
B17: 0.02746129719 | C17: 0.4305922539 | D17: -0.006527934844 | E17: 0.221705003 | F17: 0.01453763029 | G17: 0.3440291602 | H17: 0.007088140895 | I17: 0.2656469989 | J17: 0.02746129719 | K17: 0.2644753579 | L17: 0.02776722424 | M17: 0.3259662517 | N17: 0.006886961249 | O17: 0.5284550762 | P17: 0.01328307993 | Q17: 0.3497981079 | S17: 15.67996774 | T17: 0.008141098933 | U17: -33.96250243 | V17: 0.005357562025 | W17: 23.66473444 | X17: 0.006712281425 | Y17: 37.47766909 | Z17: 0.006476738506 | AA17: 9.630839944 | AB17: 0.005850014938 | AC17: 11.73924512 | AD17: 0.006663992737 | AE17: 76.73269199 | AF17: 0.0119043126 | AG17: 26.3341115 | AH17: 0.009195811401 | AJ17: =AVERAGE(S209:S219) -> 13.73466191 | AK17: =AVERAGE(T209:T219) -> 0.1351636208 | AL17: =AVERAGE(U184:U193) -> 10.41571915 | AM17: =AVERAGE(V184:V193) -> 0.1354408344 | AN17: =AVERAGE(W223:W235) -> 12.80362847 | AO17: =AVERAGE(X223:X235) -> 0.1347704528 | AP17: =AVERAGE(Y204:Y214) -> 9.122054588 | AQ17: =AVERAGE(Z204:Z214) -> 0.1349429526 | AR17: =AVERAGE(AA169:AA178) -> 74.01538251 | AS17: =AVERAGE(AB169:AB178) -> 0.1350135031 | AT17: =AVERAGE(AC190:AC221) -> 19.04033251 | AU17: =AVERAGE(AD190:AD221) -> 0.1299917109 | AV17: =AVERAGE(AE154:AE162) -> 22.2131085 | AW17: =AVERAGE(AF154:AF162) -> 0.1349586699 | AX17: =AVERAGE(AG173:AG182) -> 13.35013661 | AY17: =AVERAGE(AH173:AH182) -> 0.1347327946
B18: 0.02570028882 | C18: 0.4607457888 | D18: 0.004602579478 | E18: 0.2407961475 | F18: 0.01945051209 | G18: 0.3562536341 | H18: 0.009848705182 | I18: 0.2833030427 | J18: 0.005791125586 | K18: 0.2948089414 | L18: 0.03625806421 | M18: 0.3438495711 | N18: 0.01870914828 | O18: 0.5572164139 | P18: 0.01863478896 | Q18: 0.3707514257 | S18: 17.92765023 | T18: 0.008711204198 | U18: 52.31765116 | V18: 0.005818904754 | W18: 18.31589998 | X18: 0.006950790593 | Y18: 28.76551156 | Z18: 0.006907210446 | AA18: 50.9070192 | AB18: 0.006520973163 | AC18: 9.483395723 | AD18: 0.007029595954 | AE18: 29.78309892 | AF18: 0.01255220864 | AG18: 19.89566002 | AH18: 0.009746651313 | AJ18: =AVERAGE(S220:S228) -> 13.82689688 | AK18: =AVERAGE(T220:T228) -> 0.145038986 | AL18: =AVERAGE(U194:U204) -> 10.60994363 | AM18: =AVERAGE(V194:V204) -> 0.1451336906 | AN18: =AVERAGE(W236:W246) -> 14.57479358 | AO18: =AVERAGE(X236:X246) -> 0.1448965495 | AP18: =AVERAGE(Y215:Y225) -> 9.19815134 | AQ18: =AVERAGE(Z215:Z225) -> 0.1448505498 | AR18: =AVERAGE(AA179:AA189) -> 92.59638133 | AS18: =AVERAGE(AB179:AB189) -> 0.1451139515 | AT18: =AVERAGE(AC222:AC231) -> 19.02123596 | AU18: =AVERAGE(AD222:AD231) -> 0.1453837989 | AV18: =AVERAGE(AE163:AE173) -> 22.55442073 | AW18: =AVERAGE(AF163:AF173) -> 0.1446830413 | AX18: =AVERAGE(AG183:AG193) -> 13.30809448 | AY18: =AVERAGE(AH183:AH193) -> 0.1449522881
B19: 0.02767521267 | C19: 0.4917896421 | D19: 0.001741328354 | E19: 0.2659660056 | F19: 0.02376325273 | G19: 0.3729545301 | H19: 0.009684674442 | I19: 0.2958044401 | J19: 0.00330490293 | K19: 0.3271777654 | L19: 0.0281036552 | M19: 0.3655569985 | N19: 0.008630258186 | O19: 0.5825323544 | P19: 0.01662706872 | Q19: 0.3936837623 | S19: 17.77004021 | T19: 0.009298142486 | U19: 152.7374231 | V19: 0.006427141258 | W19: 15.6945909 | X19: 0.007276638304 | Y19: 30.54356053 | Z19: 0.007212006968 | AA19: 98.99769294 | AB19: 0.007236949524 | AC19: 13.00745386 | AD19: 0.007473378518 | AE19: 67.49883281 | AF19: 0.0131224915 | AG19: 23.67728003 | AH19: 0.01034951747 | AJ19: =AVERAGE(S229:S237) -> 13.77194098 | AK19: =AVERAGE(T229:T237) -> 0.1554460519 | AL19: =AVERAGE(U205:U244) -> 10.78731985 | AM19: =AVERAGE(V205:V244) -> 0.1512281092 | AN19: =AVERAGE(W247:W254) -> 17.28710153 | AO19: =AVERAGE(X247:X254) -> 0.1551045576 | AP19: =AVERAGE(Y226:Y263) -> 8.834125589 | AQ19: =AVERAGE(Z226:Z263) -> 0.1545896181 | AR19: =AVERAGE(AA190:AA220) -> 736.1124762 | AS19: =AVERAGE(AB190:AB220) -> 0.1497211024 | AT19: =AVERAGE(AC232:AC241) -> 19.20250084 | AU19: =AVERAGE(AD232:AD241) -> 0.1547582506 | AV19: =AVERAGE(AE174:AE185) -> 22.61019337 | AW19: =AVERAGE(AF174:AF185) -> 0.1552838862 | AX19: =AVERAGE(AG194:AG203) -> 13.60708612 | AY19: =AVERAGE(AH194:AH203) -> 0.1552042364
B20: 0.03552093481 | C20: 0.519528763 | D20: -0.001369595314 | E20: 0.287635235 | F20: 0.02559944522 | G20: 0.3919354364 | H20: 0.007822706054 | I20: 0.3110912264 | J20: 0.01227442098 | K20: 0.3578893926 | L20: 0.02493598809 | M20: 0.3874120982 | N20: 0.01104350435 | O20: 0.610319518 | P20: 0.0175691586 | Q20: 0.4154392484 | S20: 14.62598791 | T20: 0.009822599036 | U20: -210.0147627 | V20: 0.00695078411 | W20: 15.31030978 | X20: 0.007646970819 | Y20: 39.76772542 | Z20: 0.007584714048 | AA20: 29.15733405 | AB20: 0.007916269817 | AC20: 15.53626417 | AD20: 0.007920180065 | AE20: 55.26502267 | AF20: 0.01374844268 | AG20: 23.64593877 | AH20: 0.01092144552 | AJ20: =AVERAGE(S238:S245) -> 13.66482812 | AK20: =AVERAGE(T238:T245) -> 0.1657470105 | AL20: =AVERAGE(U245:U255) -> 10.87436164 | AM20: =AVERAGE(V245:V255) -> 0.1647963699 | AN20: =AVERAGE(W255:W262) -> 15.84436696 | AO20: =AVERAGE(X255:X262) -> 0.16477078 | AP20: =AVERAGE(Y264:Y276) -> 8.414224435 | AQ20: =AVERAGE(Z264:Z276) -> 0.1648031657 | AR20: =AVERAGE(AA221:AA230) -> -296.7913815 | AS20: =AVERAGE(AB221:AB230) -> 0.1647898556 | AT20: =AVERAGE(AC242:AC249) -> 19.21723265 | AU20: =AVERAGE(AD242:AD249) -> 0.1649944264 | AV20: =AVERAGE(AE186:AE195) -> 23.0783174 | AW20: =AVERAGE(AF186:AF195) -> 0.165239446 | AX20: =AVERAGE(AG204:AG219) -> 13.72351571 | AY20: =AVERAGE(AH204:AH219) -> 0.1647900998
B21: 0.03627975471 | C21: 0.5479947018 | D21: 0.006510629319 | E21: 0.3015713789 | F21: 0.03441261438 | G21: 0.4072690184 | H21: 0.01490064897 | I21: 0.3233726713 | J21: 0.006994899983 | K21: 0.3903759096 | L21: 0.02123119154 | M21: 0.410259275 | N21: 0.009187222458 | O21: 0.6382221647 | P21: 0.01924068641 | Q21: 0.4360679608 | S21: 15.10469699 | T21: 0.01036079735 | U21: 46.31985083 | V21: 0.007287554838 | W21: 11.83487584 | X21: 0.00794614115 | Y21: 21.70191863 | Z21: 0.007884147914 | AA21: 55.80864781 | AB21: 0.008634849466 | AC21: 19.32342206 | AD21: 0.00838726345 | AE21: 69.46845661 | AF21: 0.01437699532 | AG21: 22.66384637 | AH21: 0.01146375191 | AJ21: =AVERAGE(S246:S253) -> 13.67157353 | AK21: =AVERAGE(T246:T253) -> 0.1751954462 | AL21: =AVERAGE(U256:U265) -> 10.74401018 | AM21: =AVERAGE(V256:V265) -> 0.1751385293 | AN21: =AVERAGE(W263:W270) -> 15.59598232 | AO21: =AVERAGE(X263:X270) -> 0.1744616329 | AP21: =AVERAGE(Y277:Y287) -> 8.361225065 | AQ21: =AVERAGE(Z277:Z287) -> 0.1751872464 | AR21: =AVERAGE(AA231:AA237) -> 170.7650796 | AS21: =AVERAGE(AB231:AB237) -> 0.1746911343 | AT21: =AVERAGE(AC250:AC257) -> 19.35271628 | AU21: =AVERAGE(AD250:AD257) -> 0.1749130284 | AV21: =AVERAGE(AE196:AE204) -> 23.3347803 | AW21: =AVERAGE(AF196:AF204) -> 0.1741663462 | AX21: =AVERAGE(AG220:AG247) -> 13.51921648 | AY21: =AVERAGE(AH220:AH247) -> 0.1714887948
B22: 0.02886665675 | C22: 0.5749556459 | D22: 0.00678158598 | E22: 0.3129306248 | F22: 0.03927008559 | G22: 0.4252329793 | H22: 0.01686458321 | I22: 0.3405805431 | J22: 0.01548333249 | K22: 0.41988205 | L22: 0.01798786999 | M22: 0.434149706 | N22: 0.01314027545 | O22: 0.6612824771 | P22: 0.02015785379 | Q22: 0.4553206841 | S22: 19.91763892 | T22: 0.0108705411 | U22: 46.14416535 | V22: 0.007562054122 | W22: 10.82841998 | X22: 0.008296632256 | Y22: 20.19501691 | Z22: 0.008303692972 | AA22: 27.11832549 | AB22: 0.009287505212 | AC22: 24.1356929 | AD22: 0.008875674927 | AE22: 50.32485654 | AF22: 0.01489646647 | AG22: 22.58775606 | AH22: 0.01196988504 | AJ22: =AVERAGE(S254:S261) -> 13.8704966 | AK22: =AVERAGE(T254:T261) -> 0.1845381732 | AL22: =AVERAGE(U266:U274) -> 10.66778896 | AM22: =AVERAGE(V266:V274) -> 0.1849539065 | AN22: =AVERAGE(W271:W279) -> 15.28145385 | AO22: =AVERAGE(X271:X279) -> 0.1848443529 | AP22: =AVERAGE(Y288:Y297) -> 8.273204743 | AQ22: =AVERAGE(Z288:Z297) -> 0.184698254 | AR22: =AVERAGE(AA238:AA245) -> 325.4526711 | AS22: =AVERAGE(AB238:AB245) -> 0.1848823897 | AT22: =AVERAGE(AC258:AC265) -> 18.9520092 | AU22: =AVERAGE(AD258:AD265) -> 0.1849776508 | AV22: =AVERAGE(AE205:AE234) -> 23.04718669 | AW22: =AVERAGE(AF205:AF234) -> 0.1702972853 | AX22: =AVERAGE(AG248:AG259) -> 13.41641902 | AY22: =AVERAGE(AH248:AH259) -> 0.1848108506
B23: 0.04858458104 | C23: 0.6019595402 | D23: 0.005931629955 | E23: 0.3299765786 | F23: 0.04190826789 | G23: 0.4410696227 | H23: 0.02047442986 | I23: 0.3575114031 | J23: 0.01936598681 | K23: 0.4496628555 | L23: 0.02003263061 | M23: 0.4564919108 | N23: 0.006182709476 | O23: 0.6864828983 | P23: 0.0232507337 | Q23: 0.4760935156 | S23: 12.38992963 | T23: 0.01138109691 | U23: 55.63000071 | V23: 0.007973974257 | W23: 10.52464454 | X23: 0.008605617714 | Y23: 17.46136061 | Z23: 0.008716484208 | AA23: 23.21920695 | AB23: 0.009946236363 | AC23: 22.78741717 | AD23: 0.009332434761 | AE23: 111.0326955 | AF23: 0.01546414706 | AG23: 20.47649428 | AH23: 0.01251598016 | AJ23: =AVERAGE(S262:S269) -> 14.14086398 | AK23: =AVERAGE(T262:T269) -> 0.1941238757 | AL23: =AVERAGE(U275:U282) -> 10.60694343 | AM23: =AVERAGE(V275:V282) -> 0.1953416575 | AN23: =AVERAGE(W280:W287) -> 16.08500744 | AO23: =AVERAGE(X280:X287) -> 0.195008035 | AP23: =AVERAGE(Y298:Y304) -> 8.281715196 | AQ23: =AVERAGE(Z298:Z304) -> 0.195214772 | AR23: =AVERAGE(AA246:AA252) -> 147.7668751 | AS23: =AVERAGE(AB246:AB252) -> 0.1953942064 | AT23: =AVERAGE(AC266:AC273) -> 19.12737598 | AU23: =AVERAGE(AD266:AD273) -> 0.1949520896 | AV23: =AVERAGE(AE235:AE241) -> 23.46995978 | AW23: =AVERAGE(AF235:AF241) -> 0.1942939683 | AX23: =AVERAGE(AG260:AG269) -> 13.53761008 | AY23: =AVERAGE(AH260:AH269) -> 0.1948150536
B24: 0.04914480572 | C24: 0.6267447427 | D24: 0.007430192394 | E24: 0.3537217657 | F24: 0.04683824877 | G24: 0.4571377716 | H24: 0.02465854399 | I24: 0.3770457695 | J24: 0.02417194191 | K24: 0.4767509824 | L24: 0.03684264918 | M24: 0.4778361071 | N24: 0.01904570032 | O24: 0.7147106917 | P24: 0.02996267104 | Q24: 0.497943747 | S24: 12.75302107 | T24: 0.01184970447 | U24: 47.60600359 | V24: 0.008547783198 | W24: 9.759924497 | X24: 0.008919120026 | Y24: 15.29067449 | Z24: 0.009192751522 | AA24: 19.72332153 | AB24: 0.0105454073 | AC24: 12.96964572 | AD24: 0.009768791495 | AE24: 37.52609144 | AF24: 0.01610002415 | AG24: 16.61880365 | AH24: 0.01309039895 | AJ24: =AVERAGE(S270:S278) -> 14.19188396 | AK24: =AVERAGE(T270:T278) -> 0.2047064385 | AL24: =AVERAGE(U283:U289) -> 10.66529209 | AM24: =AVERAGE(V283:V289) -> 0.2048175452 | AN24: =AVERAGE(W288:W295) -> 15.86669957 | AO24: =AVERAGE(X288:X295) -> 0.2047038709 | AP24: =AVERAGE(Y305:Y313) -> 8.397688652 | AQ24: =AVERAGE(Z305:Z313) -> 0.2045739792 | AR24: =AVERAGE(AA253:AA260) -> 92.76834345 | AS24: =AVERAGE(AB253:AB260) -> 0.2053760545 | AT24: =AVERAGE(AC274:AC281) -> 19.27211991 | AU24: =AVERAGE(AD274:AD281) -> 0.2049508385 | AV24: =AVERAGE(AE242:AE249) -> 23.67017537 | AW24: =AVERAGE(AF242:AF249) -> 0.2047103812 | AX24: =AVERAGE(AG270:AG278) -> 13.4680965 | AY24: =AVERAGE(AH270:AH278) -> 0.2050266924
B25: 0.04316796859 | C25: 0.6529072854 | D25: 0.007907551092 | E25: 0.3818427434 | F25: 0.05173813241 | G25: 0.4744350086 | H25: 0.01869914432 | I25: 0.3947160736 | J25: 0.01814499497 | K25: 0.5045654844 | L25: 0.03666533778 | M25: 0.4984419058 | N25: 0.01687575132 | O25: 0.7370945254 | P25: 0.03016888086 | Q25: 0.5202945397 | S25: 15.12480913 | T25: 0.01234435305 | U25: 48.28836879 | V25: 0.009227334312 | W25: 9.16992915 | X25: 0.009256602821 | Y25: 21.10877732 | Z25: 0.009623571143 | AA25: 27.80741936 | AB25: 0.01116064515 | AC25: 13.59436285 | AD25: 0.01019005257 | AE25: 43.67773094 | AF25: 0.01660425652 | AG25: 17.24606697 | AH25: 0.01367797696 | AJ25: =AVERAGE(S279:S286) -> 13.99710992 | AK25: =AVERAGE(T279:T286) -> 0.2152023875 | AL25: =AVERAGE(U290:U297) -> 10.62968142 | AM25: =AVERAGE(V290:V297) -> 0.2145000532 | AN25: =AVERAGE(W296:W302) -> 17.06078559 | AO25: =AVERAGE(X296:X302) -> 0.2142206924 | AP25: =AVERAGE(Y314:Y321) -> 8.418603875 | AQ25: =AVERAGE(Z314:Z321) -> 0.2149650741 | AR25: =AVERAGE(AA261:AA267) -> 73.19018463 | AS25: =AVERAGE(AB261:AB267) -> 0.215379468 | AT25: =AVERAGE(AC282:AC289) -> 19.12962276 | AU25: =AVERAGE(AD282:AD289) -> 0.2152575549 | AV25: =AVERAGE(AE250:AE257) -> 23.4180227 | AW25: =AVERAGE(AF250:AF257) -> 0.2154551521 | AX25: =AVERAGE(AG279:AG286) -> 13.67718911 | AY25: =AVERAGE(AH279:AH286) -> 0.2148725598
B26: 0.04431969797 | C26: 0.6799159278 | D26: 0.01674385897 | E26: 0.4147776587 | F26: 0.05583656331 | G26: 0.4943977791 | H26: 0.02482119637 | I26: 0.4125123743 | J26: 0.01859965889 | K26: 0.5334653615 | L26: 0.02739986715 | M26: 0.5221406124 | N26: 0.005664729203 | O26: 0.7597760185 | P26: 0.02811064349 | Q26: 0.544287345 | S26: 15.3411679 | T26: 0.01285499863 | U26: 24.7719274 | V26: 0.01002321555 | W26: 8.854373368 | X26: 0.009646092287 | Y26: 16.61935904 | Z26: 0.01005746268 | AA26: 28.6814594 | AB26: 0.01179989077 | AC26: 19.05631912 | AD26: 0.01067454447 | AE26: 134.1239786 | AF26: 0.01711519415 | AG26: 19.36232251 | AH26: 0.01430872169 | AJ26: =AVERAGE(S287:S293) -> 13.85499961 | AK26: =AVERAGE(T287:T293) -> 0.2245667411 | AL26: =AVERAGE(U298:U305) -> 10.53886398 | AM26: =AVERAGE(V298:V305) -> 0.2245754645 | AN26: =AVERAGE(W303:W310) -> 16.2323124 | AO26: =AVERAGE(X303:X310) -> 0.2248812325 | AP26: =AVERAGE(Y322:Y329) -> 8.417443428 | AQ26: =AVERAGE(Z322:Z329) -> 0.2246459388 | AR26: =AVERAGE(AA268:AA274) -> 63.03413837 | AS26: =AVERAGE(AB268:AB274) -> 0.22490268 | AT26: =AVERAGE(AC290:AC297) -> 19.26888682 | AU26: =AVERAGE(AD290:AD297) -> 0.2254979054 | AV26: =AVERAGE(AE258:AE265) -> 23.280501 | AW26: =AVERAGE(AF258:AF265) -> 0.2259216017 | AX26: =AVERAGE(AG287:AG294) -> 13.90601297 | AY26: =AVERAGE(AH287:AH294) -> 0.2247463727
B27: 0.04989257393 | C27: 0.7058791239 | D27: 0.01582728854 | E27: 0.4515187335 | F27: 0.06790980697 | G27: 0.5118065539 | H27: 0.03119647813 | I27: 0.4327171936 | J27: 0.01290191741 | K27: 0.5659162096 | L27: 0.02235174955 | M27: 0.5464038228 | N27: 0.025969826 | O27: 0.7818740559 | P27: 0.03446207356 | Q27: 0.5683324441 | S27: 14.14797971 | T27: 0.01334587822 | U27: 28.52786391 | V27: 0.01091107367 | W27: 7.536563227 | X27: 0.009985751274 | Y27: 13.87070655 | Z27: 0.01055007631 | AA27: 43.86295398 | AB27: 0.01251768144 | AC27: 24.44568473 | AD27: 0.01117057698 | AE27: 30.10701943 | AF27: 0.01761298849 | AG27: 16.4915336 | AH27: 0.01494084116 | AJ27: =AVERAGE(S294:S301) -> 13.77068933 | AK27: =AVERAGE(T294:T301) -> 0.2344456283 | AL27: =AVERAGE(U306:U313) -> 10.53205697 | AM27: =AVERAGE(V306:V313) -> 0.2345851338 | AN27: =AVERAGE(W311:W317) -> 15.71798102 | AO27: =AVERAGE(X311:X317) -> 0.2356913435 | AP27: =AVERAGE(Y330:Y337) -> 8.409001777 | AQ27: =AVERAGE(Z330:Z337) -> 0.234511476 | AR27: =AVERAGE(AA275:AA281) -> 59.06822104 | AS27: =AVERAGE(AB275:AB281) -> 0.2347402159 | AT27: =AVERAGE(AC298:AC304) -> 19.61482738 | AU27: =AVERAGE(AD298:AD304) -> 0.2352584955 | AV27: =AVERAGE(AE266:AE272) -> 23.3657377 | AW27: =AVERAGE(AF266:AF272) -> 0.2357217034 | AX27: =AVERAGE(AG295:AG302) -> 13.92930946 | AY27: =AVERAGE(AH295:AH302) -> 0.2348543537
B28: 0.05375398944 | C28: 0.7329833076 | D28: 0.01594973883 | E28: 0.4883474162 | F28: 0.0662517858 | G28: 0.5315414265 | H28: 0.03247694733 | I28: 0.4490465197 | J28: 0.0247359726 | K28: 0.5941753457 | L28: 0.02182179907 | M28: 0.5696046824 | N28: 0.00576580991 | O28: 0.803581411 | P28: 0.0324566002 | Q28: 0.5931292396 | S28: 13.63588666 | T28: 0.01385833017 | U28: 30.61789421 | V28: 0.01180104886 | W28: 8.02305055 | X28: 0.01037079427 | Y28: 13.82662339 | Z28: 0.01094820155 | AA28: 24.02069874 | AB28: 0.0131427543 | AC28: 26.10255372 | AD28: 0.01164489099 | AE28: 139.3700839 | AF28: 0.01810198207 | AG28: 18.27453387 | AH28: 0.01559272192 | AJ28: =AVERAGE(S302:S309) -> 13.72066822 | AK28: =AVERAGE(T302:T309) -> 0.2449069372 | AL28: =AVERAGE(U314:U321) -> 10.54574288 | AM28: =AVERAGE(V314:V321) -> 0.2447335058 | AN28: =AVERAGE(W318:W323) -> 16.1840759 | AO28: =AVERAGE(X318:X323) -> 0.2449947267 | AP28: =AVERAGE(Y338:Y344) -> 8.411095433 | AQ28: =AVERAGE(Z338:Z344) -> 0.2443446614 | AR28: =AVERAGE(AA282:AA289) -> 52.41763287 | AS28: =AVERAGE(AB282:AB289) -> 0.2453284473 | AT28: =AVERAGE(AC305:AC311) -> 19.35499221 | AU28: =AVERAGE(AD305:AD311) -> 0.2446483008 | AV28: =AVERAGE(AE273:AE279) -> 23.56550795 | AW28: =AVERAGE(AF273:AF279) -> 0.244945081 | AX28: =AVERAGE(AG303:AG310) -> 13.7415684 | AY28: =AVERAGE(AH303:AH310) -> 0.2453122631
B29: 0.05246599515 | C29: 0.7592376948 | D29: 0.02375897641 | E29: 0.5233346432 | F29: 0.07795887689 | G29: 0.5511551168 | H29: 0.03550578219 | I29: 0.4681113054 | J29: 0.0326033961 | K29: 0.6266475662 | L29: 0.03762519298 | M29: 0.5930235242 | N29: 0.0110796288 | O29: 0.8234356833 | P29: 0.03922760293 | Q29: 0.6165388637 | S29: 14.47104344 | T29: 0.01435471523 | U29: 22.02681775 | V29: 0.01264652477 | W29: 7.069818586 | X29: 0.0107534729 | Y29: 13.18408655 | Z29: 0.01141302002 | AA29: 19.22031571 | AB29: 0.01386101772 | AC29: 15.76134173 | AD29: 0.01212366138 | AE29: 74.31978981 | AF29: 0.01854923194 | AG29: 15.71696504 | AH29: 0.01620813545 | AJ29: =AVERAGE(S310:S317) -> 13.56325631 | AK29: =AVERAGE(T310:T317) -> 0.2552462979 | AL29: =AVERAGE(U322:U329) -> 10.62048217 | AM29: =AVERAGE(V322:V329) -> 0.2550634642 | AN29: =AVERAGE(W324:W330) -> 15.46986053 | AO29: =AVERAGE(X324:X330) -> 0.2544471975 | AP29: =AVERAGE(Y345:Y350) -> 8.507684701 | AQ29: =AVERAGE(Z345:Z350) -> 0.254939178 | AR29: =AVERAGE(AA290:AA295) -> 50.70160379 | AS29: =AVERAGE(AB290:AB295) -> 0.2552382264 | AT29: =AVERAGE(AC312:AC318) -> 19.34921564 | AU29: =AVERAGE(AD312:AD318) -> 0.2544270882 | AV29: =AVERAGE(AE280:AE287) -> 23.6572784 | AW29: =AVERAGE(AF280:AF287) -> 0.2551930104 | AX29: =AVERAGE(AG311:AG317) -> 13.84428579 | AY29: =AVERAGE(AH311:AH317) -> 0.2553118079
B30: 0.06149590636 | C30: 0.7854646084 | D30: 0.02490604607 | E30: 0.5572986634 | F30: 0.06982775405 | G30: 0.5716597109 | H30: 0.04281648435 | I30: 0.4864413763 | J30: 0.0319999146 | K30: 0.6553084832 | L30: 0.02325746076 | M30: 0.6147416572 | N30: -0.003650734046 | O30: 0.8439902326 | P30: 0.03522370256 | Q30: 0.6402110296 | S30: 12.77263244 | T30: 0.01485058086 | U30: 22.37603921 | V30: 0.0134672746 | W30: 8.186711984 | X30: 0.01115353378 | Y30: 11.36107702 | Z30: 0.01185992541 | AA30: 20.47844475 | AB30: 0.0144949777 | AC30: 26.43201954 | AD30: 0.01256766281 | AE30: -231.1837077 | AF30: 0.01901225669 | AG30: 18.17557449 | AH30: 0.01683045092 | AJ30: =AVERAGE(S318:S324) -> 13.43680492 | AK30: =AVERAGE(T318:T324) -> 0.2651845895 | AL30: =AVERAGE(U330:U336) -> 10.68761785 | AM30: =AVERAGE(V330:V336) -> 0.2648071621 | AN30: =AVERAGE(W331:W337) -> 16.17375643 | AO30: =AVERAGE(X331:X337) -> 0.2649940946 | AP30: =AVERAGE(Y351:Y357) -> 8.573925657 | AQ30: =AVERAGE(Z351:Z357) -> 0.2644167896 | AR30: =AVERAGE(AA296:AA302) -> 49.50796977 | AS30: =AVERAGE(AB296:AB302) -> 0.2644669569 | AT30: =AVERAGE(AC319:AC325) -> 19.30487176 | AU30: =AVERAGE(AD319:AD325) -> 0.2641851487 | AV30: =AVERAGE(AE288:AE294) -> 23.2745719 | AW30: =AVERAGE(AF288:AF294) -> 0.2654241311 | AX30: =AVERAGE(AG318:AG324) -> 13.86020003 | AY30: =AVERAGE(AH318:AH324) -> 0.2647285501
B31: 0.05604629094 | C31: 0.8128504871 | D31: 0.02337181941 | E31: 0.5909926673 | F31: 0.07439936201 | G31: 0.5907060674 | H31: 0.03707790126 | I31: 0.5026863316 | J31: 0.0235978219 | K31: 0.6873372972 | L31: 0.03558411573 | M31: 0.6376078943 | N31: 0.01202612262 | O31: 0.8684283856 | P31: 0.04070736584 | Q31: 0.6645044797 | S31: 14.50319858 | T31: 0.01536835875 | U31: 25.28654945 | V31: 0.01428149942 | W31: 7.939665764 | X31: 0.01152514328 | Y31: 13.55757242 | Z31: 0.01225599361 | AA31: 29.12714995 | AB31: 0.01520343327 | AC31: 17.91832904 | AD31: 0.01303513586 | AE31: 72.21183529 | AF31: 0.01956276595 | AG31: 16.3239371 | AH31: 0.01746909927 | AJ31: =AVERAGE(S325:S331) -> 13.21662617 | AK31: =AVERAGE(T325:T331) -> 0.2750988117 | AL31: =AVERAGE(U337:U344) -> 10.7810162 | AM31: =AVERAGE(V337:V344) -> 0.2749888696 | AN31: =AVERAGE(W338:W344) -> 17.23180734 | AO31: =AVERAGE(X338:X344) -> 0.2751966228 | AP31: =AVERAGE(Y358:Y364) -> 8.679065274 | AQ31: =AVERAGE(Z358:Z364) -> 0.2744233854 | AR31: =AVERAGE(AA303:AA309) -> 47.49375463 | AS31: =AVERAGE(AB303:AB309) -> 0.2747598242 | AT31: =AVERAGE(AC326:AC333) -> 19.61917198 | AU31: =AVERAGE(AD326:AD333) -> 0.2750132294 | AV31: =AVERAGE(AE295:AE301) -> 23.53130873 | AW31: =AVERAGE(AF295:AF301) -> 0.2749122385 | AX31: =AVERAGE(AG325:AG332) -> 13.81932911 | AY31: =AVERAGE(AH325:AH332) -> 0.2748343477
B32: 0.06361611187 | C32: 0.8374053535 | D32: 0.03060204598 | E32: 0.6244261491 | F32: 0.06487486884 | G32: 0.6085003288 | H32: 0.0446232936 | I32: 0.5208844492 | J32: 0.0548167713 | K32: 0.720980527 | L32: 0.04658390147 | M32: 0.6612958591 | N32: 0.02255349886 | O32: 0.887129852 | P32: 0.04421805471 | Q32: 0.6869073124 | S32: 13.16341614 | T32: 0.0158326114 | U32: 20.404719 | V32: 0.01508942865 | W32: 9.379600139 | X32: 0.01187232341 | Y32: 11.67292701 | Z32: 0.01269968184 | AA32: 13.15255368 | AB32: 0.01594759862 | AC32: 14.19580238 | AD32: 0.01351940816 | AE32: 39.3344668 | AF32: 0.01998404699 | AG32: 15.53454391 | AH32: 0.01805804535 | AJ32: =AVERAGE(S332:S338) -> 13.11113313 | AK32: =AVERAGE(T332:T338) -> 0.2850875194 | AL32: =AVERAGE(U345:U351) -> 10.86620435 | AM32: =AVERAGE(V345:V351) -> 0.2853902307 | AN32: =AVERAGE(W345:W350) -> 16.65979645 | AO32: =AVERAGE(X345:X350) -> 0.2846502341 | AP32: =AVERAGE(Y365:Y371) -> 8.730341668 | AQ32: =AVERAGE(Z365:Z371) -> 0.2846103521 | AR32: =AVERAGE(AA310:AA316) -> 46.19784683 | AS32: =AVERAGE(AB310:AB316) -> 0.2851015249 | AT32: =AVERAGE(AC334:AC339) -> 19.65942406 | AU32: =AVERAGE(AD334:AD339) -> 0.2853751161 | AV32: =AVERAGE(AE302:AE308) -> 23.47285458 | AW32: =AVERAGE(AF302:AF308) -> 0.2845459813 | AX32: =AVERAGE(AG333:AG339) -> 13.94281737 | AY32: =AVERAGE(AH333:AH339) -> 0.2850754095
B33: 0.06273037444 | C33: 0.8620867145 | D33: 0.03004197031 | E33: 0.6575765957 | F33: 0.04787935875 | G33: 0.6288364382 | H33: 0.04285803065 | I33: 0.5363459518 | J33: 0.03631835803 | K33: 0.7474802249 | L33: 0.03288842117 | M33: 0.6852208663 | N33: 0.03077875823 | O33: 0.9087871512 | P33: 0.04149036275 | Q33: 0.7105653692 | S33: 13.74273185 | T33: 0.01629925566 | U33: 21.88859748 | V33: 0.01589051826 | W33: 13.13376901 | X33: 0.01226909702 | Y33: 12.51447964 | Z33: 0.01307664868 | AA33: 20.58133312 | AB33: 0.01653375391 | AC33: 20.83471453 | AD33: 0.0140085265 | AE33: 29.52643978 | AF33: 0.02047191298 | AG33: 17.12603415 | AH33: 0.0186799899 | AJ33: =AVERAGE(S339:S345) -> 13.09713128 | AK33: =AVERAGE(T339:T345) -> 0.2953565136 | AL33: =AVERAGE(U352:U358) -> 10.91294925 | AM33: =AVERAGE(V352:V358) -> 0.2954163802 | AN33: =AVERAGE(W351:W358) -> 15.76834146 | AO33: =AVERAGE(X351:X358) -> 0.2951736017 | AP33: =AVERAGE(Y372:Y378) -> 8.834573767 | AQ33: =AVERAGE(Z372:Z378) -> 0.2951592998 | AR33: =AVERAGE(AA317:AA322) -> 44.67293414 | AS33: =AVERAGE(AB317:AB322) -> 0.294680809 | AT33: =AVERAGE(AC340:AC346) -> 19.62220358 | AU33: =AVERAGE(AD340:AD346) -> 0.2948271773 | AV33: =AVERAGE(AE309:AE315) -> 23.28260777 | AW33: =AVERAGE(AF309:AF315) -> 0.2945206536 | AX33: =AVERAGE(AG340:AG346) -> 13.84181763 | AY33: =AVERAGE(AH340:AH346) -> 0.294818963
B34: 0.06030409286 | C34: 0.8898198913 | D34: 0.02650986115 | E34: 0.6881927435 | F34: 0.04911769802 | G34: 0.6456088584 | H34: 0.04368657557 | I34: 0.5535003202 | J34: 0.0434387972 | K34: 0.7777769301 | L34: 0.0356585967 | M34: 0.7155757482 | N34: -0.0054199039 | O34: 0.9304540709 | P34: 0.03483806258 | Q34: 0.7343328773 | S34: 14.75554724 | T34: 0.01682359982 | U34: 25.95987733 | V34: 0.01663036584 | W34: 13.14411881 | X34: 0.01259634022 | Y34: 12.66980332 | Z34: 0.01349488928 | AA34: 17.90512124 | AB34: 0.01720389641 | AC34: 20.06741191 | AD34: 0.014629096 | AE34: -171.6735367 | AF34: 0.02095999569 | AG34: 21.07846484 | AH34: 0.01930481181 | AJ34: =AVERAGE(S346:S351) -> 13.20912676 | AK34: =AVERAGE(T346:T351) -> 0.3054470535 | AL34: =AVERAGE(U359:U364) -> 10.9334381 | AM34: =AVERAGE(V359:V364) -> 0.3051347252 | AN34: =AVERAGE(W359:W364) -> 16.01111993 | AO34: =AVERAGE(X359:X364) -> 0.3057786657 | AP34: =AVERAGE(Y379:Y384) -> 8.887911869 | AQ34: =AVERAGE(Z379:Z384) -> 0.3050760348 | AR34: =AVERAGE(AA323:AA329) -> 42.20600913 | AS34: =AVERAGE(AB323:AB329) -> 0.3045994143 | AT34: =AVERAGE(AC347:AC353) -> 19.63839754 | AU34: =AVERAGE(AD347:AD353) -> 0.3050240327 | AV34: =AVERAGE(AE316:AE322) -> 23.49763628 | AW34: =AVERAGE(AF316:AF322) -> 0.304579019 | AX34: =AVERAGE(AG347:AG353) -> 13.97653686 | AY34: =AVERAGE(AH347:AH353) -> 0.3048140462
B35: 0.06430068985 | C35: 0.9176365037 | D35: 0.04661705966 | E35: 0.7225037427 | F35: 0.05086026465 | G35: 0.6677231681 | H35: 0.04676752413 | I35: 0.5704347543 | J35: 0.04788121519 | K35: 0.8066994432 | L35: 0.04388945177 | M35: 0.7384920412 | N35: 0.01206292771 | O35: 0.9519982378 | P35: 0.04356949487 | Q35: 0.7586423356 | S35: 14.27102113 | T35: 0.01734952148 | U35: 15.49869829 | V35: 0.01745950052 | W35: 13.12858226 | X35: 0.01302780792 | Y35: 12.19724082 | Z35: 0.01390776765 | AA35: 16.8479317 | AB35: 0.01784364272 | AC35: 16.82618514 | AD35: 0.01509759238 | AE35: 78.91933541 | AF35: 0.02144531319 | AG35: 17.4122362 | AH35: 0.019943881 | AJ35: =AVERAGE(S352:S357) -> 13.30061484 | AK35: =AVERAGE(T352:T357) -> 0.3145903266 | AL35: =AVERAGE(U365:U371) -> 10.94376571 | AM35: =AVERAGE(V365:V371) -> 0.3149130228 | AN35: =AVERAGE(W365:W371) -> 15.71245494 | AO35: =AVERAGE(X365:X371) -> 0.3148059587 | AP35: =AVERAGE(Y385:Y391) -> 8.899494568 | AQ35: =AVERAGE(Z385:Z391) -> 0.3150361088 | AR35: =AVERAGE(AA330:AA335) -> 41.76352615 | AS35: =AVERAGE(AB330:AB335) -> 0.3149857524 | AT35: =AVERAGE(AC354:AC360) -> 19.51863348 | AU35: =AVERAGE(AD354:AD360) -> 0.315522629 | AV35: =AVERAGE(AE323:AE329) -> 23.23051777 | AW35: =AVERAGE(AF323:AF329) -> 0.3146384422 | AX35: =AVERAGE(AG354:AG360) -> 14.06206212 | AY35: =AVERAGE(AH354:AH360) -> 0.3151548593
B36: 0.0660343344 | C36: 0.9400466903 | D36: 0.04630441777 | E36: 0.7526521449 | F36: 0.03519021596 | G36: 0.6840446515 | H36: 0.03644111256 | I36: 0.5900570655 | J36: 0.0486188444 | K36: 0.8353151602 | L36: 0.03336567432 | M36: 0.7646404873 | N36: 0.01037736423 | O36: 0.9776833771 | P36: 0.03967325514 | Q36: 0.7815836842 | S36: 14.23572599 | T36: 0.01777322522 | U36: 16.25443491 | V36: 0.0181880449 | W36: 19.43848973 | X36: 0.01334625299 | Y36: 16.19207055 | Z36: 0.01438617915 | AA36: 17.18089293 | AB36: 0.0184766029 | AC36: 22.91697989 | AD36: 0.0156321663 | AE36: 94.21307329 | AF36: 0.02202391285 | AG36: 19.70051818 | AH36: 0.02054698408 | AJ36: =AVERAGE(S358:S364) -> 13.29392723 | AK36: =AVERAGE(T358:T364) -> 0.3251521786 | AL36: =AVERAGE(U372:U377) -> 11.00143909 | AM36: =AVERAGE(V372:V377) -> 0.3248073118 | AN36: =AVERAGE(W372:W378) -> 15.90394657 | AO36: =AVERAGE(X372:X378) -> 0.3255523243 | AP36: =AVERAGE(Y392:Y396) -> 8.894937049 | AQ36: =AVERAGE(Z392:Z396) -> 0.3254612506 | AR36: =AVERAGE(AA336:AA341) -> 41.79322431 | AS36: =AVERAGE(AB336:AB341) -> 0.3241123238 | AT36: =AVERAGE(AC361:AC366) -> 19.75161206 | AU36: =AVERAGE(AD361:AD366) -> 0.3253147808 | AV36: =AVERAGE(AE330:AE336) -> 23.26787242 | AW36: =AVERAGE(AF330:AF336) -> 0.3250158518 | AX36: =AVERAGE(AG361:AG366) -> 13.98129462 | AY36: =AVERAGE(AH361:AH366) -> 0.3249577447
B37: 0.07045187677 | C37: 0.9662330821 | D37: 0.04344025627 | E37: 0.7795830077 | F37: 0.03819731685 | G37: 0.7039868078 | H37: 0.04101346557 | I37: 0.6072030943 | J37: 0.05694317942 | K37: 0.8663251716 | L37: 0.03893593016 | M37: 0.7885666519 | N37: 0.01439387755 | O37: 1.012790102 | P37: 0.04031006169 | Q37: 0.8068694528 | S37: 13.71479549 | T37: 0.01826832471 | U37: 17.94609596 | V37: 0.01883883657 | W37: 18.43026856 | X37: 0.01373534025 | Y37: 14.80496919 | Z37: 0.01480421641 | AA37: 15.21385319 | AB37: 0.01916252325 | AC37: 20.25292959 | AD37: 0.01612130831 | AE37: 70.36256203 | AF37: 0.02281474909 | AG37: 20.01657698 | AH37: 0.0212117194 | AJ37: =AVERAGE(S365:S369) -> 13.17765377 | AK37: =AVERAGE(T365:T369) -> 0.3346985123 | AL37: =AVERAGE(U378:U384) -> 11.0118068 | AM37: =AVERAGE(V378:V384) -> 0.3349130381 | AN37: =AVERAGE(W379:W383) -> 16.55753777 | AO37: =AVERAGE(X379:X383) -> 0.3352274951 | AP37: =AVERAGE(Y397:Y402) -> 8.961523722 | AQ37: =AVERAGE(Z397:Z402) -> 0.3350096968 | AR37: =AVERAGE(AA342:AA348) -> 40.0510908 | AS37: =AVERAGE(AB342:AB348) -> 0.334421405 | AT37: =AVERAGE(AC367:AC373) -> 19.838599 | AU37: =AVERAGE(AD367:AD373) -> 0.335158376 | AV37: =AVERAGE(AE337:AE343) -> 23.10689205 | AW37: =AVERAGE(AF337:AF343) -> 0.3354425404 | AX37: =AVERAGE(AG367:AG373) -> 13.90849471 | AY37: =AVERAGE(AH367:AH373) -> 0.334821918
B38: 0.0785287035 | C38: 0.9942621618 | D38: 0.04773496029 | E38: 0.8059666449 | F38: 0.03063908157 | G38: 0.7256792615 | H38: 0.04999598178 | I38: 0.622298485 | J38: 0.0583469371 | K38: 0.8971616039 | L38: 0.04165008975 | M38: 0.81505218 | N38: 0.008146391095 | O38: 1.046738017 | P38: 0.04128544863 | Q38: 0.8324835599 | S38: 12.66113048 | T38: 0.01879826344 | U38: 16.88420059 | V38: 0.01947640437 | W38: 23.68475895 | X38: 0.01415857721 | Y38: 12.44696999 | Z38: 0.01517225708 | AA38: 15.37632734 | AB38: 0.01984460415 | AC38: 19.56903779 | AD38: 0.01666277346 | AE38: 128.4910097 | AF38: 0.02357948125 | AG38: 20.16409141 | AH38: 0.02188508639 | AJ38: =AVERAGE(S370:S375) -> 13.16647428 | AK38: =AVERAGE(T370:T375) -> 0.3441625329 | AL38: =AVERAGE(U385:U390) -> 11.03287577 | AM38: =AVERAGE(V385:V390) -> 0.3453119352 | AN38: =AVERAGE(W384:W390) -> 16.20039646 | AO38: =AVERAGE(X384:X390) -> 0.3449163677 | AP38: =AVERAGE(Y403:Y408) -> 9.05928667 | AQ38: =AVERAGE(Z403:Z408) -> 0.3449421655 | AR38: =AVERAGE(AA349:AA354) -> 39.30556419 | AS38: =AVERAGE(AB349:AB354) -> 0.3447011098 | AT38: =AVERAGE(AC374:AC379) -> 19.8155213 | AU38: =AVERAGE(AD374:AD379) -> 0.3452213084 | AV38: =AVERAGE(AE344:AE349) -> 22.95336533 | AW38: =AVERAGE(AF344:AF349) -> 0.3452335687 | AX38: =AVERAGE(AG374:AG379) -> 13.94117502 | AY38: =AVERAGE(AH374:AH379) -> 0.3447986995
B39: 0.07487288987 | C39: 1.021291174 | D39: 0.04121260718 | E39: 0.8320045978 | F39: 0.03849838239 | G39: 0.7408201371 | H39: 0.04592458097 | I39: 0.6394872948 | J39: 0.05227111901 | K39: 0.9273335401 | L39: 0.04084393693 | M39: 0.8405492478 | N39: 0.02390904818 | O39: 1.08442313 | P39: 0.04488880772 | Q39: 0.8568977952 | S39: 13.64033331 | T39: 0.01930929414 | U39: 20.1881088 | V39: 0.02010561863 | W39: 19.24288999 | X39: 0.01445398768 | Y39: 13.92472792 | Z39: 0.01559133739 | AA39: 17.74083964 | AB39: 0.02051198685 | AC39: 20.57953545 | AD39: 0.01718403072 | AE39: 45.35618154 | AF39: 0.02442839988 | AG39: 19.08934184 | AH39: 0.02252691005 | AJ39: =AVERAGE(S376:S381) -> 13.13980624 | AK39: =AVERAGE(T376:T381) -> 0.354370843 | AL39: =AVERAGE(U391:U396) -> 11.06454384 | AM39: =AVERAGE(V391:V396) -> 0.3553299117 | AN39: =AVERAGE(W391:W395) -> 15.69685804 | AO39: =AVERAGE(X391:X395) -> 0.3549941987 | AP39: =AVERAGE(Y409:Y414) -> 9.105777379 | AQ39: =AVERAGE(Z409:Z414) -> 0.3547866934 | AR39: =AVERAGE(AA355:AA361) -> 38.68635792 | AS39: =AVERAGE(AB355:AB361) -> 0.3551886627 | AT39: =AVERAGE(AC380:AC385) -> 19.76249343 | AU39: =AVERAGE(AD380:AD385) -> 0.3542318052 | AV39: =AVERAGE(AE350:AE356) -> 22.98072086 | AW39: =AVERAGE(AF350:AF356) -> 0.3549305349 | AX39: =AVERAGE(AG380:AG386) -> 13.94554977 | AY39: =AVERAGE(AH380:AH386) -> 0.3549561957
B40: 0.08950774868 | C40: 1.046238717 | D40: 0.05991931384 | E40: 0.8553696473 | F40: 0.01787081206 | G40: 0.7578834391 | H40: 0.04877157509 | I40: 0.6584165892 | J40: 0.05390246709 | K40: 0.9579274381 | L40: 0.05497906357 | M40: 0.8636452938 | N40: 0.01798961777 | O40: 1.11466242 | P40: 0.04769852281 | Q40: 0.8795478019 | S40: 11.68880608 | T40: 0.01978097103 | U40: 14.27535785 | V40: 0.02067024144 | W40: 42.40900955 | X40: 0.01478690622 | Y40: 13.50000667 | Z40: 0.01605285245 | AA40: 17.77149525 | AB40: 0.02118870305 | AC40: 15.70862139 | AD40: 0.01765620194 | AE40: 61.96142875 | AF40: 0.02510958922 | AG40: 18.43972832 | AH40: 0.02312235407 | AJ40: =AVERAGE(S382:S387) -> 13.1488242 | AK40: =AVERAGE(T382:T387) -> 0.3649151741 | AL40: =AVERAGE(U397:U402) -> 11.08398568 | AM40: =AVERAGE(V397:V402) -> 0.365299753 | AN40: =AVERAGE(W396:W402) -> 16.15191169 | AO40: =AVERAGE(X396:X402) -> 0.3649427581 | AP40: =AVERAGE(Y415:Y420) -> 9.118814511 | AQ40: =AVERAGE(Z415:Z420) -> 0.3645990503 | AR40: =AVERAGE(AA362:AA367) -> 36.77363269 | AS40: =AVERAGE(AB362:AB367) -> 0.3658037393 | AT40: =AVERAGE(AC386:AC392) -> 19.74393418 | AU40: =AVERAGE(AD386:AD392) -> 0.3646241836 | AV40: =AVERAGE(AE357:AE362) -> 23.05260502 | AW40: =AVERAGE(AF357:AF362) -> 0.3645516032 | AX40: =AVERAGE(AG387:AG392) -> 13.88894685 | AY40: =AVERAGE(AH387:AH392) -> 0.3653307654
B41: 0.08461866528 | C41: 1.073453882 | D41: 0.06243761008 | E41: 0.8789336487 | F41: 0.03036148536 | G41: 0.7744849818 | H41: 0.048680321 | I41: 0.6690527149 | J41: 0.06132807583 | K41: 0.9888066876 | L41: 0.0448632706 | M41: 0.890916816 | N41: 0.01503758288 | O41: 1.148691278 | P41: 0.04768169821 | Q41: 0.9041495327 | S41: 12.68578131 | T41: 0.02029552129 | U41: 14.07699058 | V41: 0.02123967197 | W41: 25.5087975 | X41: 0.01511081547 | Y41: 13.74380245 | Z41: 0.01631217179 | AA41: 16.12323025 | AB41: 0.02187173104 | AC41: 19.85849012 | AD41: 0.01821373581 | AE41: 76.38802641 | AF41: 0.02587614476 | AG41: 18.96219234 | AH41: 0.02376910679 | AJ41: =AVERAGE(S388:S393) -> 13.23763304 | AK41: =AVERAGE(T388:T393) -> 0.3751227606 | AL41: =AVERAGE(U403:U408) -> 11.12319363 | AM41: =AVERAGE(V403:V408) -> 0.3753468701 | AN41: =AVERAGE(W403:W407) -> 16.08398928 | AO41: =AVERAGE(X403:X407) -> 0.3755215299 | AP41: =AVERAGE(Y421:Y426) -> 9.143046242 | AQ41: =AVERAGE(Z421:Z426) -> 0.3748074109 | AR41: =AVERAGE(AA368:AA373) -> 35.07622865 | AS41: =AVERAGE(AB368:AB373) -> 0.3752114872 | AT41: =AVERAGE(AC393:AC398) -> 19.73255289 | AU41: =AVERAGE(AD393:AD398) -> 0.3750152849 | AV41: =AVERAGE(AE363:AE369) -> 23.34150366 | AW41: =AVERAGE(AF363:AF369) -> 0.3744655326 | AX41: =AVERAGE(AG393:AG398) -> 13.89438102 | AY41: =AVERAGE(AH393:AH398) -> 0.3750638276
B42: 0.08685402572 | C42: 1.099409902 | D42: 0.05636202171 | E42: 0.9052699575 | F42: 0.01387615222 | G42: 0.7922561626 | H42: 0.05449270209 | I42: 0.686830062 | J42: 0.0548625427 | K42: 1.018237952 | L42: 0.0468749584 | M42: 0.9159374843 | N42: 0.04306079509 | O42: 1.183500271 | P42: 0.04928471236 | Q42: 0.9275710821 | S42: 12.65813407 | T42: 0.02078626519 | U42: 16.0617013 | V42: 0.02187609608 | W42: 57.09480191 | X42: 0.01545754528 | Y42: 12.60407423 | Z42: 0.01674560122 | AA42: 18.55980241 | AB42: 0.02252273058 | AC42: 19.540017 | AD42: 0.01872525364 | AE42: 27.48440359 | AF42: 0.02666027411 | AG42: 18.82066543 | AH42: 0.02438483382 | AJ42: =AVERAGE(S394:S398) -> 13.20618308 | AK42: =AVERAGE(T394:T398) -> 0.3852264371 | AL42: =AVERAGE(U409:U413) -> 11.16161156 | AM42: =AVERAGE(V409:V413) -> 0.3847762418 | AN42: =AVERAGE(W408:W413) -> 16.08720338 | AO42: =AVERAGE(X408:X413) -> 0.3851482984 | AP42: =AVERAGE(Y427:Y432) -> 9.188931558 | AQ42: =AVERAGE(Z427:Z432) -> 0.3853258435 | AR42: =AVERAGE(AA374:AA379) -> 34.30197565 | AS42: =AVERAGE(AB374:AB379) -> 0.3852416522 | AT42: =AVERAGE(AC399:AC405) -> 19.6500664 | AU42: =AVERAGE(AD399:AD405) -> 0.385303032 | AV42: =AVERAGE(AE370:AE376) -> 23.29754287 | AW42: =AVERAGE(AF370:AF376) -> 0.3854023322 | AX42: =AVERAGE(AG399:AG404) -> 14.00979452 | AY42: =AVERAGE(AH399:AH404) -> 0.3848190924
B43: 0.09126758824 | C43: 1.124395575 | D43: 0.07549894974 | E43: 0.9299365378 | F43: 0.02887457609 | G43: 0.808026141 | H43: 0.06065480411 | I43: 0.7073879242 | J43: 0.0624359337 | K43: 1.049466743 | L43: 0.05622349059 | M43: 0.9430578259 | N43: 0.0267722675 | O43: 1.220044441 | P43: 0.05552159571 | Q43: 0.9520484304 | S43: 12.31976867 | T43: 0.02125866299 | U43: 12.31721158 | V43: 0.02247217074 | W43: 27.98400013 | X43: 0.01576523005 | Y43: 11.66252096 | Z43: 0.01724682238 | AA43: 16.80869782 | AB43: 0.02321349017 | AC43: 16.77337739 | AD43: 0.01927969681 | AE43: 45.57120315 | AF43: 0.02748349114 | AG43: 17.14735353 | AH43: 0.02502831666 | AJ43: =AVERAGE(S399:S404) -> 13.06758492 | AK43: =AVERAGE(T399:T404) -> 0.39504771 | AL43: =AVERAGE(U414:U419) -> 11.17608091 | AM43: =AVERAGE(V414:V419) -> 0.3943811658 | AN43: =AVERAGE(W414:W418) -> 16.75823294 | AO43: =AVERAGE(X414:X418) -> 0.3948995928 | AP43: =AVERAGE(Y433:Y437) -> 9.236253589 | AQ43: =AVERAGE(Z433:Z437) -> 0.3951211108 | AR43: =AVERAGE(AA380:AA385) -> 33.04348275 | AS43: =AVERAGE(AB380:AB385) -> 0.3950003894 | AT43: =AVERAGE(AC406:AC411) -> 19.66303563 | AU43: =AVERAGE(AD406:AD411) -> 0.3956775499 | AV43: =AVERAGE(AE377:AE382) -> 23.2629207 | AW43: =AVERAGE(AF377:AF382) -> 0.395445244 | AX43: =AVERAGE(AG405:AG410) -> 14.11317943 | AY43: =AVERAGE(AH405:AH410) -> 0.3947149992
B44: 0.09541558102 | C44: 1.148946889 | D44: 0.0698641936 | E44: 0.9487931623 | F44: 0.02921258099 | G44: 0.8223487778 | H44: 0.04821637956 | I44: 0.7235021175 | J44: 0.07526431854 | K44: 1.079027614 | L44: 0.0440343904 | M44: 0.9668053226 | N44: 0.02222956779 | O44: 1.252716797 | P44: 0.05356851965 | Q44: 0.9744998122 | S44: 12.04150178 | T44: 0.02172284849 | U44: 13.58053551 | V44: 0.02292784622 | W44: 28.15050057 | X44: 0.01604467605 | Y44: 15.0053182 | Z44: 0.01763970247 | AA44: 14.33650945 | AB44: 0.02386735653 | AC44: 21.95568768 | AD44: 0.01976518616 | AE44: 56.35362815 | AF44: 0.02821948927 | AG44: 18.19165096 | AH44: 0.02561853904 | AJ44: =AVERAGE(S405:S409) -> 12.93183758 | AK44: =AVERAGE(T405:T409) -> 0.4049310645 | AL44: =AVERAGE(U420:U425) -> 11.25493928 | AM44: =AVERAGE(V420:V425) -> 0.4050817398 | AN44: =AVERAGE(W419:W424) -> 16.73769337 | AO44: =AVERAGE(X419:X424) -> 0.4050679415 | AP44: =AVERAGE(Y438:Y442) -> 9.214057616 | AQ44: =AVERAGE(Z438:Z442) -> 0.4044883593 | AR44: =AVERAGE(AA386:AA391) -> 31.562737 | AS44: =AVERAGE(AB386:AB391) -> 0.4053772636 | AT44: =AVERAGE(AC412:AC417) -> 19.64316732 | AU44: =AVERAGE(AD412:AD417) -> 0.4044374461 | AV44: =AVERAGE(AE383:AE388) -> 23.038324 | AW44: =AVERAGE(AF383:AF388) -> 0.404565507 | AX44: =AVERAGE(AG411:AG416) -> 14.11420655 | AY44: =AVERAGE(AH411:AH416) -> 0.4047510378
B45: 0.09601530929 | C45: 1.174976921 | D45: 0.06391236559 | E45: 0.9733602667 | F45: 0.03404495306 | G45: 0.8392327358 | H45: 0.06047687183 | I45: 0.7384416914 | J45: 0.07330165555 | K45: 1.108922502 | L45: 0.04919716157 | M45: 0.9930645862 | N45: 0.02541137394 | O45: 1.287504379 | P45: 0.0527995905 | Q45: 0.9986068344 | S45: 12.2373914 | T45: 0.02221499172 | U45: 15.22960788 | V45: 0.02352151702 | W45: 24.65072383 | X45: 0.01637409544 | Y45: 12.2103156 | Z45: 0.01800394417 | AA45: 15.12820541 | AB45: 0.02452861111 | AC45: 20.18540409 | AD45: 0.02030202561 | AE45: 50.66646072 | AF45: 0.0290031363 | AG45: 18.91315491 | AH45: 0.0262522864 | AJ45: =AVERAGE(S410:S414) -> 12.87548451 | AK45: =AVERAGE(T410:T414) -> 0.4144116339 | AL45: =AVERAGE(U426:U430) -> 11.28358888 | AM45: =AVERAGE(V426:V430) -> 0.4149897947 | AN45: =AVERAGE(W425:W429) -> 15.92873709 | AO45: =AVERAGE(X425:X429) -> 0.4151278202 | AP45: =AVERAGE(Y443:Y447) -> 9.27165708 | AQ45: =AVERAGE(Z443:Z447) -> 0.4154987573 | AR45: =AVERAGE(AA392:AA397) -> 30.44259659 | AS45: =AVERAGE(AB392:AB397) -> 0.4151770104 | AT45: =AVERAGE(AC418:AC423) -> 19.6389295 | AU45: =AVERAGE(AD418:AD423) -> 0.4144983887 | AV45: =AVERAGE(AE389:AE395) -> 23.2712067 | AW45: =AVERAGE(AF389:AF395) -> 0.4147317885 | AX45: =AVERAGE(AG417:AG422) -> 14.04748493 | AY45: =AVERAGE(AH417:AH422) -> 0.4148560904
B46: 0.09951022143 | C46: 1.199462559 | D46: 0.06647265827 | E46: 0.9976928869 | F46: 0.04130273437 | G46: 0.8544402396 | H46: 0.0635727495 | I46: 0.7559266111 | J46: 0.07077713187 | K46: 1.138100546 | L46: 0.05680280427 | M46: 1.021809287 | N46: 0.04765319638 | O46: 1.324941744 | P46: 0.06203641442 | Q46: 1.022798068 | S46: 12.05366185 | T46: 0.0226779355 | U46: 15.00907159 | V46: 0.02410952144 | W46: 20.68725601 | X46: 0.01667080588 | Y46: 11.89073333 | Z46: 0.01843024393 | AA46: 16.08006027 | AB46: 0.02517400959 | AC46: 17.988712 | AD46: 0.02088967686 | AE46: 27.80383782 | AF46: 0.029846474 | AG46: 16.4870597 | AH46: 0.0268882476 | AJ46: =AVERAGE(S415:S420) -> 12.87596041 | AK46: =AVERAGE(T415:T420) -> 0.4247571169 | AL46: =AVERAGE(U431:U436) -> 11.32139151 | AM46: =AVERAGE(V431:V436) -> 0.4250369081 | AN46: =AVERAGE(W430:W434) -> 15.58023333 | AO46: =AVERAGE(X430:X434) -> 0.4246501799 | AP46: =AVERAGE(Y448:Y452) -> 9.284094041 | AQ46: =AVERAGE(Z448:Z452) -> 0.4254231581 | AR46: =AVERAGE(AA398:AA403) -> 29.78923818 | AS46: =AVERAGE(AB398:AB403) -> 0.425343526 | AT46: =AVERAGE(AC424:AC429) -> 19.64079229 | AU46: =AVERAGE(AD424:AD429) -> 0.4243593177 | AV46: =AVERAGE(AE396:AE401) -> 23.02387977 | AW46: =AVERAGE(AF396:AF401) -> 0.4249654301 | AX46: =AVERAGE(AG423:AG428) -> 14.00751843 | AY46: =AVERAGE(AH423:AH428) -> 0.4250350617
B47: 0.1011810079 | C47: 1.225576172 | D47: 0.07473299901 | E47: 1.021860865 | F47: 0.05513855567 | G47: 0.8706635107 | H47: 0.0646570387 | I47: 0.7692755965 | J47: 0.07659995308 | K47: 1.166030395 | L47: 0.06108953928 | M47: 1.051310324 | N47: 0.03874809792 | O47: 1.3592862 | P47: 0.06574382488 | Q47: 1.04743728 | S47: 12.11270966 | T47: 0.02317165897 | U47: 13.67348933 | V47: 0.02469354724 | W47: 15.7904664 | X47: 0.01698733475 | Y47: 11.89778579 | Z47: 0.0187557055 | AA47: 15.22233824 | AB47: 0.02579179883 | AC47: 17.20933463 | AD47: 0.02149279052 | AE47: 35.0800755 | AF47: 0.03062013891 | AG47: 15.93210134 | AH47: 0.02753598567 | AJ47: =AVERAGE(S421:S425) -> 12.93764551 | AK47: =AVERAGE(T421:T425) -> 0.4352373357 | AL47: =AVERAGE(U437:U441) -> 11.29413368 | AM47: =AVERAGE(V437:V441) -> 0.4351360419 | AN47: =AVERAGE(W435:W439) -> 15.79599658 | AO47: =AVERAGE(X435:X439) -> 0.4344169211 | AP47: =AVERAGE(Y453:Y457) -> 9.379460222 | AQ47: =AVERAGE(Z453:Z457) -> 0.4354422833 | AR47: =AVERAGE(AA404:AA409) -> 29.23534937 | AS47: =AVERAGE(AB404:AB409) -> 0.4352465994 | AT47: =AVERAGE(AC430:AC435) -> 19.57446114 | AU47: =AVERAGE(AD430:AD435) -> 0.4347468835 | AV47: =AVERAGE(AE402:AE407) -> 22.87010011 | AW47: =AVERAGE(AF402:AF407) -> 0.4350047087 | AX47: =AVERAGE(AG429:AG434) -> 14.0737359 | AY47: =AVERAGE(AH429:AH434) -> 0.435392139
B48: 0.1122603814 | C48: 1.248507849 | D48: 0.08105244488 | E48: 1.043636673 | F48: 0.05901799227 | G48: 0.8858201414 | H48: 0.06831801186 | I48: 0.7836386913 | J48: 0.08084171762 | K48: 1.19816145 | L48: 0.05861880879 | M48: 1.0777518 | N48: 0.03688553348 | O48: 1.392567185 | P48: 0.06874869992 | Q48: 1.069593208 | S48: 11.12153579 | T48: 0.0236052224 | U48: 12.87606653 | V48: 0.02521976559 | W48: 15.00932355 | X48: 0.01728305263 | Y48: 11.47045516 | Z48: 0.01910589206 | AA48: 14.82107859 | AB48: 0.02650251591 | AC48: 18.38576768 | AD48: 0.02203335508 | AE48: 37.75374933 | AF48: 0.03136984737 | AG48: 15.55801359 | AH48: 0.02811844087 | AJ48: =AVERAGE(S426:S430) -> 12.90077394 | AK48: =AVERAGE(T426:T430) -> 0.4452983493 | AL48: =AVERAGE(U442:U446) -> 11.30284771 | AM48: =AVERAGE(V442:V446) -> 0.444662941 | AN48: =AVERAGE(W440:W445) -> 15.56901442 | AO48: =AVERAGE(X440:X445) -> 0.4450184726 | AP48: =AVERAGE(Y458:Y462) -> 9.398707856 | AQ48: =AVERAGE(Z458:Z462) -> 0.4454949886 | AR48: =AVERAGE(AA410:AA415) -> 28.48151366 | AS48: =AVERAGE(AB410:AB415) -> 0.4456055561 | AT48: =AVERAGE(AC436:AC441) -> 19.65971314 | AU48: =AVERAGE(AD436:AD441) -> 0.4450496248 | AV48: =AVERAGE(AE408:AE413) -> 22.83179739 | AW48: =AVERAGE(AF408:AF413) -> 0.4447368391 | AX48: =AVERAGE(AG435:AG439) -> 14.06610916 | AY48: =AVERAGE(AH435:AH439) -> 0.4449150248
B49: 0.1093731945 | C49: 1.275366148 | D49: 0.07584487398 | E49: 1.068017772 | F49: 0.06914577136 | G49: 0.9041889884 | H49: 0.0723233136 | I49: 0.7992261543 | J49: 0.08266724025 | K49: 1.230281747 | L49: 0.06626815225 | M49: 1.104390896 | N49: 0.06311440219 | O49: 1.425171691 | P49: 0.07534406769 | Q49: 1.093462364 | S49: 11.66068299 | T49: 0.02411302547 | U49: 14.08160784 | V49: 0.02580894153 | W49: 13.07656232 | X49: 0.01764144338 | Y49: 11.05074027 | Z49: 0.01948592994 | AA49: 14.88233722 | AB49: 0.02721299502 | AC49: 16.66548498 | AD49: 0.02257795974 | AE49: 22.58076828 | AF49: 0.03210431706 | AG49: 14.51291917 | AH49: 0.02874593501 | AJ49: =AVERAGE(S431:S435) -> 12.79125805 | AK49: =AVERAGE(T431:T435) -> 0.4550835435 | AL49: =AVERAGE(U447:U451) -> 11.2412892 | AM49: =AVERAGE(V447:V451) -> 0.4543116053 | AN49: =AVERAGE(W446:W450) -> 15.65180448 | AO49: =AVERAGE(X446:X450) -> 0.4558140578 | AP49: =AVERAGE(Y463:Y467) -> 9.444233609 | AQ49: =AVERAGE(Z463:Z467) -> 0.4556946504 | AR49: =AVERAGE(AA416:AA421) -> 27.96019973 | AS49: =AVERAGE(AB416:AB421) -> 0.4555980634 | AT49: =AVERAGE(AC442:AC446) -> 19.62701328 | AU49: =AVERAGE(AD442:AD446) -> 0.4552005262 | AV49: =AVERAGE(AE414:AE419) -> 22.82418643 | AW49: =AVERAGE(AF414:AF419) -> 0.4543042498 | AX49: =AVERAGE(AG440:AG445) -> 14.01379302 | AY49: =AVERAGE(AH440:AH445) -> 0.4546521018
B50: 0.1062665259 | C50: 1.298715656 | D50: 0.07987193763 | E50: 1.090688936 | F50: 0.06760386129 | G50: 0.9184716483 | H50: 0.07620831331 | I50: 0.8154354407 | J50: 0.07994523272 | K50: 1.26298105 | L50: 0.05941858515 | M50: 1.131907779 | N50: 0.04676964134 | O50: 1.461452705 | P50: 0.07204231082 | Q50: 1.116743813 | S50: 12.2213053 | T50: 0.02455448871 | U50: 13.6554711 | V50: 0.0263567964 | W50: 13.58608267 | X50: 0.01792010939 | Y50: 10.70008514 | Z50: 0.01988112849 | AA50: 15.79807834 | AB50: 0.02793628135 | AC50: 19.04972621 | AD50: 0.02314050973 | AE50: 31.24789209 | AF50: 0.03292160608 | AG50: 15.50122144 | AH50: 0.02935797895 | AJ50: =AVERAGE(S436:S440) -> 12.71686623 | AK50: =AVERAGE(T436:T440) -> 0.4652622529 | AL50: =AVERAGE(U452:U457) -> 11.23283923 | AM50: =AVERAGE(V452:V457) -> 0.464979718 | AN50: =AVERAGE(W451:W454) -> 15.90688773 | AO50: =AVERAGE(X451:X454) -> 0.464925341 | AP50: =AVERAGE(Y468:Y472) -> 9.421076486 | AQ50: =AVERAGE(Z468:Z472) -> 0.4657973627 | AR50: =AVERAGE(AA422:AA426) -> 27.53665034 | AS50: =AVERAGE(AB422:AB426) -> 0.4651358126 | AT50: =AVERAGE(AC447:AC452) -> 19.6072629 | AU50: =AVERAGE(AD447:AD452) -> 0.4651381876 | AV50: =AVERAGE(AE420:AE425) -> 22.74746955 | AW50: =AVERAGE(AF420:AF425) -> 0.4639177376 | AX50: =AVERAGE(AG446:AG450) -> 13.97888643 | AY50: =AVERAGE(AH446:AH450) -> 0.464538968
B51: 0.1098890727 | C51: 1.323632101 | D51: 0.07946637149 | E51: 1.115133979 | F51: 0.07300435255 | G51: 0.9347773764 | H51: 0.07534017786 | I51: 0.8303727041 | J51: 0.09490603581 | K51: 1.293504837 | L51: 0.06262060876 | M51: 1.16024762 | N51: 0.06289217 | O51: 1.495483951 | P51: 0.0773468148 | Q51: 1.140785078 | S51: 12.04516581 | T51: 0.02502557764 | U51: 14.03277837 | V51: 0.02694751755 | W51: 12.80440609 | X51: 0.01823824706 | Y51: 11.02164513 | Z51: 0.02024531385 | AA51: 13.62932111 | AB51: 0.02861144676 | AC51: 18.52820729 | AD51: 0.0237198841 | AE51: 23.77853953 | AF51: 0.0336882154 | AG51: 14.74896 | AH51: 0.02998999763 | AJ51: =AVERAGE(S441:S445) -> 12.62106108 | AK51: =AVERAGE(T441:T445) -> 0.4755056782 | AL51: =AVERAGE(U458:U462) -> 11.17431252 | AM51: =AVERAGE(V458:V462) -> 0.4757012231 | AN51: =AVERAGE(W455:W459) -> 15.60480628 | AO51: =AVERAGE(X455:X459) -> 0.4740830405 | AP51: =AVERAGE(Y473:Y476) -> 9.423883577 | AQ51: =AVERAGE(Z473:Z476) -> 0.4750852392 | AR51: =AVERAGE(AA427:AA433) -> 27.4278053 | AS51: =AVERAGE(AB427:AB433) -> 0.4752660873 | AT51: =AVERAGE(AC453:AC457) -> 19.52626142 | AU51: =AVERAGE(AD453:AD457) -> 0.4752207516 | AV51: =AVERAGE(AE426:AE432) -> 22.77360311 | AW51: =AVERAGE(AF426:AF432) -> 0.474868977 | AX51: =AVERAGE(AG451:AG456) -> 14.05599704 | AY51: =AVERAGE(AH451:AH456) -> 0.474660981
B52: 0.1099491492 | C52: 1.351414208 | D52: 0.07991579051 | E52: 1.136286894 | F52: 0.05720809723 | G52: 0.9496721325 | H52: 0.0761938033 | I52: 0.8463014046 | J52: 0.1000459306 | K52: 1.32679145 | L52: 0.05807127804 | M52: 1.184134506 | N52: 0.05107327675 | O52: 1.529761714 | P52: 0.07192629493 | Q52: 1.163607026 | S52: 12.29126572 | T52: 0.02555084693 | U52: 14.21855289 | V52: 0.02745868352 | W52: 16.60030972 | X52: 0.01852885555 | Y52: 11.1072209 | Z52: 0.02063367144 | AA52: 13.26182327 | AB52: 0.02934772398 | AC52: 20.39105296 | AD52: 0.02420822311 | AE52: 29.95229231 | AF52: 0.03446037793 | AG52: 16.17776959 | AH52: 0.03058996181 | AJ52: =AVERAGE(S446:S449) -> 12.59175118 | AK52: =AVERAGE(T446:T449) -> 0.4849461839 | AL52: =AVERAGE(U463:U467) -> 11.1469545 | AM52: =AVERAGE(V463:V467) -> 0.4854392422 | AN52: =AVERAGE(W460:W464) -> 15.25586682 | AO52: =AVERAGE(X460:X464) -> 0.4841876668 | AP52: =AVERAGE(Y477:Y481) -> 9.406558028 | AQ52: =AVERAGE(Z477:Z481) -> 0.4845187229 | AR52: =AVERAGE(AA434:AA438) -> 27.18344098 | AS52: =AVERAGE(AB434:AB438) -> 0.485842513 | AT52: =AVERAGE(AC458:AC462) -> 19.56413572 | AU52: =AVERAGE(AD458:AD462) -> 0.4847144933 | AV52: =AVERAGE(AE433:AE438) -> 22.61900061 | AW52: =AVERAGE(AF433:AF438) -> 0.4854610779 | AX52: =AVERAGE(AG457:AG461) -> 14.07417901 | AY52: =AVERAGE(AH457:AH461) -> 0.4849023865
B53: 0.1113941396 | C53: 1.378883595 | D53: 0.07536258548 | E53: 1.159624755 | F53: 0.05505166327 | G53: 0.9638942012 | H53: 0.08284723386 | I53: 0.8640751414 | J53: 0.09614697347 | K53: 1.358710947 | L53: 0.05766631414 | M53: 1.211978923 | N53: 0.05321713164 | O53: 1.564864967 | P53: 0.07148093958 | Q53: 1.187591308 | S53: 12.37842134 | T53: 0.02607020368 | U53: 15.38727403 | V53: 0.02802264931 | W53: 17.50890244 | X53: 0.01880633938 | Y53: 10.42974039 | Z53: 0.02106701285 | AA53: 14.13160392 | AB53: 0.03005376153 | AC53: 21.01710402 | AD53: 0.02477746913 | AE53: 29.40528583 | AF53: 0.03525113596 | AG53: 16.61409761 | AH53: 0.03122048244 | AJ53: =AVERAGE(S450:S454) -> 12.5429257 | AK53: =AVERAGE(T450:T454) -> 0.4944497653 | AL53: =AVERAGE(U468:U472) -> 11.10473797 | AM53: =AVERAGE(V468:V472) -> 0.4954141061 | AN53: =AVERAGE(W465:W469) -> 15.45734451 | AO53: =AVERAGE(X465:X469) -> 0.4943798028 | AP53: =AVERAGE(Y482:Y486) -> 9.388379624 | AQ53: =AVERAGE(Z482:Z486) -> 0.4951143113 | AR53: =AVERAGE(AA439:AA444) -> 27.25268424 | AS53: =AVERAGE(AB439:AB444) -> 0.495278824 | AT53: =AVERAGE(AC463:AC468) -> 19.6487671 | AU53: =AVERAGE(AD463:AD468) -> 0.4950805654 | AV53: =AVERAGE(AE439:AE444) -> 22.6766128 | AW53: =AVERAGE(AF439:AF444) -> 0.4952310902 | AX53: =AVERAGE(AG462:AG467) -> 14.01680467 | AY53: =AVERAGE(AH462:AH467) -> 0.4951866305
B54: 0.1088601599 | C54: 1.401074138 | D54: 0.09129362181 | E54: 1.181967784 | F54: 0.07092013955 | G54: 0.9772289736 | H54: 0.08589384456 | I54: 0.8791562357 | J54: 0.09296013042 | K54: 1.387000878 | L54: 0.08148844664 | M54: 1.241210729 | N54: 0.04726530363 | O54: 1.598349503 | P54: 0.08044581757 | Q54: 1.210651045 | S54: 12.87040308 | T54: 0.02648975467 | U54: 12.94688239 | V54: 0.02856257473 | W54: 13.77928723 | X54: 0.01906651135 | Y54: 10.23538113 | Z54: 0.02143470496 | AA54: 14.92038438 | AB54: 0.03067951556 | AC54: 15.23173873 | AD54: 0.02537507867 | AE54: 33.81654999 | AF54: 0.03600542975 | AG54: 15.04927268 | AH54: 0.03182669783 | AJ54: =AVERAGE(S455:S459) -> 12.51295103 | AK54: =AVERAGE(T455:T459) -> 0.5050586808 | AL54: =AVERAGE(U473:U477) -> 11.06261192 | AM54: =AVERAGE(V473:V477) -> 0.5055736422 | AN54: =AVERAGE(W470:W474) -> 15.486715 | AO54: =AVERAGE(X470:X474) -> 0.5048417302 | AP54: =AVERAGE(Y487:Y489) -> 9.408752656 | AQ54: =AVERAGE(Z487:Z489) -> 0.5036695074 | AR54: =AVERAGE(AA445:AA449) -> 26.96138341 | AS54: =AVERAGE(AB445:AB449) -> 0.5047922495 | AT54: =AVERAGE(AC469:AC473) -> 19.52071989 | AU54: =AVERAGE(AD469:AD473) -> 0.5055943384 | AV54: =AVERAGE(AE445:AE450) -> 22.5470978 | AW54: =AVERAGE(AF445:AF450) -> 0.5049629338 | AX54: =AVERAGE(AG468:AG472) -> 13.9841717 | AY54: =AVERAGE(AH468:AH472) -> 0.5056330248
B55: 0.1250836998 | C55: 1.42232188 | D55: 0.08819452176 | E55: 1.207548565 | F55: 0.08300259709 | G55: 0.9935056209 | H55: 0.08368878936 | I55: 0.8955937599 | J55: 0.09057483946 | K55: 1.41670688 | L55: 0.07018594071 | M55: 1.267706962 | N55: 0.04467042784 | O55: 1.634200557 | P55: 0.0828385053 | Q55: 1.234073303 | S55: 11.37096106 | T55: 0.02689148036 | U55: 13.69187724 | V55: 0.02918074129 | W55: 11.96957271 | X55: 0.01938408163 | Y55: 10.70147826 | Z55: 0.02183546817 | AA55: 15.64128502 | AB55: 0.0313365921 | AC55: 18.06212112 | AD55: 0.02591676269 | AE55: 36.58349911 | AF55: 0.03681303322 | AG55: 14.89733909 | AH55: 0.0324424435 | AJ55: =AVERAGE(S460:S463) -> 12.47293648 | AK55: =AVERAGE(T460:T463) -> 0.514876676 | AL55: =AVERAGE(U478:U482) -> 11.03039168 | AM55: =AVERAGE(V478:V482) -> 0.5157344799 | AN55: =AVERAGE(W475:W478) -> 15.12093365 | AO55: =AVERAGE(X475:X478) -> 0.5147620316 | AP55: =AVERAGE(Y490:Y494) -> 9.438011951 | AQ55: =AVERAGE(Z490:Z494) -> 0.514417064 | AR55: =AVERAGE(AA450:AA455) -> 26.68860718 | AS55: =AVERAGE(AB450:AB455) -> 0.5146295688 | AT55: =AVERAGE(AC474:AC477) -> 19.55333977 | AU55: =AVERAGE(AD474:AD477) -> 0.5144976789 | AV55: =AVERAGE(AE451:AE456) -> 22.46563636 | AW55: =AVERAGE(AF451:AF456) -> 0.5151042649 | AX55: =AVERAGE(AG473:AG477) -> 13.95377911 | AY55: =AVERAGE(AH473:AH477) -> 0.5152430518
B56: 0.1235034689 | C56: 1.444399049 | D56: 0.09422648698 | E56: 1.231715392 | F56: 0.09301280603 | G56: 1.010360424 | H56: 0.08809094628 | I56: 0.9119005221 | J56: 0.1030854881 | K56: 1.446381834 | L56: 0.06163996955 | M56: 1.294881989 | N56: 0.05129932426 | O56: 1.668329455 | P56: 0.08456180752 | Q56: 1.257546678 | S56: 11.69521036 | T56: 0.02730888781 | U56: 13.07185943 | V56: 0.02976473927 | W56: 10.86259481 | X56: 0.0197129322 | Y56: 10.35180754 | Z56: 0.02223304328 | AA56: 14.0308967 | AB56: 0.03199298189 | AC56: 21.00718088 | AD56: 0.02647232383 | AE56: 32.52147039 | AF56: 0.03758184231 | AG56: 14.87133158 | AH56: 0.03305953297 | AJ56: =AVERAGE(S464:S468) -> 12.36854192 | AK56: =AVERAGE(T464:T468) -> 0.5245944658 | AL56: =AVERAGE(U483:U486) -> 10.995288 | AM56: =AVERAGE(V483:V486) -> 0.5249911952 | AN56: =AVERAGE(W479:W483) -> 15.15369611 | AO56: =AVERAGE(X479:X483) -> 0.524555472 | AP56: =AVERAGE(Y495:Y499) -> 9.481745945 | AQ56: =AVERAGE(Z495:Z499) -> 0.5252998842 | AR56: =AVERAGE(AA456:AA461) -> 26.70148427 | AS56: =AVERAGE(AB456:AB461) -> 0.5249948628 | AT56: =AVERAGE(AC478:AC483) -> 19.48843653 | AU56: =AVERAGE(AD478:AD483) -> 0.5244941297 | AV56: =AVERAGE(AE457:AE462) -> 22.60945426 | AW56: =AVERAGE(AF457:AF462) -> 0.525541968 | AX56: =AVERAGE(AG478:AG482) -> 13.98619448 | AY56: =AVERAGE(AH478:AH482) -> 0.5249097472
B57: 0.1191029201 | C57: 1.469143693 | D57: 0.09865776325 | E57: 1.252707189 | F57: 0.08798204362 | G57: 1.02751708 | H57: 0.09356942028 | I57: 0.9303518962 | J57: 0.1091422016 | K57: 1.478394041 | L57: 0.07450537135 | M57: 1.325086848 | N57: 0.04702350435 | O57: 1.704235339 | P57: 0.08589375816 | Q57: 1.281765112 | S57: 12.33507702 | T57: 0.02777672855 | U57: 12.69750243 | V57: 0.03027201178 | W57: 11.67871349 | X57: 0.02004767213 | Y57: 9.942905422 | Z57: 0.02268290617 | AA57: 13.54557649 | AB57: 0.03270107012 | AC57: 17.78511836 | AD57: 0.02708982628 | AE57: 36.2422019 | AF57: 0.03839068092 | AG57: 14.92268052 | AH57: 0.03369620922 | AJ57: =AVERAGE(S469:S473) -> 12.26199568 | AK57: =AVERAGE(T469:T473) -> 0.535536952 | AL57: =AVERAGE(U487:U491) -> 11.0061584 | AM57: =AVERAGE(V487:V491) -> 0.5341785736 | AN57: =AVERAGE(W484:W488) -> 15.02308017 | AO57: =AVERAGE(X484:X488) -> 0.5352188306 | AP57: =AVERAGE(Y500:Y503) -> 9.49156263 | AQ57: =AVERAGE(Z500:Z503) -> 0.5351661717 | AR57: =AVERAGE(AA462:AA466) -> 26.66520625 | AS57: =AVERAGE(AB462:AB466) -> 0.5349570089 | AT57: =AVERAGE(AC484:AC488) -> 19.38330865 | AU57: =AVERAGE(AD484:AD488) -> 0.535511989 | AV57: =AVERAGE(AE463:AE467) -> 22.54800015 | AW57: =AVERAGE(AF463:AF467) -> 0.5348263362 | AX57: =AVERAGE(AG483:AG487) -> 13.92947481 | AY57: =AVERAGE(AH483:AH487) -> 0.5346197612
B58: 0.1277509083 | C58: 1.492124229 | D58: 0.09963514283 | E58: 1.277584517 | F58: 0.08455598727 | G58: 1.043130684 | H58: 0.1067170501 | I58: 0.9619073388 | J58: 0.1155614853 | K58: 1.508987867 | L58: 0.07638722658 | M58: 1.35362684 | N58: 0.03916928234 | O58: 1.739102634 | P58: 0.08684466127 | Q58: 1.3059868 | S58: 11.67995005 | T58: 0.02821121573 | U58: 12.82262945 | V58: 0.03087317922 | W58: 12.33656797 | X58: 0.02035230592 | Y58: 9.013623766 | Z58: 0.0234522593 | AA58: 13.05787878 | AB58: 0.03337778473 | AC58: 17.72059153 | AD58: 0.02767329251 | AE58: 44.39965529 | AF58: 0.03917612362 | AG58: 15.03819326 | AH58: 0.03433297103 | AJ58: =AVERAGE(S474:S477) -> 12.2541367 | AK58: =AVERAGE(T474:T477) -> 0.5456281899 | AL58: =AVERAGE(U492:U496) -> 11.00836716 | AM58: =AVERAGE(V492:V496) -> 0.5446892886 | AN58: =AVERAGE(W489:W492) -> 14.64351062 | AO58: =AVERAGE(X489:X492) -> 0.5450133075 | AP58: =AVERAGE(Y504:Y508) -> 9.53979477 | AQ58: =AVERAGE(Z504:Z508) -> 0.5451298255 | AR58: =AVERAGE(AA467:AA472) -> 26.46220576 | AS58: =AVERAGE(AB467:AB472) -> 0.5445491518 | AT58: =AVERAGE(AC489:AC493) -> 19.3671682 | AU58: =AVERAGE(AD489:AD493) -> 0.5458421155 | AV58: =AVERAGE(AE468:AE473) -> 22.31776972 | AW58: =AVERAGE(AF468:AF473) -> 0.5443062963 | AX58: =AVERAGE(AG488:AG492) -> 13.87245866 | AY58: =AVERAGE(AH488:AH492) -> 0.5443948574
B59: 0.1291219021 | C59: 1.517200731 | D59: 0.1004276797 | E59: 1.303917373 | F59: 0.07681877042 | G59: 1.06176251 | H59: 0.1014812912 | I59: 0.9788049488 | J59: 0.1199223722 | K59: 1.541561246 | L59: 0.08061762278 | M59: 1.383305243 | N59: 0.05688463027 | O59: 1.773248314 | P59: 0.08982304587 | Q59: 1.330426212 | S59: 11.75014236 | T59: 0.02868533082 | U59: 12.98364532 | V59: 0.0315095199 | W59: 13.82165458 | X59: 0.0207158276 | Y59: 9.645176344 | Z59: 0.02386423987 | AA59: 12.85465937 | AB59: 0.03409828571 | AC59: 17.15884438 | AD59: 0.0282800322 | AE59: 31.17271405 | AF59: 0.03994531075 | AG59: 14.81163547 | AH59: 0.03497545657 | AJ59: =AVERAGE(S478:S481) -> 12.24282198 | AK59: =AVERAGE(T478:T481) -> 0.5546524339 | AL59: =AVERAGE(U497:U501) -> 11.03522169 | AM59: =AVERAGE(V497:V501) -> 0.555389782 | AN59: =AVERAGE(W493:W497) -> 14.50696294 | AO59: =AVERAGE(X493:X497) -> 0.5549030072 | AP59: =AVERAGE(Y509:Y512) -> 9.543458872 | AQ59: =AVERAGE(Z509:Z512) -> 0.5551283496 | AR59: =AVERAGE(AA473:AA477) -> 26.13044067 | AS59: =AVERAGE(AB473:AB477) -> 0.5541740172 | AT59: =AVERAGE(AC494:AC497) -> 19.38235983 | AU59: =AVERAGE(AD494:AD497) -> 0.5554218622 | AV59: =AVERAGE(AE474:AE479) -> 22.28807654 | AW59: =AVERAGE(AF474:AF479) -> 0.5553960473 | AX59: =AVERAGE(AG493:AG497) -> 13.8499629 | AY59: =AVERAGE(AH493:AH497) -> 0.5542578484
B60: 0.1286920657 | C60: 1.542809452 | D60: 0.1139110078 | E60: 1.328672712 | F60: 0.07715276132 | G60: 1.081116792 | H60: 0.1084685326 | I60: 0.9989229424 | J60: 0.1103535915 | K60: 1.570946083 | L60: 0.08415834357 | M60: 1.406768173 | N60: 0.06944419195 | O60: 1.810308088 | P60: 0.09667923674 | Q60: 1.35526376 | S60: 11.98838051 | T60: 0.02916950844 | U60: 11.6641292 | V60: 0.03210773943 | W60: 14.01267788 | X60: 0.02109344497 | Y60: 9.209333977 | Z60: 0.02435473659 | AA60: 14.23556824 | AB60: 0.03474825831 | AC60: 16.7157303 | AD60: 0.02875970393 | AE60: 26.06853125 | AF60: 0.04078014263 | AG60: 14.01814707 | AH60: 0.03562840864 | AJ60: =AVERAGE(S482:S486) -> 12.28732776 | AK60: =AVERAGE(T482:T486) -> 0.5647279818 | AL60: =AVERAGE(U502:U505) -> 11.02470728 | AM60: =AVERAGE(V502:V505) -> 0.5650596155 | AN60: =AVERAGE(W498:W502) -> 14.72223167 | AO60: =AVERAGE(X498:X502) -> 0.5660520768 | AP60: =AVERAGE(Y513:Y517) -> 9.565644048 | AQ60: =AVERAGE(Z513:Z517) -> 0.5653001884 | AR60: =AVERAGE(AA478:AA483) -> 26.02418525 | AS60: =AVERAGE(AB478:AB483) -> 0.5641708772 | AT60: =AVERAGE(AC498:AC502) -> 19.31482184 | AU60: =AVERAGE(AD498:AD502) -> 0.5651372002 | AV60: =AVERAGE(AE480:AE484) -> 22.11427479 | AW60: =AVERAGE(AF480:AF484) -> 0.5651486247 | AX60: =AVERAGE(AG498:AG502) -> 13.92860332 | AY60: =AVERAGE(AH498:AH502) -> 0.564213717
B61: 0.1297644277 | C61: 1.566738878 | D61: 0.1167818035 | E61: 1.354799424 | F61: 0.08027506371 | G61: 1.102490535 | H61: 0.110450685 | I61: 1.017528834 | J61: 0.1207294315 | K61: 1.605389408 | L61: 0.08995609358 | M61: 1.432595017 | N61: 0.07365903507 | O61: 1.845767375 | P61: 0.09865295245 | Q61: 1.380199363 | S61: 12.07371623 | T61: 0.02962193604 | U61: 11.6011175 | V61: 0.03273909857 | W61: 13.73391043 | X61: 0.02151046362 | Y61: 9.212517184 | Z61: 0.02480836676 | AA61: 13.29741546 | AB61: 0.03551012123 | AC61: 15.92549165 | AD61: 0.02928770307 | AE61: 25.05826167 | AF61: 0.0415789209 | AG61: 13.99045166 | AH61: 0.03628393851 | AJ61: =AVERAGE(S487:S490) -> 12.29538898 | AK61: =AVERAGE(T487:T490) -> 0.5746829811 | AL61: =AVERAGE(U506:U510) -> 11.11881204 | AM61: =AVERAGE(V506:V510) -> 0.5747564697 | AN61: =AVERAGE(W503:W506) -> 14.62801785 | AO61: =AVERAGE(X503:X506) -> 0.5762427235 | AP61: =AVERAGE(Y518:Y521) -> 9.579405865 | AQ61: =AVERAGE(Z518:Z521) -> 0.5754521021 | AR61: =AVERAGE(AA484:AA489) -> 26.04441633 | AS61: =AVERAGE(AB484:AB489) -> 0.5747778842 | AT61: =AVERAGE(AC503:AC506) -> 19.2452315 | AU61: =AVERAGE(AD503:AD506) -> 0.5745975752 | AV61: =AVERAGE(AE485:AE489) -> 22.24107408 | AW61: =AVERAGE(AF485:AF489) -> 0.573943101 | AX61: =AVERAGE(AG503:AG507) -> 13.96439865 | AY61: =AVERAGE(AH503:AH507) -> 0.5743327935
B62: 0.1293168589 | C62: 1.588144212 | D62: 0.1119654501 | E62: 1.379360558 | F62: 0.08794904376 | G62: 1.119830215 | H62: 0.1127808169 | I62: 1.036896769 | J62: 0.1159676537 | K62: 1.637505012 | L62: 0.07422223066 | M62: 1.45728345 | N62: 0.05933600788 | O62: 1.880614416 | P62: 0.09520968733 | Q62: 1.404025966 | S62: 12.28102991 | T62: 0.0300266413 | U62: 12.31951961 | V62: 0.03333262509 | W62: 12.73271621 | X62: 0.02184877452 | Y62: 9.193910792 | Z62: 0.02528057633 | AA62: 14.12035994 | AB62: 0.03622049653 | AC62: 19.63405623 | AD62: 0.02979242875 | AE62: 31.69431992 | AF62: 0.04236390735 | AG62: 14.74667132 | AH62: 0.03691031395 | AJ62: =AVERAGE(S491:S495) -> 12.2902277 | AK62: =AVERAGE(T491:T495) -> 0.5849713537 | AL62: =AVERAGE(U511:U515) -> 11.13998466 | AM62: =AVERAGE(V511:V515) -> 0.5856119561 | AN62: =AVERAGE(W507:W510) -> 14.44241318 | AO62: =AVERAGE(X507:X510) -> 0.5852800639 | AP62: =AVERAGE(Y522:Y525) -> 9.578817661 | AQ62: =AVERAGE(Z522:Z525) -> 0.5847348565 | AR62: =AVERAGE(AA490:AA494) -> 26.2884683 | AS62: =AVERAGE(AB490:AB494) -> 0.585135553 | AT62: =AVERAGE(AC507:AC511) -> 19.182388 | AU62: =AVERAGE(AD507:AD511) -> 0.5844812061 | AV62: =AVERAGE(AE490:AE495) -> 22.29977923 | AW62: =AVERAGE(AF490:AF495) -> 0.5846035102 | AX62: =AVERAGE(AG508:AG512) -> 13.95238336 | AY62: =AVERAGE(AH508:AH512) -> 0.5846088869
B63: 0.1394822448 | C63: 1.615994315 | D63: 0.1061177999 | E63: 1.4021809 | F63: 0.09889027104 | G63: 1.134813465 | H63: 0.1097070798 | I63: 1.055058026 | J63: 0.1273919766 | K63: 1.669083271 | L63: 0.08910227567 | M63: 1.483796321 | N63: 0.05749997372 | O63: 1.915995002 | P63: 0.1002572084 | Q63: 1.428384806 | S63: 11.58566323 | T63: 0.03055319615 | U63: 13.21343734 | V63: 0.03388408489 | W63: 11.47548139 | X63: 0.0221411096 | Y63: 9.617045938 | Z63: 0.02572336587 | AA63: 13.10194971 | AB63: 0.03691898613 | AC63: 16.65273204 | AD63: 0.03033445289 | AE63: 33.32166744 | AF63: 0.04316091276 | AG63: 14.24720306 | AH63: 0.03755068135 | AJ63: =AVERAGE(S496:S499) -> 12.21235266 | AK63: =AVERAGE(T496:T499) -> 0.5953017109 | AL63: =AVERAGE(U516:U519) -> 11.16164869 | AM63: =AVERAGE(V516:V519) -> 0.5955157532 | AN63: =AVERAGE(W511:W514) -> 14.4991555 | AO63: =AVERAGE(X511:X514) -> 0.5944525666 | AP63: =AVERAGE(Y526:Y529) -> 9.58220488 | AQ63: =AVERAGE(Z526:Z529) -> 0.5941436705 | AR63: =AVERAGE(AA495:AA500) -> 25.93547283 | AS63: =AVERAGE(AB495:AB500) -> 0.5951535646 | AT63: =AVERAGE(AC512:AC516) -> 19.05428758 | AU63: =AVERAGE(AD512:AD516) -> 0.5953311534 | AV63: =AVERAGE(AE496:AE500) -> 22.11084958 | AW63: =AVERAGE(AF496:AF500) -> 0.5946272919 | AX63: =AVERAGE(AG513:AG517) -> 13.88987586 | AY63: =AVERAGE(AH513:AH517) -> 0.5950059396
B64: 0.1248395319 | C64: 1.641101698 | D64: 0.1206480339 | E64: 1.425678656 | F64: 0.1099200547 | G64: 1.155988354 | H64: 0.1040800164 | I64: 1.075877485 | J64: 0.1249903316 | K64: 1.700008804 | L64: 0.0773458307 | M64: 1.513721387 | N64: 0.06676098332 | O64: 1.952685723 | P64: 0.1020492086 | Q64: 1.454345431 | S64: 13.1456893 | T64: 0.03102789509 | U64: 11.81684118 | V64: 0.03445191459 | W64: 10.51662826 | X64: 0.02255424845 | Y64: 10.33702263 | Z64: 0.02623096501 | AA64: 13.60112243 | AB64: 0.03760303786 | AC64: 19.57082073 | AD64: 0.03094623531 | AE64: 29.24890596 | AF64: 0.04398743109 | AG64: 14.25141313 | AH64: 0.03823315791 | AJ64: =AVERAGE(S500:S503) -> 12.15579212 | AK64: =AVERAGE(T500:T503) -> 0.6045903494 | AL64: =AVERAGE(U520:U523) -> 11.18088679 | AM64: =AVERAGE(V520:V523) -> 0.6044482379 | AN64: =AVERAGE(W515:W518) -> 14.44170276 | AO64: =AVERAGE(X515:X518) -> 0.6038614023 | AP64: =AVERAGE(Y530:Y534) -> 9.576042252 | AQ64: =AVERAGE(Z530:Z534) -> 0.6047276628 | AR64: =AVERAGE(AA501:AA505) -> 25.87015829 | AS64: =AVERAGE(AB501:AB505) -> 0.6053909536 | AT64: =AVERAGE(AC517:AC521) -> 19.02334168 | AU64: =AVERAGE(AD517:AD521) -> 0.6061604872 | AV64: =AVERAGE(AE501:AE505) -> 22.15826284 | AW64: =AVERAGE(AF501:AF505) -> 0.6036403724 | AX64: =AVERAGE(AG518:AG522) -> 13.8140313 | AY64: =AVERAGE(AH518:AH522) -> 0.6055049788
B65: 0.1401709765 | C65: 1.668260829 | D65: 0.1248237242 | E65: 1.447448422 | F65: 0.1218255858 | G65: 1.17478745 | H65: 0.1192228993 | I65: 1.095997861 | J65: 0.1273956274 | K65: 1.729699354 | L65: 0.07328300426 | M65: 1.538275132 | N65: 0.08011660849 | O65: 1.988530701 | P65: 0.1083211632 | Q65: 1.47872676 | S65: 11.9016138 | T65: 0.03154138592 | U65: 11.59594004 | V65: 0.03497798694 | W65: 9.643191471 | X65: 0.0229210337 | Y65: 9.19284691 | Z65: 0.02672151983 | AA65: 13.577384 | AB65: 0.03825977263 | AC65: 20.99088523 | AD65: 0.03144820745 | AE65: 24.82045531 | AF65: 0.04479489768 | AG65: 13.65131906 | AH65: 0.0388741165 | AJ65: =AVERAGE(S504:S508) -> 12.10809504 | AK65: =AVERAGE(T504:T508) -> 0.6148740665 | AL65: =AVERAGE(U524:U528) -> 11.18220971 | AM65: =AVERAGE(V524:V528) -> 0.6144826438 | AN65: =AVERAGE(W519:W523) -> 14.12227883 | AO65: =AVERAGE(X519:X523) -> 0.6145168801 | AP65: =AVERAGE(Y535:Y537) -> 9.551605907 | AQ65: =AVERAGE(Z535:Z537) -> 0.6142541596 | AR65: =AVERAGE(AA506:AA510) -> 25.86693919 | AS65: =AVERAGE(AB506:AB510) -> 0.6151211805 | AT65: =AVERAGE(AC522:AC525) -> 18.95569776 | AU65: =AVERAGE(AD522:AD525) -> 0.6162698574 | AV65: =AVERAGE(AE506:AE511) -> 22.10109338 | AW65: =AVERAGE(AF506:AF511) -> 0.6148072255 | AX65: =AVERAGE(AG523:AG526) -> 13.83601044 | AY65: =AVERAGE(AH523:AH526) -> 0.6150312643
B66: 0.1379567136 | C66: 1.69559292 | D66: 0.127068609 | E66: 1.470337526 | F66: 0.129416349 | G66: 1.194837536 | H66: 0.1136828462 | I66: 1.11553461 | J66: 0.1326116547 | K66: 1.760820993 | L66: 0.09405044218 | M66: 1.564832127 | N66: 0.0853330642 | O66: 2.023009845 | P66: 0.1129841991 | Q66: 1.50408124 | S66: 12.29076045 | T66: 0.03205814686 | U66: 11.57120974 | V66: 0.0355311084 | W66: 9.232508452 | X66: 0.02331222677 | Y66: 9.812690721 | Z66: 0.02719784524 | AA66: 13.27802595 | AB66: 0.03894816211 | AC66: 16.6382219 | AD66: 0.03199113367 | AE66: 23.7072214 | AF66: 0.04557159666 | AG66: 13.31231493 | AH66: 0.03954065817 | AJ66: =AVERAGE(S509:S512) -> 12.10792774 | AK66: =AVERAGE(T509:T512) -> 0.6254358221 | AL66: =AVERAGE(U529:U532) -> 11.16344667 | AM66: =AVERAGE(V529:V532) -> 0.6244580722 | AN66: =AVERAGE(W524:W527) -> 13.96117793 | AO66: =AVERAGE(X524:X527) -> 0.6248904291 | AP66: =AVERAGE(Y538:Y541) -> 9.597059974 | AQ66: =AVERAGE(Z538:Z541) -> 0.6249793257 | AR66: =AVERAGE(AA511:AA515) -> 25.85028935 | AS66: =AVERAGE(AB511:AB515) -> 0.6248531451 | AT66: =AVERAGE(AC526:AC529) -> 18.80819737 | AU66: =AVERAGE(AD526:AD529) -> 0.6252215371 | AV66: =AVERAGE(AE512:AE516) -> 22.12187498 | AW66: =AVERAGE(AF512:AF516) -> 0.6254999808 | AX66: =AVERAGE(AG527:AG531) -> 13.82102793 | AY66: =AVERAGE(AH527:AH531) -> 0.6247245403
B67: 0.1411274696 | C67: 1.720567937 | D67: 0.1387774199 | E67: 1.493214691 | F67: 0.1408147191 | G67: 1.212317835 | H67: 0.1148564865 | I67: 1.136069873 | J67: 0.142239357 | K67: 1.792355352 | L67: 0.08910182863 | M67: 1.59289326 | N67: 0.07462223371 | O67: 2.056390797 | P67: 0.1172777617 | Q67: 1.52856373 | S67: 12.1915878 | T67: 0.03253034319 | U67: 10.75978132 | V67: 0.03608394133 | W67: 8.609311888 | X67: 0.02365328125 | Y67: 9.891212129 | Z67: 0.02769851539 | AA67: 12.60098041 | AB67: 0.03964568067 | AC67: 17.877223 | AD67: 0.03256481019 | AE67: 27.55734712 | AF67: 0.04632355706 | AG67: 13.03370484 | AH67: 0.04018427619 | AJ67: =AVERAGE(S513:S516) -> 12.06570784 | AK67: =AVERAGE(T513:T516) -> 0.6348560986 | AL67: =AVERAGE(U533:U537) -> 11.15924329 | AM67: =AVERAGE(V533:V537) -> 0.6347124781 | AN67: =AVERAGE(W528:W531) -> 14.08191185 | AO67: =AVERAGE(X528:X531) -> 0.6343825777 | AP67: =AVERAGE(Y542:Y545) -> 9.619601775 | AQ67: =AVERAGE(Z542:Z545) -> 0.6346373719 | AR67: =AVERAGE(AA516:AA521) -> 25.72619921 | AS67: =AVERAGE(AB516:AB521) -> 0.6355055203 | AT67: =AVERAGE(AC530:AC533) -> 18.82463225 | AU67: =AVERAGE(AD530:AD533) -> 0.6343456339 | AV67: =AVERAGE(AE517:AE521) -> 21.92421499 | AW67: =AVERAGE(AF517:AF521) -> 0.6350412279 | AX67: =AVERAGE(AG532:AG536) -> 13.76408415 | AY67: =AVERAGE(AH532:AH536) -> 0.63559636
B68: 0.1301213726 | C68: 1.74725545 | D68: 0.1268150906 | E68: 1.515518592 | F68: 0.1490371798 | G68: 1.237766722 | H68: 0.1185986772 | I68: 1.15656239 | J68: 0.1347956806 | K68: 1.820679797 | L68: 0.09635871897 | M68: 1.623973519 | N68: 0.06550187866 | O68: 2.09425465 | P68: 0.1135861812 | Q68: 1.555717257 | S68: =C68/B68 -> 13.42788978 | T68: =C68/MAX($C$4:$C$682) -> 0.03303491726 | U68: 11.95061711 | V68: 0.0366229212 | W68: 8.305086843 | X68: 0.02414980918 | Y68: 9.751899574 | Z68: 0.02819814338 | AA68: 13.50695948 | AB68: 0.04027219811 | AC68: 16.85341541 | AD68: 0.03320020916 | AE68: 31.97243641 | AF68: 0.0471765021 | AG68: 13.69636025 | AH68: 0.04089811284 | AJ68: =AVERAGE(S517:S521) -> 12.01554136 | AK68: =AVERAGE(T517:T521) -> 0.6453870904 | AL68: =AVERAGE(U538:U541) -> 11.16202556 | AM68: =AVERAGE(V538:V541) -> 0.6449157239 | AN68: =AVERAGE(W532:W535) -> 14.03373243 | AO68: =AVERAGE(X532:X535) -> 0.6439145327 | AP68: =AVERAGE(Y546:Y549) -> 9.641549905 | AQ68: =AVERAGE(Z546:Z549) -> 0.6443576663 | AR68: =AVERAGE(AA522:AA525) -> 25.56938027 | AS68: =AVERAGE(AB522:AB525) -> 0.6454508127 | AT68: =AVERAGE(AC534:AC537) -> 18.76333949 | AU68: =AVERAGE(AD534:AD537) -> 0.6436130447 | AV68: =AVERAGE(AE522:AE526) -> 21.96188265 | AW68: =AVERAGE(AF522:AF526) -> 0.6456638891 | AX68: =AVERAGE(AG537:AG540) -> 13.74928552 | AY68: =AVERAGE(AH537:AH540) -> 0.645470536
B69: 0.143044889 | C69: 1.773196029 | D69: 0.1448066905 | E69: 1.53622987 | F69: 0.1565464213 | G69: 1.256404658 | H69: 0.1182731986 | I69: 1.177184514 | J69: 0.1243892809 | K69: 1.855068392 | L69: 0.09618625666 | M69: 1.651298569 | N69: 0.08562253788 | O69: 2.130655885 | P69: 0.123510547 | Q69: 1.580642481 | S69: 12.39608099 | T69: 0.03352536923 | U69: =E69/D69 -> 10.60883213 | V69: =E69/MAX($E$4:$E$682) -> 0.03712341492 | W69: 8.025764162 | X69: 0.02451345009 | Y69: 9.953096118 | Z69: 0.02870093131 | AA69: 14.91341037 | AB69: 0.04103285043 | AC69: 17.16771841 | AD69: 0.03375883735 | AE69: 24.88428792 | AF69: 0.0479964993 | AG69: 12.79763161 | AH69: 0.04155336984 | AJ69: =AVERAGE(S522:S525) -> 11.91821742 | AK69: =AVERAGE(T522:T525) -> 0.6560524086 | AL69: =AVERAGE(U542:U545) -> 11.16477335 | AM69: =AVERAGE(V542:V545) -> 0.6542092435 | AN69: =AVERAGE(W536:W540) -> 13.79122408 | AO69: =AVERAGE(X536:X540) -> 0.6549050021 | AP69: =AVERAGE(Y550:Y553) -> 9.66750624 | AQ69: =AVERAGE(Z550:Z553) -> 0.6541055217 | AR69: =AVERAGE(AA526:AA530) -> 25.33240645 | AS69: =AVERAGE(AB526:AB530) -> 0.6545331804 | AT69: =AVERAGE(AC538:AC542) -> 18.69162632 | AU69: =AVERAGE(AD538:AD542) -> 0.6540803335 | AV69: =AVERAGE(AE527:AE530) -> 22.02330823 | AW69: =AVERAGE(AF527:AF530) -> 0.654111333 | AX69: =AVERAGE(AG541:AG545) -> 13.75866312 | AY69: =AVERAGE(AH541:AH545) -> 0.6554795615
B70: 0.1433575402 | C70: 1.801768129 | D70: 0.1354136194 | E70: 1.557510672 | F70: 0.1642720401 | G70: 1.280214711 | H70: 0.1210526998 | I70: 1.196920908 | J70: 0.1442958166 | K70: 1.88333825 | L70: 0.08760090917 | M70: 1.67778294 | N70: 0.07691576456 | O70: 2.167009524 | P70: 0.1210264251 | Q70: 1.606808061 | S70: 12.56835272 | T70: 0.03406557471 | U70: 11.5018761 | V70: 0.03763767132 | W70: =G70/F70 -> 7.793259949 | X70: =G70/MAX($G$4:$G$682) -> 0.02497800308 | Y70: =I70/H70 -> 9.887601928 | Z70: =I70/MAX($I$4:$I$682) -> 0.02918212426 | AA70: =K70/J70 -> 13.05192551 | AB70: =K70/MAX($K$4:$K$682) -> 0.04165816046 | AC70: =M70/L70 -> 19.15257451 | AD70: =M70/MAX($M$4:$M$682) -> 0.03430027884 | AE70: =O70/N70 -> 28.17380204 | AF70: =O70/MAX($O$4:$O$682) -> 0.04881542432 | AG70: =Q70/P70 -> 13.27650602 | AH70: =Q70/MAX($Q$4:$Q$682) -> 0.04224123445 | AJ70: =AVERAGE(S526:S529) -> 11.83877555 | AK70: =AVERAGE(T526:T529) -> 0.6654680691 | AL70: =AVERAGE(U546:U550) -> 11.16938116 | AM70: =AVERAGE(V546:V550) -> 0.6648673955 | AN70: =AVERAGE(W541:W544) -> 13.86925687 | AO70: =AVERAGE(X541:X544) -> 0.6656224854 | AP70: =AVERAGE(Y554:Y557) -> 9.621546498 | AQ70: =AVERAGE(Z554:Z557) -> 0.663792157 | AR70: =AVERAGE(AA531:AA535) -> 25.03275912 | AS70: =AVERAGE(AB531:AB535) -> 0.6645698786 | AT70: =AVERAGE(AC543:AC546) -> 18.61329717 | AU70: =AVERAGE(AD543:AD546) -> 0.6642578282 | AV70: =AVERAGE(AE531:AE536) -> 22.01972618 | AW70: =AVERAGE(AF531:AF536) -> 0.6646539304 | AX70: =AVERAGE(AG546:AG549) -> 13.7638714 | AY70: =AVERAGE(AH546:AH549) -> 0.6655350478
B71: 0.154170456 | C71: 1.828699353 | D71: 0.1467306415 | E71: 1.57809392 | F71: 0.1698672896 | G71: 1.303102424 | H71: 0.1298695679 | I71: 1.221621852 | J71: 0.1288879414 | K71: 1.916068457 | L71: 0.09673993414 | M71: 1.705191465 | N71: 0.06924852729 | O71: 2.204375421 | P71: 0.1258383412 | Q71: 1.632774516 | S71: 11.86154209 | T71: 0.03457475654 | U71: 10.75504001 | V71: 0.03813507113 | W71: 7.671296969 | X71: 0.02542456048 | Y71: 9.406528971 | Z71: 0.0297843579 | AA71: 14.86615765 | AB71: 0.04238213035 | AC71: 17.62655185 | AD71: 0.03486061357 | AE71: 31.83281302 | AF71: 0.0496571521 | AG71: 12.97517514 | AH71: 0.04292386428 | AJ71: =AVERAGE(S530:S533) -> 11.78107116 | AK71: =AVERAGE(T530:T533) -> 0.6750803972 | AL71: =AVERAGE(U551:U554) -> 11.1517464 | AM71: =AVERAGE(V551:V554) -> 0.6756301508 | AN71: =AVERAGE(W545:W548) -> 13.89452624 | AO71: =AVERAGE(X545:X548) -> 0.6752352597 | AP71: =AVERAGE(Y558:Y562) -> 9.588034852 | AQ71: =AVERAGE(Z558:Z562) -> 0.6748778245 | AR71: =AVERAGE(AA536:AA540) -> 24.97282986 | AS71: =AVERAGE(AB536:AB540) -> 0.6748812185 | AT71: =AVERAGE(AC547:AC551) -> 18.45603294 | AU71: =AVERAGE(AD547:AD551) -> 0.6748925747 | AV71: =AVERAGE(AE537:AE540) -> 21.9174412 | AW71: =AVERAGE(AF537:AF540) -> 0.6752514517 | AX71: =AVERAGE(AG550:AG553) -> 13.72107085 | AY71: =AVERAGE(AH550:AH553) -> 0.6745708978
B72: 0.1448090995 | C72: 1.858466083 | D72: 0.1426398009 | E72: 1.600943896 | F72: 0.1616819451 | G72: 1.325308835 | H72: 0.1262523731 | I72: 1.242517342 | J72: 0.1365117232 | K72: 1.948277926 | L72: 0.08832917238 | M72: 1.735482113 | N72: 0.07573385412 | O72: 2.243064474 | P72: 0.1223744286 | Q72: 1.660031051 | S72: 12.83390401 | T72: 0.03513754858 | U72: 11.22368291 | V72: 0.03868724704 | W72: 8.197011941 | X72: 0.02585782516 | Y72: 9.841536534 | Z72: 0.03029381076 | AA72: 14.27187263 | AB72: 0.04309458189 | AC72: 19.64789284 | AD72: 0.03547986989 | AE72: 29.61772512 | AF72: 0.05052868612 | AG72: 13.56517918 | AH72: 0.04364040892 | AJ72: =AVERAGE(S534:S537) -> 11.75009865 | AK72: =AVERAGE(T534:T537) -> 0.6847185464 | AL72: =AVERAGE(U555:U558) -> 11.16899288 | AM72: =AVERAGE(V555:V558) -> 0.6852187251 | AN72: =AVERAGE(W549:W552) -> 13.67344219 | AO72: =AVERAGE(X549:X552) -> 0.6851285975 | AP72: =AVERAGE(Y563:Y566) -> 9.571431342 | AQ72: =AVERAGE(Z563:Z566) -> 0.6860967962 | AR72: =AVERAGE(AA541:AA545) -> 24.6755118 | AS72: =AVERAGE(AB541:AB545) -> 0.6852751378 | AT72: =AVERAGE(AC552:AC555) -> 18.42002352 | AU72: =AVERAGE(AD552:AD555) -> 0.6855640288 | AV72: =AVERAGE(AE541:AE545) -> 21.85214163 | AW72: =AVERAGE(AF541:AF545) -> 0.683985244 | AX72: =AVERAGE(AG554:AG558) -> 13.6863612 | AY72: =AVERAGE(AH554:AH558) -> 0.6848050645
B73: 0.1484669372 | C73: 1.885499951 | D73: 0.149007452 | E73: 1.623376835 | F73: 0.1536939169 | G73: 1.355086273 | H73: 0.1354785264 | I73: 1.265142557 | J73: 0.1427581906 | K73: 1.980646822 | L73: 0.1109042267 | M73: 1.759785723 | N73: 0.08062676216 | O73: 2.281277127 | P73: 0.1287614771 | Q73: 1.687774627 | S73: 12.69979691 | T73: 0.03564867111 | U73: 10.89460166 | V73: 0.03922934514 | W73: 8.816785337 | X73: 0.02643880656 | Y73: 9.338325353 | Z73: 0.03084543605 | AA73: 13.87413789 | AB73: 0.04381055985 | AC73: 15.86761637 | AD73: 0.03597672831 | AE73: 28.29429169 | AF73: 0.05138948846 | AG73: 13.10776068 | AH73: 0.04436975731 | AJ73: =AVERAGE(S538:S541) -> 11.72642779 | AK73: =AVERAGE(T538:T541) -> 0.6941703782 | AL73: =AVERAGE(U559:U562) -> 11.1434443 | AM73: =AVERAGE(V559:V562) -> 0.6946480708 | AN73: =AVERAGE(W553:W556) -> 13.46989161 | AO73: =AVERAGE(X553:X556) -> 0.6950426544 | AP73: =AVERAGE(Y567:Y569) -> 9.555310597 | AQ73: =AVERAGE(Z567:Z569) -> 0.6948635009 | AR73: =AVERAGE(AA546:AA549) -> 24.48490641 | AS73: =AVERAGE(AB546:AB549) -> 0.694800651 | AT73: =AVERAGE(AC556:AC559) -> 18.26369296 | AU73: =AVERAGE(AD556:AD559) -> 0.6950773239 | AV73: =AVERAGE(AE546:AE550) -> 21.62555428 | AW73: =AVERAGE(AF546:AF550) -> 0.6951689949 | AX73: =AVERAGE(AG559:AG562) -> 13.66331529 | AY73: =AVERAGE(AH559:AH562) -> 0.6951452552
B74: 0.1458759233 | C74: 1.945126633 | D74: 0.1403601468 | E74: 1.64202753 | F74: 0.1406864077 | G74: 1.375123034 | H74: 0.1373730227 | I74: 1.287730949 | J74: 0.1418231428 | K74: 2.010593986 | L74: 0.1054911812 | M74: 1.816130781 | N74: 0.09995941073 | O74: 2.354768084 | P74: 0.1266514044 | Q74: 1.713371057 | S74: 13.33411703 | T74: 0.03677601771 | U74: 11.69867351 | V74: 0.0396800443 | W74: 9.774384438 | X74: 0.02682973964 | Y74: 9.373972584 | Z74: 0.03139616354 | AA74: 14.17676937 | AB74: 0.04447297074 | AC74: 17.21594886 | AD74: 0.03712863609 | AE74: 23.55724255 | AF74: 0.05304499214 | AG74: 13.52824365 | AH74: 0.04504265959 | AJ74: =AVERAGE(S542:S545) -> 11.68894177 | AK74: =AVERAGE(T542:T545) -> 0.7035636824 | AL74: =AVERAGE(U563:U566) -> 11.14759433 | AM74: =AVERAGE(V563:V566) -> 0.7042717279 | AN74: =AVERAGE(W557:W560) -> 13.42556095 | AO74: =AVERAGE(X557:X560) -> 0.704910056 | AP74: =AVERAGE(Y570:Y573) -> 9.54743339 | AQ74: =AVERAGE(Z570:Z573) -> 0.7038779496 | AR74: =AVERAGE(AA550:AA554) -> 24.1782126 | AS74: =AVERAGE(AB550:AB554) -> 0.7043457947 | AT74: =AVERAGE(AC560:AC563) -> 18.29630207 | AU74: =AVERAGE(AD560:AD563) -> 0.704562214 | AV74: =AVERAGE(AE551:AE554) -> 21.74983831 | AW74: =AVERAGE(AF551:AF554) -> 0.7039797554 | AX74: =AVERAGE(AG563:AG566) -> 13.66226423 | AY74: =AVERAGE(AH563:AH566) -> 0.7043597524
B75: 0.1543365046 | C75: 1.975622754 | D75: 0.1561186959 | E75: 1.665411497 | F75: 0.1331008722 | G75: 1.399547686 | H75: 0.1437597846 | I75: 1.312538756 | J75: 0.1379283642 | K75: 2.040057382 | L75: 0.1110762979 | M75: 1.84078811 | N75: 0.08201902111 | O75: 2.390862039 | P75: 0.129337435 | Q75: 1.741021206 | S75: 12.80074833 | T75: 0.03735260017 | U75: 10.66759805 | V75: 0.04024512425 | W75: 10.51494001 | X75: 0.02730628395 | Y75: 9.130082933 | Z75: 0.03200100259 | AA75: 14.79070236 | AB75: 0.045124681 | AC75: 16.57228541 | AD75: 0.03763272588 | AE75: 29.15009234 | AF75: 0.05385806736 | AG75: 13.46107727 | AH75: 0.04576955192 | AJ75: =AVERAGE(S546:S549) -> 11.63012456 | AK75: =AVERAGE(T546:T549) -> 0.713164476 | AL75: =AVERAGE(U567:U571) -> 11.12798081 | AM75: =AVERAGE(V567:V571) -> 0.7150676305 | AN75: =AVERAGE(W561:W564) -> 13.35101309 | AO75: =AVERAGE(X561:X564) -> 0.714679022 | AP75: =AVERAGE(Y574:Y577) -> 9.595114028 | AQ75: =AVERAGE(Z574:Z577) -> 0.7139593398 | AR75: =AVERAGE(AA555:AA559) -> 23.87062453 | AS75: =AVERAGE(AB555:AB559) -> 0.7149141235 | AT75: =AVERAGE(AC564:AC568) -> 18.24677413 | AU75: =AVERAGE(AD564:AD568) -> 0.7152018418 | AV75: =AVERAGE(AE555:AE560) -> 21.74892312 | AW75: =AVERAGE(AF555:AF560) -> 0.7150644312 | AX75: =AVERAGE(AG567:AG571) -> 13.64281627 | AY75: =AVERAGE(AH567:AH571) -> 0.7148916098
B76: 0.1496821642 | C76: 2.004814351 | D76: 0.1574358717 | E76: 1.687960671 | F76: 0.1306309799 | G76: 1.42246205 | H76: 0.1466816167 | I76: 1.335319644 | J76: 0.1397345215 | K76: 2.072301364 | L76: 0.1010614634 | M76: 1.867826279 | N76: 0.08963605389 | O76: 2.430334627 | P76: 0.1288119497 | Q76: 1.767571096 | S76: 13.39380922 | T76: 0.03790451831 | U76: 10.72157605 | V76: 0.04079003121 | W76: 10.88916313 | X76: 0.02775336134 | Y76: 9.103524176 | Z76: 0.03255642334 | AA76: 14.83027488 | AB76: 0.04583789596 | AC76: 18.48208226 | AD76: 0.03818548912 | AE76: 27.11336032 | AF76: 0.05474725178 | AG76: 13.72210498 | AH76: 0.04646751959 | AJ76: =AVERAGE(S550:S554) -> 11.52976296 | AK76: =AVERAGE(T550:T554) -> 0.7242037489 | AL76: =AVERAGE(U572:U575) -> 11.12170363 | AM76: =AVERAGE(V572:V575) -> 0.7259820861 | AN76: =AVERAGE(W565:W568) -> 13.23092805 | AO76: =AVERAGE(X565:X568) -> 0.7245582713 | AP76: =AVERAGE(Y578:Y581) -> 9.613782456 | AQ76: =AVERAGE(Z578:Z581) -> 0.7240419412 | AR76: =AVERAGE(AA560:AA563) -> 23.6974619 | AS76: =AVERAGE(AB560:AB563) -> 0.7245745862 | AT76: =AVERAGE(AC569:AC572) -> 18.17388893 | AU76: =AVERAGE(AD569:AD572) -> 0.7262445757 | AV76: =AVERAGE(AE561:AE564) -> 21.66287291 | AW76: =AVERAGE(AF561:AF564) -> 0.726191321 | AX76: =AVERAGE(AG572:AG575) -> 13.57175404 | AY76: =AVERAGE(AH572:AH575) -> 0.7254569459
B77: 0.1542482649 | C77: 2.035157664 | D77: 0.158151413 | E77: 1.708902694 | F77: 0.1156269759 | G77: 1.444115705 | H77: 0.1509864256 | I77: 1.361861942 | J77: 0.1391799872 | K77: 2.10068415 | L77: 0.08651737124 | M77: 1.894335678 | N77: 0.094590839 | O77: 2.468019811 | P77: 0.1263196425 | Q77: 1.794755402 | S77: 13.19403926 | T77: 0.03847821166 | U77: 10.80548483 | V77: 0.04129610092 | W77: 12.48943591 | X77: 0.0281758413 | Y77: 9.019764109 | Z77: 0.03320355102 | AA77: 15.09329173 | AB77: 0.04646570387 | AC77: 21.8954373 | AD77: 0.03872744228 | AE77: 26.09153104 | AF77: 0.05559617204 | AG77: 14.20804688 | AH77: 0.04718216541 | AJ77: =AVERAGE(S555:S558) -> 11.45059901 | AK77: =AVERAGE(T555:T558) -> 0.7346844538 | AL77: =AVERAGE(U576:U579) -> 11.13054476 | AM77: =AVERAGE(V576:V579) -> 0.7355999169 | AN77: =AVERAGE(W569:W572) -> 13.26123635 | AO77: =AVERAGE(X569:X572) -> 0.7344951617 | AP77: =AVERAGE(Y582:Y585) -> 9.606504106 | AQ77: =AVERAGE(Z582:Z585) -> 0.7341006432 | AR77: =AVERAGE(AA564:AA568) -> 23.60063696 | AS77: =AVERAGE(AB564:AB568) -> 0.7345513787 | AT77: =AVERAGE(AC573:AC576) -> 18.19069102 | AU77: =AVERAGE(AD573:AD576) -> 0.7361297967 | AV77: =AVERAGE(AE565:AE569) -> 21.58074311 | AW77: =AVERAGE(AF565:AF569) -> 0.7354334474 | AX77: =AVERAGE(AG576:AG579) -> 13.53462226 | AY77: =AVERAGE(AH576:AH579) -> 0.7349452248
B78: 0.1490285744 | C78: 2.094518163 | D78: 0.1644976934 | E78: 1.729352156 | F78: 0.1193117723 | G78: 1.468820416 | H78: 0.1555513342 | I78: 1.381473639 | J78: 0.1509362459 | K78: 2.133637901 | L78: 0.1064214607 | M78: 1.95181799 | N78: 0.1030516128 | O78: 2.505080888 | P78: 0.1276412596 | Q78: 1.821834228 | S78: 14.05447359 | T78: 0.03960052562 | U78: 10.51292648 | V78: 0.04179026777 | W78: 12.31077528 | X78: 0.02865784979 | Y78: 8.881142977 | Z78: 0.03368170374 | AA78: 14.13602073 | AB78: 0.04719461841 | AC78: 18.3404548 | AD78: 0.03990259986 | AE78: 24.30899256 | AF78: 0.05643103325 | AG78: 14.2730825 | AH78: 0.04789403827 | AJ78: =AVERAGE(S559:S562) -> 11.40757657 | AK78: =AVERAGE(T559:T562) -> 0.7440417291 | AL78: =AVERAGE(U580:U583) -> 11.13180243 | AM78: =AVERAGE(V580:V583) -> 0.7453328273 | AN78: =AVERAGE(W573:W576) -> 13.31208884 | AO78: =AVERAGE(X573:X576) -> 0.7444209513 | AP78: =AVERAGE(Y586:Y588) -> 9.550290962 | AQ78: =AVERAGE(Z586:Z588) -> 0.7457357079 | AR78: =AVERAGE(AA569:AA573) -> 23.36669417 | AS78: =AVERAGE(AB569:AB573) -> 0.7452967338 | AT78: =AVERAGE(AC577:AC580) -> 18.1026555 | AU78: =AVERAGE(AD577:AD580) -> 0.745824216 | AV78: =AVERAGE(AE570:AE573) -> 21.54240579 | AW78: =AVERAGE(AF570:AF573) -> 0.7462284333 | AX78: =AVERAGE(AG580:AG583) -> 13.53662452 | AY78: =AVERAGE(AH580:AH583) -> 0.7444771168
B79: 0.1570806776 | C79: 2.125416457 | D79: 0.1703499133 | E79: 1.75385057 | F79: 0.1191050063 | G79: 1.518662445 | H79: 0.1546238859 | I79: 1.40382419 | J79: 0.1409704983 | K79: 2.160996975 | L79: 0.1130845274 | M79: 1.979868417 | N79: 0.1159414152 | O79: 2.543481613 | P79: 0.1320281677 | Q79: 1.849730171 | S79: 13.5307314 | T79: 0.04018471186 | U79: 10.29557653 | V79: 0.04238227863 | W79: 12.75061807 | X79: 0.02963030724 | Y79: 9.078960739 | Z79: 0.03422663242 | AA79: 15.32942708 | AB79: 0.0477997825 | AC79: 17.50786305 | AD79: 0.04047605752 | AE79: 21.93764504 | AF79: 0.05729607221 | AG79: 14.01011772 | AH79: 0.04862739224 | AJ79: =AVERAGE(S563:S567) -> 11.3530404 | AK79: =AVERAGE(T563:T567) -> 0.7548949304 | AL79: =AVERAGE(U584:U587) -> 11.1226928 | AM79: =AVERAGE(V584:V587) -> 0.7549824594 | AN79: =AVERAGE(W577:W580) -> 13.12217462 | AO79: =AVERAGE(X577:X580) -> 0.7542995112 | AP79: =AVERAGE(Y589:Y592) -> 9.513875927 | AQ79: =AVERAGE(Z589:Z592) -> 0.7547972512 | AR79: =AVERAGE(AA574:AA577) -> 23.27844733 | AS79: =AVERAGE(AB574:AB577) -> 0.7551840525 | AT79: =AVERAGE(AC581:AC584) -> 18.10482599 | AU79: =AVERAGE(AD581:AD584) -> 0.7555316488 | AV79: =AVERAGE(AE574:AE577) -> 21.38792247 | AW79: =AVERAGE(AF574:AF577) -> 0.7539269528 | AX79: =AVERAGE(AG584:AG587) -> 13.53312832 | AY79: =AVERAGE(AH584:AH587) -> 0.7539927444
B80: 0.152217187 | C80: 2.15716694 | D80: 0.1663733274 | E80: 1.777225186 | F80: 0.1296004777 | G80: 1.542982848 | H80: 0.1624242961 | I80: 1.424714914 | J80: 0.1464370762 | K80: 2.189533123 | L80: 0.1056016361 | M80: 2.00869775 | N80: 0.08650682246 | O80: 2.578815904 | P80: 0.1354035197 | Q80: 1.877863173 | S80: 14.17163845 | T80: 0.04078501021 | U80: 10.68215208 | V80: 0.04294713261 | W80: 11.90568797 | X80: 0.03010481757 | Y80: 8.7715628 | Z80: 0.03473596909 | AA80: 14.95204069 | AB80: 0.04843098267 | AC80: 19.0214643 | AD80: 0.04106543898 | AE80: 29.8105494 | AF80: 0.05809203475 | AG80: 13.86864372 | AH80: 0.04936697821 | AJ80: =AVERAGE(S568:S571) -> 11.2774259 | AK80: =AVERAGE(T568:T571) -> 0.7656901653 | AL80: =AVERAGE(U588:U591) -> 11.11439105 | AM80: =AVERAGE(V588:V591) -> 0.764902812 | AN80: =AVERAGE(W581:W584) -> 12.91787369 | AO80: =AVERAGE(X581:X584) -> 0.7641865862 | AP80: =AVERAGE(Y593:Y596) -> 9.485399272 | AQ80: =AVERAGE(Z593:Z596) -> 0.7653058724 | AR80: =AVERAGE(AA578:AA581) -> 23.08341828 | AS80: =AVERAGE(AB578:AB581) -> 0.7641782341 | AT80: =AVERAGE(AC585:AC588) -> 18.10286487 | AU80: =AVERAGE(AD585:AD588) -> 0.7653244147 | AV80: =AVERAGE(AE578:AE582) -> 21.40122729 | AW80: =AVERAGE(AF578:AF582) -> 0.7648332431 | AX80: =AVERAGE(AG588:AG592) -> 13.51481046 | AY80: =AVERAGE(AH588:AH592) -> 0.7648648686
B81: 0.1565511276 | C81: 2.187565055 | D81: 0.1595221087 | E81: 1.800130689 | F81: 0.1341476416 | G81: 1.57011533 | H81: 0.1577913389 | I81: 1.448633597 | J81: 0.1487610365 | K81: 2.22412981 | L81: 0.1186932748 | M81: 2.032645326 | N81: 0.08518045147 | O81: 2.617042735 | P81: 0.1334030833 | Q81: 1.905173084 | S81: 13.97348641 | T81: 0.04135973969 | U81: 11.28452165 | V81: 0.04350065037 | W81: 11.70438266 | X81: 0.03063419378 | Y81: 9.18069146 | Z81: 0.03531913042 | AA81: 14.95102389 | AB81: 0.04919623786 | AC81: 17.12519374 | AD81: 0.04155501872 | AE81: 30.72351331 | AF81: 0.05895315647 | AG81: 14.28132722 | AH81: 0.05008492606 | AJ81: =AVERAGE(S572:S575) -> 11.18689879 | AK81: =AVERAGE(T572:T575) -> 0.7752251179 | AL81: =AVERAGE(U592:U595) -> 11.09309244 | AM81: =AVERAGE(V592:V595) -> 0.7749780965 | AN81: =AVERAGE(W585:W588) -> 12.90772184 | AO81: =AVERAGE(X585:X588) -> 0.7742179132 | AP81: =AVERAGE(Y597:Y600) -> 9.478593947 | AQ81: =AVERAGE(Z597:Z600) -> 0.775617764 | AR81: =AVERAGE(AA582:AA586) -> 23.08767184 | AS81: =AVERAGE(AB582:AB586) -> 0.7744644878 | AT81: =AVERAGE(AC589:AC592) -> 17.97331139 | AU81: =AVERAGE(AD589:AD592) -> 0.7753181564 | AV81: =AVERAGE(AE583:AE586) -> 21.3620097 | AW81: =AVERAGE(AF583:AF586) -> 0.774364849 | AX81: =AVERAGE(AG593:AG596) -> 13.47373531 | AY81: =AVERAGE(AH593:AH596) -> 0.7757893162
B82: 0.1439425598 | C82: 2.250758084 | D82: 0.1770753041 | E82: 1.82459242 | F82: 0.1374621317 | G82: 1.593803022 | H82: 0.162320435 | I82: 1.470552655 | J82: 0.1592802753 | K82: 2.253037955 | L82: 0.113023296 | M82: 2.087102726 | N82: 0.1000936267 | O82: 2.690643207 | P82: 0.1361077527 | Q82: 1.933721681 | S82: 15.63650173 | T82: 0.04255451433 | U82: 10.30404793 | V82: 0.04409177478 | W82: 11.5944879 | X82: 0.03109635943 | Y82: 9.059565755 | Z82: 0.03585353888 | AA82: 14.1451159 | AB82: 0.04983566634 | AC82: 18.46612866 | AD82: 0.04266833555 | AE82: 26.88126402 | AF82: 0.06061112717 | AG82: 14.20728535 | AH82: 0.05083543759 | AJ82: =AVERAGE(S576:S579) -> 11.11949119 | AK82: =AVERAGE(T576:T579) -> 0.784549555 | AL82: =AVERAGE(U596:U599) -> 11.06010984 | AM82: =AVERAGE(V596:V599) -> 0.7849530966 | AN82: =AVERAGE(W589:W592) -> 12.94437802 | AO82: =AVERAGE(X589:X592) -> 0.7842364043 | AP82: =AVERAGE(Y601:Y604) -> 9.488048038 | AQ82: =AVERAGE(Z601:Z604) -> 0.7858622811 | AR82: =AVERAGE(AA587:AA590) -> 22.98707642 | AS82: =AVERAGE(AB587:AB590) -> 0.784579447 | AT82: =AVERAGE(AC593:AC596) -> 17.91297431 | AU82: =AVERAGE(AD593:AD596) -> 0.785316441 | AV82: =AVERAGE(AE587:AE591) -> 21.26961661 | AW82: =AVERAGE(AF587:AF591) -> 0.7848456969 | AX82: =AVERAGE(AG597:AG600) -> 13.40693516 | AY82: =AVERAGE(AH597:AH600) -> 0.785614476
B83: 0.1565101619 | C83: 2.282775764 | D83: 0.1776931062 | E83: 1.847642498 | F83: 0.1127523556 | G83: 1.64618458 | H83: 0.1677550996 | I83: 1.493382353 | J83: 0.1592199629 | K83: 2.284958607 | L83: 0.1245051747 | M83: 2.11701101 | N83: 0.1074134186 | O83: 2.730193482 | P83: 0.142586523 | Q83: 1.96092082 | S83: 14.58547954 | T83: 0.04315986451 | U83: 10.39794136 | V83: 0.04464878623 | W83: 14.60000166 | X83: 0.03211836511 | Y83: 8.902157705 | Z83: 0.03641014967 | AA83: 14.35095553 | AB83: 0.05054172944 | AC83: 17.00339778 | AD83: 0.04327977489 | AE83: 25.41762024 | AF83: 0.06150206163 | AG83: 13.75249763 | AH83: 0.05155047334 | AJ83: =AVERAGE(S580:S584) -> 11.05837615 | AK83: =AVERAGE(T580:T584) -> 0.7951737372 | AL83: =AVERAGE(U600:U603) -> 11.04082448 | AM83: =AVERAGE(V600:V603) -> 0.7950060771 | AN83: =AVERAGE(W593:W596) -> 12.861428 | AO83: =AVERAGE(X593:X596) -> 0.7942411287 | AP83: =AVERAGE(Y605:Y607) -> 9.490102417 | AQ83: =AVERAGE(Z605:Z607) -> 0.7950892844 | AR83: =AVERAGE(AA591:AA595) -> 22.67219086 | AS83: =AVERAGE(AB591:AB595) -> 0.7947636058 | AT83: =AVERAGE(AC597:AC600) -> 17.75981671 | AU83: =AVERAGE(AD597:AD600) -> 0.7950921711 | AV83: =AVERAGE(AE592:AE595) -> 21.23513414 | AW83: =AVERAGE(AF592:AF595) -> 0.7947713551 | AX83: =AVERAGE(AG601:AG604) -> 13.3906426 | AY83: =AVERAGE(AH601:AH604) -> 0.7954903559
B84: 0.1561087246 | C84: 2.314810261 | D84: 0.1740488658 | E84: 1.873520484 | F84: 0.125259695 | G84: 1.67407228 | H84: 0.1603642603 | I84: 1.514123325 | J84: 0.1527768498 | K84: 2.312926507 | L84: 0.1000043998 | M84: 2.14408607 | N84: 0.1048712929 | O84: 2.765988404 | P84: 0.139764865 | Q84: 1.988499916 | S84: 14.82819277 | T84: 0.04376553265 | U84: 10.76433607 | V84: 0.04527413483 | W84: 13.36481204 | X84: 0.03266247622 | Y84: 9.441775384 | Z84: 0.03691583524 | AA84: 15.13924728 | AB84: 0.05116036036 | AC84: 21.43991738 | AD84: 0.04383329232 | AE84: 26.3750768 | AF84: 0.06230840063 | AG84: 14.22746636 | AH84: 0.05227549773 | AJ84: =AVERAGE(S585:S588) -> 11.0307285 | AK84: =AVERAGE(T585:T588) -> 0.8057761047 | AL84: =AVERAGE(U604:U607) -> 11.00648895 | AM84: =AVERAGE(V604:V607) -> 0.8049229674 | AN84: =AVERAGE(W597:W600) -> 12.80305809 | AO84: =AVERAGE(X597:X600) -> 0.8041085073 | AP84: =AVERAGE(Y608:Y611) -> 9.501843329 | AQ84: =AVERAGE(Z608:Z611) -> 0.8044177766 | AR84: =AVERAGE(AA596:AA599) -> 22.57429104 | AS84: =AVERAGE(AB596:AB599) -> 0.8047775331 | AT84: =AVERAGE(AC601:AC604) -> 17.69328713 | AU84: =AVERAGE(AD601:AD604) -> 0.8048964362 | AV84: =AVERAGE(AE596:AE600) -> 21.20298652 | AW84: =AVERAGE(AF596:AF600) -> 0.804643791 | AX84: =AVERAGE(AG605:AG608) -> 13.36246735 | AY84: =AVERAGE(AH605:AH608) -> 0.8054339089
B85: 0.1597020527 | C85: 2.343446877 | D85: 0.1845062897 | E85: 1.897302354 | F85: 0.1258738463 | G85: 1.700697062 | H85: 0.1610910768 | I85: 1.537972981 | J85: 0.1569257304 | K85: 2.344080349 | L85: 0.1362407953 | M85: 2.167977658 | N85: 0.1130662113 | O85: 2.802564835 | P85: 0.1382321699 | Q85: 2.017487263 | S85: 14.67386823 | T85: 0.04430695791 | U85: 10.28313104 | V85: 0.04584883023 | W85: 13.51112333 | X85: 0.03318194681 | Y85: 9.547226397 | Z85: 0.03749731361 | AA85: 14.93751435 | AB85: 0.05184946215 | AC85: 15.91283766 | AD85: 0.04432172746 | AE85: 24.78693504 | AF85: 0.0631323444 | AG85: 14.59491857 | AH85: 0.05303754353 | AJ85: =AVERAGE(S589:S592) -> 11.01390225 | AK85: =AVERAGE(T589:T592) -> 0.8152022691 | AL85: =AVERAGE(U608:U611) -> 10.9671672 | AM85: =AVERAGE(V608:V611) -> 0.814993677 | AN85: =AVERAGE(W601:W604) -> 12.76772971 | AO85: =AVERAGE(X601:X604) -> 0.8140547403 | AP85: =AVERAGE(Y612:Y615) -> 9.518641338 | AQ85: =AVERAGE(Z612:Z615) -> 0.8152592848 | AR85: =AVERAGE(AA600:AA604) -> 22.54557673 | AS85: =AVERAGE(AB600:AB604) -> 0.8150583183 | AT85: =AVERAGE(AC605:AC608) -> 17.58655581 | AU85: =AVERAGE(AD605:AD608) -> 0.8148778151 | AV85: =AVERAGE(AE601:AE604) -> 21.15521925 | AW85: =AVERAGE(AF601:AF604) -> 0.8153496593 | AX85: =AVERAGE(AG609:AG612) -> 13.31625985 | AY85: =AVERAGE(AH609:AH612) -> 0.8153071535
B86: 0.1619266719 | C86: 2.40928694 | D86: 0.1817703744 | E86: 1.924846616 | F86: 0.1272542651 | G86: 1.726275671 | H86: 0.1601132751 | I86: 1.557774864 | J86: 0.1527303333 | K86: 2.374606447 | L86: 0.119481807 | M86: 2.221136786 | N86: 0.1040062246 | O86: 2.83830999 | P86: 0.1422134932 | Q86: 2.046469566 | S86: 14.87887642 | T86: 0.04555177933 | U86: 10.58944078 | V86: 0.04651444484 | W86: 13.56556238 | X86: 0.03368100573 | Y86: 9.729204926 | Z86: 0.03798010325 | AA86: 15.54770684 | AB86: 0.05252467867 | AC86: 18.58974887 | AD86: 0.04540850267 | AE86: 27.28980886 | AF86: 0.06393756233 | AG86: 14.39012235 | AH86: 0.05379945673 | AJ86: =AVERAGE(S593:S597) -> 10.94366191 | AK86: =AVERAGE(T593:T597) -> 0.8253927585 | AL86: =AVERAGE(U612:U615) -> 10.9123427 | AM86: =AVERAGE(V612:V615) -> 0.8250714227 | AN86: =AVERAGE(W605:W609) -> 12.5681011 | AO86: =AVERAGE(X605:X609) -> 0.8251794756 | AP86: =AVERAGE(Y616:Y619) -> 9.478295873 | AQ86: =AVERAGE(Z616:Z619) -> 0.8257654133 | AR86: =AVERAGE(AA605:AA608) -> 22.68016511 | AS86: =AVERAGE(AB605:AB608) -> 0.8254717326 | AT86: =AVERAGE(AC609:AC612) -> 17.49562275 | AU86: =AVERAGE(AD609:AD612) -> 0.8250344503 | AV86: =AVERAGE(AE605:AE609) -> 21.05055356 | AW86: =AVERAGE(AF605:AF609) -> 0.8251475359 | AX86: =AVERAGE(AG613:AG616) -> 13.28185808 | AY86: =AVERAGE(AH613:AH616) -> 0.8252886488
B87: 0.1598107318 | C87: 2.440242646 | D87: 0.1799945037 | E87: 1.950777972 | F87: 0.1467313245 | G87: 1.780224353 | H87: 0.1650499304 | I87: 1.57913636 | J87: 0.168504628 | K87: 2.40654024 | L87: 0.130968069 | M87: 2.250686722 | N87: 0.1282961046 | O87: 2.878057596 | P87: 0.1393564604 | Q87: 2.07515153 | S87: 15.26957932 | T87: 0.04613705104 | U87: 10.83798634 | V87: 0.04714108316 | W87: 12.1325447 | X87: 0.03473358726 | Y87: 9.56762815 | Z87: 0.03850091781 | AA87: 14.28174566 | AB87: 0.05323103244 | AC87: 17.18500348 | AD87: 0.046012616 | AE87: 22.43293049 | AF87: 0.06483294198 | AG87: 14.89096038 | AH87: 0.05455347433 | AJ87: =AVERAGE(S598:S601) -> 10.84317297 | AK87: =AVERAGE(T598:T601) -> 0.8360415579 | AL87: =AVERAGE(U616:U619) -> 10.87996162 | AM87: =AVERAGE(V616:V619) -> 0.8353502656 | AN87: =AVERAGE(W610:W613) -> 12.33559519 | AO87: =AVERAGE(X610:X613) -> 0.8361929555 | AP87: =AVERAGE(Y620:Y622) -> 9.449078712 | AQ87: =AVERAGE(Z620:Z622) -> 0.8350357791 | AR87: =AVERAGE(AA609:AA613) -> 22.51511243 | AS87: =AVERAGE(AB609:AB613) -> 0.8356551273 | AT87: =AVERAGE(AC613:AC616) -> 17.45954699 | AU87: =AVERAGE(AD613:AD616) -> 0.8350663689 | AV87: =AVERAGE(AE610:AE613) -> 21.01373961 | AW87: =AVERAGE(AF610:AF613) -> 0.8365366676 | AX87: =AVERAGE(AG617:AG620) -> 13.26104969 | AY87: =AVERAGE(AH617:AH620) -> 0.8353575433
B88: 0.1646339024 | C88: 2.472322231 | D88: 0.1849408696 | E88: 1.976541161 | F88: 0.1472999776 | G88: 1.809849098 | H88: 0.1624477282 | I88: 1.604114136 | J88: 0.1639178147 | K88: 2.437746359 | L88: 0.1249742011 | M88: 2.280213944 | N88: 0.1133347427 | O88: 2.914494565 | P88: 0.145376247 | Q88: 2.101721037 | S88: 15.01709062 | T88: 0.04674357167 | U88: 10.68742223 | V88: 0.04776365767 | W88: 12.28682534 | X88: 0.0353115895 | Y88: 9.87464801 | Z88: 0.03910990087 | AA88: 14.87175975 | AB88: 0.05392129054 | AC88: 18.24547726 | AD88: 0.04661626498 | AE88: 25.71580873 | AF88: 0.06565374414 | AG88: 14.45711442 | AH88: 0.05525195774 | AJ88: =AVERAGE(S602:S605) -> 10.78142544 | AK88: =AVERAGE(T602:T605) -> 0.8451532426 | AL88: =AVERAGE(U620:U623) -> 10.82333919 | AM88: =AVERAGE(V620:V623) -> 0.8453876166 | AN88: =AVERAGE(W614:W617) -> 12.32666455 | AO88: =AVERAGE(X614:X617) -> 0.8459107845 | AP88: =AVERAGE(Y623:Y626) -> 9.424196823 | AQ88: =AVERAGE(Z623:Z626) -> 0.8441465294 | AR88: =AVERAGE(AA614:AA617) -> 22.40931525 | AS88: =AVERAGE(AB614:AB617) -> 0.8461790284 | AT88: =AVERAGE(AC617:AC620) -> 17.36475831 | AU88: =AVERAGE(AD617:AD620) -> 0.8450173908 | AV88: =AVERAGE(AE614:AE617) -> 21.12241335 | AW88: =AVERAGE(AF614:AF617) -> 0.8447128429 | AX88: =AVERAGE(AG621:AG624) -> 13.25242898 | AY88: =AVERAGE(AH621:AH624) -> 0.8455285097
B89: 0.1581855615 | C89: 2.503446113 | D89: 0.1830941066 | E89: 2.002267524 | F89: 0.1486458257 | G89: 1.837275039 | H89: 0.1623537019 | I89: 1.628164809 | J89: 0.149637796 | K89: 2.467832733 | L89: 0.1431875552 | M89: 2.306068276 | N89: 0.1038854072 | O89: 2.951377119 | P89: 0.1462188984 | Q89: 2.130453949 | S89: 15.82600896 | T89: 0.04733202303 | U89: 10.93572896 | V89: 0.04838534225 | W89: 12.36008499 | X89: 0.03584669133 | Y89: 10.02850437 | Z89: 0.03969628023 | AA89: 16.49204144 | AB89: 0.05458678066 | AC89: 16.10522837 | AD89: 0.04714482607 | AE89: 28.40992972 | AF89: 0.06648458382 | AG89: 14.57030502 | AH89: 0.0560073147 | AJ89: =AVERAGE(S606:S609) -> 10.72258603 | AK89: =AVERAGE(T606:T609) -> 0.8540665164 | AL89: =AVERAGE(U624:U627) -> 10.79779826 | AM89: =AVERAGE(V624:V627) -> 0.8554555175 | AN89: =AVERAGE(W618:W621) -> 12.34495123 | AO89: =AVERAGE(X618:X621) -> 0.8559226565 | AP89: =AVERAGE(Y627:Y630) -> 9.384877723 | AQ89: =AVERAGE(Z627:Z630) -> 0.8548467399 | AR89: =AVERAGE(AA618:AA621) -> 22.36596042 | AS89: =AVERAGE(AB618:AB621) -> 0.8553626911 | AT89: =AVERAGE(AC621:AC624) -> 17.29499767 | AU89: =AVERAGE(AD621:AD624) -> 0.8550341664 | AV89: =AVERAGE(AE618:AE621) -> 21.0318201 | AW89: =AVERAGE(AF618:AF621) -> 0.8549147207 | AX89: =AVERAGE(AG625:AG628) -> 13.21621321 | AY89: =AVERAGE(AH625:AH628) -> 0.8557598183
B90: 0.1611582562 | C90: 2.567495971 | D90: 0.1818586141 | E90: 2.028970951 | F90: 0.1589128748 | G90: 1.86507557 | H90: 0.1721980423 | I90: 1.652103565 | J90: 0.1474979768 | K90: 2.499547747 | L90: 0.1314674069 | M90: 2.358998679 | N90: 0.1156159242 | O90: 3.026775844 | P90: 0.147630148 | Q90: 2.159704622 | S90: 15.93151993 | T90: 0.0485429975 | U90: 11.1568592 | V90: 0.04903063788 | W90: 11.73646612 | X90: 0.03638910171 | Y90: 9.594206433 | Z90: 0.04027993096 | AA90: 16.94631886 | AB90: 0.05528829519 | AC90: 17.94360088 | AD90: 0.04822692529 | AE90: 26.17957573 | AF90: 0.0681830631 | AG90: 14.62915705 | AH90: 0.05677628305 | AJ90: =AVERAGE(S610:S614) -> 10.65096776 | AK90: =AVERAGE(T610:T614) -> 0.864284636 | AL90: =AVERAGE(U628:U631) -> 10.76418063 | AM90: =AVERAGE(V628:V631) -> 0.8656653209 | AN90: =AVERAGE(W622:W625) -> 12.2090713 | AO90: =AVERAGE(X622:X625) -> 0.8658773242 | AP90: =AVERAGE(Y631:Y633) -> 9.379502897 | AQ90: =AVERAGE(Z631:Z633) -> 0.8642590043 | AR90: =AVERAGE(AA622:AA625) -> 22.31554126 | AS90: =AVERAGE(AB622:AB625) -> 0.8647157497 | AT90: =AVERAGE(AC625:AC628) -> 17.20382452 | AU90: =AVERAGE(AD625:AD628) -> 0.8650719055 | AV90: =AVERAGE(AE622:AE625) -> 20.93994285 | AW90: =AVERAGE(AF622:AF625) -> 0.8631911148 | AX90: =AVERAGE(AG629:AG632) -> 13.14321816 | AY90: =AVERAGE(AH629:AH632) -> 0.8659508834
B91: 0.165538316 | C91: 2.600259859 | D91: 0.187879925 | E91: 2.055787017 | F91: 0.1741544157 | G91: 1.919962495 | H91: 0.1678765068 | I91: 1.675895024 | J91: 0.1445349554 | K91: 2.532941078 | L91: 0.1375466958 | M91: 2.384595787 | N91: 0.1310962687 | O91: 3.06386788 | P91: 0.1486996354 | Q91: 2.189351235 | S91: 15.7079033 | T91: 0.04916245606 | U91: 10.94202596 | V91: 0.04967865545 | W91: 11.02448357 | X91: 0.0374599891 | Y91: 9.982903837 | Z91: 0.04085999044 | AA91: 17.52476465 | AB91: 0.05602693294 | AC91: 17.3366272 | AD91: 0.04875022774 | AE91: 23.37112956 | AF91: 0.06901862172 | AG91: 14.72331273 | AH91: 0.05755566023 | AJ91: =AVERAGE(S615:S619) -> 10.55037521 | AK91: =AVERAGE(T615:T619) -> 0.8752755846 | AL91: =AVERAGE(U632:U635) -> 10.74261205 | AM91: =AVERAGE(V632:V635) -> 0.8759260731 | AN91: =AVERAGE(W626:W629) -> 11.97331172 | AO91: =AVERAGE(X626:X629) -> 0.8755403161 | AP91: =AVERAGE(Y634:Y636) -> 9.357289774 | AQ91: =AVERAGE(Z634:Z636) -> 0.874914674 | AR91: =AVERAGE(AA626:AA629) -> 22.22122543 | AS91: =AVERAGE(AB626:AB629) -> 0.8742120371 | AT91: =AVERAGE(AC629:AC632) -> 17.13117488 | AU91: =AVERAGE(AD629:AD632) -> 0.8752038861 | AV91: =AVERAGE(AE626:AE630) -> 20.75726851 | AW91: =AVERAGE(AF626:AF630) -> 0.8746048475 | AX91: =AVERAGE(AG633:AG636) -> 13.08846608 | AY91: =AVERAGE(AH633:AH636) -> 0.8761821853
B92: 0.1666709657 | C92: 2.634174014 | D92: 0.19591329 | E92: 2.086017058 | F92: 0.1856389269 | G92: 1.950326703 | H92: 0.1721513644 | I92: 1.699851687 | J92: 0.1470915973 | K92: 2.564970036 | L92: 0.147113738 | M92: 2.414195634 | N92: 0.1156513641 | O92: 3.102601057 | P92: 0.155110947 | Q92: 2.219586115 | S92: 15.80463642 | T92: 0.04980366242 | U92: 10.64765467 | V92: 0.05040917264 | W92: 10.50602229 | X92: 0.03805241885 | Y92: 9.874169125 | Z92: 0.04144407775 | AA92: 17.43791 | AB92: 0.05673539171 | AC92: 16.41040237 | AD92: 0.04935536144 | AE92: 26.82718946 | AF92: 0.06989114971 | AG92: 14.30966775 | AH92: 0.05835050231 | AJ92: =AVERAGE(S620:S623) -> 10.42894785 | AK92: =AVERAGE(T620:T623) -> 0.8849579245 | AL92: =AVERAGE(U636:U638) -> 10.72056769 | AM92: =AVERAGE(V636:V638) -> 0.8850779775 | AN92: =AVERAGE(W630:W633) -> 11.90297405 | AO92: =AVERAGE(X630:X633) -> 0.8850290977 | AP92: =AVERAGE(Y637:Y640) -> 9.377614412 | AQ92: =AVERAGE(Z637:Z640) -> 0.8841781014 | AR92: =AVERAGE(AA630:AA633) -> 22.10309898 | AS92: =AVERAGE(AB630:AB633) -> 0.8835734518 | AT92: =AVERAGE(AC633:AC636) -> 17.03355186 | AU92: =AVERAGE(AD633:AD636) -> 0.8852035075 | AV92: =AVERAGE(AE631:AE634) -> 20.7079808 | AW92: =AVERAGE(AF631:AF634) -> 0.8845195478 | AX92: =AVERAGE(AG637:AG639) -> 13.03111144 | AY92: =AVERAGE(AH637:AH639) -> 0.885082956
B93: 0.1714577029 | C93: 2.66617966 | D93: 0.1893791556 | E93: 2.110084337 | F93: 0.1938155169 | G93: 1.979435062 | H93: 0.1714353388 | I93: 1.721887282 | J93: 0.1381200925 | K93: 2.596017016 | L93: 0.1308697214 | M93: 2.440315435 | N93: 0.1341505721 | O93: 3.136984864 | P93: 0.155526263 | Q93: 2.247890861 | S93: 15.55007221 | T93: 0.05040878509 | U93: 11.14211503 | V93: 0.05099076502 | W93: 10.21298549 | X93: 0.03862034598 | Y93: 10.04394598 | Z93: 0.04198132751 | AA93: 18.79536112 | AB93: 0.05742212978 | AC93: 18.64690633 | AD93: 0.04988934975 | AE93: 23.38405878 | AF93: 0.07066570105 | AG93: 14.45344868 | AH93: 0.05909460325 | AJ93: =AVERAGE(S624:S628) -> 10.3358738 | AK93: =AVERAGE(T624:T628) -> 0.8945983718 | AL93: =AVERAGE(U639:U642) -> 10.71070329 | AM93: =AVERAGE(V639:V642) -> 0.8939738683 | AN93: =AVERAGE(W634:W637) -> 11.88661512 | AO93: =AVERAGE(X634:X637) -> 0.8946046167 | AP93: =AVERAGE(Y641:Y644) -> 9.361715969 | AQ93: =AVERAGE(Z641:Z644) -> 0.8946573871 | AR93: =AVERAGE(AA634:AA638) -> 21.96081219 | AS93: =AVERAGE(AB634:AB638) -> 0.8942107758 | AT93: =AVERAGE(AC637:AC640) -> 17.02674261 | AU93: =AVERAGE(AD637:AD640) -> 0.8950170122 | AV93: =AVERAGE(AE635:AE639) -> 20.70506997 | AW93: =AVERAGE(AF635:AF639) -> 0.8953583886 | AX93: =AVERAGE(AG640:AG643) -> 13.01617381 | AY93: =AVERAGE(AH640:AH643) -> 0.8941081077
B94: 0.1738282914 | C94: 2.732195438 | D94: 0.1916457837 | E94: 2.141143415 | F94: 0.2009741217 | G94: 2.007368849 | H94: 0.1787233353 | I94: 1.746913868 | J94: 0.1421263317 | K94: 2.62786142 | L94: 0.1417481899 | M94: 2.496524793 | N94: 0.1332173372 | O94: 3.176516911 | P94: 0.1594927866 | Q94: 2.277349137 | S94: 15.71778343 | T94: 0.05165692871 | U94: 11.17240032 | V94: 0.05174131614 | W94: 9.988195655 | X94: 0.0391653563 | Y94: 9.774402798 | Z94: 0.04259150062 | AA94: 18.48961687 | AB94: 0.05812650633 | AC94: 17.61239275 | AD94: 0.05103848329 | AE94: 23.84462095 | AF94: 0.07155622489 | AG94: 14.27869677 | AH94: 0.05986902925 | AJ94: =AVERAGE(S629:S633) -> 10.25889584 | AK94: =AVERAGE(T629:T633) -> 0.9053969092 | AL94: =AVERAGE(U643:U646) -> 10.69556332 | AM94: =AVERAGE(V643:V646) -> 0.9041263823 | AN94: =AVERAGE(W638:W642) -> 11.81228243 | AO94: =AVERAGE(X638:X642) -> 0.905218245 | AP94: =AVERAGE(Y645:Y648) -> 9.312262141 | AQ94: =AVERAGE(Z645:Z648) -> 0.9053730469 | AR94: =AVERAGE(AA639:AA642) -> 21.94018489 | AS94: =AVERAGE(AB639:AB642) -> 0.9045716899 | AT94: =AVERAGE(AC641:AC644) -> 16.95980636 | AU94: =AVERAGE(AD641:AD644) -> 0.9050166573 | AV94: =AVERAGE(AE640:AE643) -> 20.6591943 | AW94: =AVERAGE(AF640:AF643) -> 0.9056502808 | AX94: =AVERAGE(AG644:AG647) -> 13.00336111 | AY94: =AVERAGE(AH644:AH647) -> 0.904466051
B95: 0.1816185688 | C95: 2.76683391 | D95: 0.2073772252 | E95: 2.169567639 | F95: 0.2162133406 | G95: 2.059866729 | H95: 0.1797653114 | I95: 1.770776665 | J95: 0.1466536646 | K95: 2.657883677 | L95: 0.1455101122 | M95: 2.525950747 | N95: 0.1287544395 | O95: 3.217477143 | P95: 0.1602073345 | Q95: 2.306752187 | S95: 15.23431182 | T95: 0.05231182955 | U95: 10.46193784 | V95: 0.0524281953 | W95: 9.527010332 | X95: 0.04018963153 | Y95: 9.850491465 | Z95: 0.04317329939 | AA95: 18.12354082 | AB95: 0.05879057822 | AC95: 17.35927976 | AD95: 0.05164006194 | AE95: 24.98925208 | AF95: 0.07247892094 | AG95: 14.39854295 | AH95: 0.06064200344 | AJ95: =AVERAGE(S634:S637) -> 10.18166875 | AK95: =AVERAGE(T634:T637) -> 0.9149691143 | AL95: =AVERAGE(U647:U650) -> 10.69409166 | AM95: =AVERAGE(V647:V650) -> 0.9143724923 | AN95: =AVERAGE(W643:W646) -> 11.69205935 | AO95: =AVERAGE(X643:X646) -> 0.9158417651 | AP95: =AVERAGE(Y649:Y651) -> 9.288688813 | AQ95: =AVERAGE(Z649:Z651) -> 0.9147251428 | AR95: =AVERAGE(AA643:AA646) -> 21.87351999 | AS95: =AVERAGE(AB643:AB646) -> 0.913976316 | AT95: =AVERAGE(AC645:AC648) -> 16.83709866 | AU95: =AVERAGE(AD645:AD648) -> 0.9151128625 | AV95: =AVERAGE(AE644:AE647) -> 20.54653651 | AW95: =AVERAGE(AF644:AF647) -> 0.915144787 | AX95: =AVERAGE(AG648:AG651) -> 12.96587716 | AY95: =AVERAGE(AH648:AH651) -> 0.9149517196
B96: 0.1864436269 | C96: 2.800143211 | D96: 0.1987943798 | E96: 2.197173471 | F96: 0.233399868 | G96: 2.090074564 | H96: 0.1777154704 | I96: 1.795026911 | J96: 0.1407015572 | K96: 2.689319116 | L96: 0.1446091632 | M96: 2.557109562 | N96: 0.1489840075 | O96: 3.255343455 | P96: 0.1667320376 | Q96: 2.336042425 | S96: 15.0187124 | T96: 0.05294160008 | U96: 11.0524929 | V96: 0.05309529778 | W96: 8.954908936 | X96: 0.0407790103 | Y96: 10.10056641 | Z96: 0.04376454453 | AA96: 19.11364145 | AB96: 0.05948590874 | AC96: 17.68290131 | AD96: 0.0522770669 | AE96: 21.85028789 | AF96: 0.07333192139 | AG96: 14.01075917 | AH96: 0.06141201191 | AJ96: =AVERAGE(S638:S642) -> 10.06795102 | AK96: =AVERAGE(T638:T642) -> 0.9242219848 | AL96: =AVERAGE(U651:U654) -> 10.70130493 | AM96: =AVERAGE(V651:V654) -> 0.924686724 | AN96: =AVERAGE(W647:W650) -> 11.52432135 | AO96: =AVERAGE(X647:X650) -> 0.9250892494 | AP96: =AVERAGE(Y652:Y655) -> 9.256396637 | AQ96: =AVERAGE(Z652:Z655) -> 0.9244169936 | AR96: =AVERAGE(AA647:AA651) -> 21.69321541 | AS96: =AVERAGE(AB647:AB651) -> 0.9245266907 | AT96: =AVERAGE(AC649:AC652) -> 16.74621682 | AU96: =AVERAGE(AD649:AD652) -> 0.9250198515 | AV96: =AVERAGE(AE648:AE651) -> 20.43265522 | AW96: =AVERAGE(AF648:AF651) -> 0.9246518596 | AX96: =AVERAGE(AG652:AG655) -> 12.93793022 | AY96: =AVERAGE(AH652:AH655) -> 0.9253445382
B97: 0.1900863896 | C97: 2.829451661 | D97: 0.1983682066 | E97: 2.228127104 | F97: 0.2237675836 | G97: 2.120647123 | H97: 0.1856419941 | I97: 1.81882198 | J97: 0.1457753281 | K97: 2.722659305 | L97: 0.1442086324 | M97: 2.585876975 | N97: 0.1448413481 | O97: 3.292113745 | P97: 0.1698251793 | Q97: 2.367204232 | S97: 14.88508287 | T97: 0.05349572754 | U97: 11.23227931 | V97: 0.05384330076 | W97: 9.477007747 | X97: 0.04137550515 | Y97: 9.797470607 | Z97: 0.04434469203 | AA97: 18.67709262 | AB97: 0.06022337102 | AC97: 17.93149919 | AD97: 0.0528651825 | AE97: 22.72910179 | AF97: 0.07416023214 | AG97: 13.93906511 | AH97: 0.06223122186 | AJ97: =AVERAGE(S643:S648) -> 9.924125959 | AK97: =AVERAGE(T643:T648) -> 0.9351901159 | AL97: =AVERAGE(U655:U658) -> 10.68346286 | AM97: =AVERAGE(V655:V658) -> 0.9349571681 | AN97: =AVERAGE(W651:W654) -> 11.42775182 | AO97: =AVERAGE(X651:X654) -> 0.9343638306 | AP97: =AVERAGE(Y656:Y659) -> 9.226287006 | AQ97: =AVERAGE(Z656:Z659) -> 0.9351917892 | AR97: =AVERAGE(AA652:AA655) -> 21.26794165 | AS97: =AVERAGE(AB652:AB655) -> 0.9349888897 | AT97: =AVERAGE(AC653:AC656) -> 16.6833224 | AU97: =AVERAGE(AD653:AD656) -> 0.9347393041 | AV97: =AVERAGE(AE652:AE656) -> 20.45433758 | AW97: =AVERAGE(AF652:AF656) -> 0.9352925675 | AX97: =AVERAGE(AG656:AG659) -> 12.91517395 | AY97: =AVERAGE(AH656:AH659) -> 0.9356880717
B98: 0.1967699702 | C98: 2.902710608 | D98: 0.1982574041 | E98: 2.256823646 | F98: 0.2242926011 | G98: 2.148397885 | H98: 0.1906244333 | I98: 1.844878055 | J98: 0.1465404406 | K98: 2.754949642 | L98: 0.1584572097 | M98: 2.644434623 | N98: 0.1424803336 | O98: 3.367804415 | P98: 0.16800481 | Q98: 2.397198608 | S98: 14.75179676 | T98: 0.05488081594 | U98: 11.3833007 | V98: 0.05453676057 | W98: 9.578549958 | X98: 0.04191694451 | Y98: 9.678077588 | Z98: 0.0449799651 | AA98: 18.79992738 | AB98: 0.06093761132 | AC98: 16.68863555 | AD98: 0.05406232402 | AE98: 23.63697732 | AF98: 0.07586528794 | AG98: 14.26863081 | AH98: 0.06301974135 | AJ98: =AVERAGE(S649:S653) -> 9.816997818 | AK98: =AVERAGE(T649:T653) -> 0.9458046919 | AL98: =AVERAGE(U659:U662) -> 10.67520182 | AM98: =AVERAGE(V659:V662) -> 0.9451102661 | AN98: =AVERAGE(W655:W658) -> 11.40080937 | AO98: =AVERAGE(X655:X658) -> 0.9435952499 | AP98: =AVERAGE(Y660:Y663) -> 9.19025963 | AQ98: =AVERAGE(Z660:Z663) -> 0.9457670245 | AR98: =AVERAGE(AA656:AA659) -> 21.06101272 | AS98: =AVERAGE(AB656:AB659) -> 0.9442925529 | AT98: =AVERAGE(AC657:AC661) -> 16.6121092 | AU98: =AVERAGE(AD657:AD661) -> 0.9455798863 | AV98: =AVERAGE(AE657:AE660) -> 20.30276242 | AW98: =AVERAGE(AF657:AF660) -> 0.9462599355 | AX98: =AVERAGE(AG660:AG663) -> 12.90322493 | AY98: =AVERAGE(AH660:AH663) -> 0.9460072126
B99: 0.1975384479 | C99: 2.936513709 | D99: 0.1983793949 | E99: 2.283553112 | F99: 0.201680474 | G99: 2.20426546 | H99: 0.1867618039 | I99: 1.867068168 | J99: 0.1507711411 | K99: 2.785094069 | L99: 0.1456052065 | M99: 2.669582963 | N99: 0.1547684272 | O99: 3.40688509 | P99: 0.1755348055 | Q99: 2.426672464 | S99: 14.86552993 | T99: 0.05551992262 | U99: 11.51103981 | V99: 0.0551826854 | W99: 10.92949365 | X99: 0.04300696515 | Y99: 9.99705576 | Z99: 0.04552098215 | AA99: 18.47232865 | AB99: 0.06160438552 | AC99: 18.3343922 | AD99: 0.05457645195 | AE99: 22.01279131 | AF99: 0.0767456439 | AG99: 13.82445183 | AH99: 0.06379457694 | AJ99: =AVERAGE(S654:S658) -> 9.689346307 | AK99: =AVERAGE(T654:T658) -> 0.9556166655 | AL99: =AVERAGE(U663:U666) -> 10.65518814 | AM99: =AVERAGE(V663:V666) -> 0.9552374865 | AN99: =AVERAGE(W659:W663) -> 11.36202121 | AO99: =AVERAGE(X659:X663) -> 0.9539661514 | AP99: =AVERAGE(Y664:Y666) -> 9.179635955 | AQ99: =AVERAGE(Z664:Z666) -> 0.9550640922 | AR99: =AVERAGE(AA660:AA664) -> 20.80944318 | AS99: =AVERAGE(AB660:AB664) -> 0.9549394034 | AT99: =AVERAGE(AC662:AC665) -> 16.50222752 | AU99: =AVERAGE(AD662:AD665) -> 0.9568265513 | AV99: =AVERAGE(AE661:AE664) -> 20.27703543 | AW99: =AVERAGE(AF661:AF664) -> 0.9550374757 | AX99: =AVERAGE(AG664:AG666) -> 12.85584427 | AY99: =AVERAGE(AH664:AH666) -> 0.9551442029
B100: 0.1989679908 | C100: 2.966313929 | D100: 0.1979188497 | E100: 2.312948359 | F100: 0.205150495 | G100: 2.231676971 | H100: 0.1893807451 | I100: 1.892088833 | J100: 0.138608925 | K100: 2.820680966 | L100: 0.1551463331 | M100: 2.699974735 | N100: 0.1611935223 | O100: 3.446031735 | P100: 0.1775290755 | Q100: 2.456421187 | S100: 14.90849818 | T100: 0.05608334786 | U100: 11.68634702 | V100: 0.05589302961 | W100: 10.87824317 | X100: 0.04354178543 | Y100: 9.990925065 | Z100: 0.04613101089 | AA100: 20.3499231 | AB100: 0.06239154346 | AC100: 17.40276216 | AD100: 0.05519777564 | AE100: 21.37822715 | AF100: 0.07762748593 | AG100: 13.83672607 | AH100: 0.06457663848 | AJ100: =AVERAGE(S659:S663) -> 9.559702611 | AK100: =AVERAGE(T659:T663) -> 0.9649428919 | AL100: =AVERAGE(U667:U670) -> 10.6437455 | AM100: =AVERAGE(V667:V670) -> 0.9652613078 | AN100: =AVERAGE(W664:W668) -> 11.14118517 | AO100: =AVERAGE(X664:X668) -> 0.964885668 | AP100: =AVERAGE(Y667:Y670) -> 9.175292858 | AQ100: =AVERAGE(Z667:Z670) -> 0.9644034708 | AR100: =AVERAGE(AA665:AA668) -> 20.51353634 | AS100: =AVERAGE(AB665:AB668) -> 0.9656140461 | AT100: =AVERAGE(AC666:AC669) -> 16.38780583 | AU100: =AVERAGE(AD666:AD669) -> 0.966411539 | AV100: =AVERAGE(AE665:AE668) -> 20.17183094 | AW100: =AVERAGE(AF665:AF668) -> 0.9651076664 | AX100: =AVERAGE(AG667:AG670) -> 12.80046753 | AY100: =AVERAGE(AH667:AH670) -> 0.9644131134
B101: 0.2117522806 | C101: 3.001688896 | D101: 0.2071016903 | E101: 2.340372934 | F101: 0.184543555 | G101: 2.262175613 | H101: 0.1925021162 | I101: 1.917171161 | J101: 0.1540781682 | K101: 2.852260525 | L101: 0.150315774 | M101: 2.727088856 | N101: 0.1566448063 | O101: 3.487849284 | P101: 0.1786374301 | Q101: 2.487052214 | S101: 14.17547375 | T101: 0.05675217342 | U101: 11.30059794 | V101: 0.05655575194 | W101: 12.25822063 | X101: 0.0441368381 | Y101: 9.959221222 | Z101: 0.04674254303 | AA101: 18.51177593 | AB101: 0.06309006182 | AC101: 18.14239972 | AD101: 0.05575209162 | AE101: 22.26597464 | AF101: 0.07856949444 | AG101: 13.92234658 | AH101: 0.06538189485 | AJ101: =AVERAGE(S664:S669) -> 9.421533724 | AK101: =AVERAGE(T664:T669) -> 0.9746667151 | AL101: =AVERAGE(U671:U674) -> 10.61186866 | AM101: =AVERAGE(V671:V674) -> 0.9755740516 | AN101: =AVERAGE(W669:W672) -> 10.93221687 | AO101: =AVERAGE(X669:X672) -> 0.9764575997 | AP101: =AVERAGE(Y671:Y674) -> 9.162460245 | AQ101: =AVERAGE(Z671:Z674) -> 0.9751057656 | AR101: =AVERAGE(AA669:AA673) -> 20.33319358 | AS101: =AVERAGE(AB669:AB673) -> 0.9758731029 | AT101: =AVERAGE(AC670:AC673) -> 16.29927276 | AU101: =AVERAGE(AD670:AD673) -> 0.9759953909 | AV101: =AVERAGE(AE669:AE673) -> 20.1508727 | AW101: =AVERAGE(AF669:AF673) -> 0.9752160049 | AX101: =AVERAGE(AG671:AG674) -> 12.7374778 | AY101: =AVERAGE(AH671:AH674) -> 0.9749924657
B102: 0.221380194 | C102: 3.074947843 | D102: 0.2134129157 | E102: 2.366335075 | F102: 0.1927875231 | G102: 2.29070692 | H102: 0.2013086776 | I102: 1.943763424 | J102: 0.1539355392 | K102: 2.879618443 | L102: 0.1537712788 | M102: 2.788096641 | N102: 0.1468029246 | O102: 3.52681104 | P102: 0.1833490613 | Q102: 2.517354703 | S102: 13.88989587 | T102: 0.05813726182 | U102: 11.08805935 | V102: 0.05718313418 | W102: 11.88202889 | X102: 0.04469350649 | Y102: 9.655636546 | Z102: 0.04739088892 | AA102: 18.70665122 | AB102: 0.06369520035 | AC102: 18.13145253 | AD102: 0.0569993233 | AE102: 24.02411976 | AF102: 0.07944717155 | AG102: 13.72984778 | AH102: 0.06617851428 | AJ102: =AVERAGE(S670:S675) -> 9.303799668 | AK102: =AVERAGE(T670:T675) -> 0.9852912028 | AL102: =AVERAGE(U675:U678) -> 10.57152156 | AM102: =AVERAGE(V675:V678) -> 0.9859467546 | AN102: =AVERAGE(W673:W677) -> 10.89849856 | AO102: =AVERAGE(X673:X677) -> 0.9862519341 | AP102: =AVERAGE(Y675:Y678) -> 9.168717686 | AQ102: =AVERAGE(Z675:Z678) -> 0.9856643262 | AR102: =AVERAGE(AA674:AA677) -> 20.25867018 | AS102: 0.9862117801 | AT102: 16.22243854 | AU102: 0.9856172658 | AV102: 20.02365627 | AW102: 0.9866931383 | AX102: =AVERAGE(AG675:AG678) -> 12.67577216 | AY102: =AVERAGE(AH675:AH678) -> 0.9855691323
B103: 0.2170268943 | C103: 3.10737016 | D103: 0.2038006981 | E103: 2.39844703 | F103: 0.1988525564 | G103: 2.34757458 | H103: 0.1943488916 | I103: 1.966215061 | J103: 0.1509089768 | K103: 2.909205452 | L103: 0.1524476955 | M103: 2.815880296 | N103: 0.1371806612 | O103: 3.566073132 | P103: 0.1849431441 | Q103: 2.547704967 | S103: 14.31790364 | T103: 0.05875026238 | U103: 11.76859084 | V103: 0.05795912836 | W103: 11.80560422 | X103: 0.0458030396 | Y103: 10.11693478 | Z103: 0.04793828219 | AA103: 19.27788203 | AB103: 0.06434964486 | AC103: 18.47112406 | AD103: 0.05756732712 | AE103: 25.99545083 | AF103: 0.08033161421 | AG103: 13.77561185 | AH103: 0.06697638967 | AJ103: =AVERAGE(S676:S681) -> 9.169908347 | AK103: =AVERAGE(T676:T681) -> 0.9950984516 | AL103: =AVERAGE(U679:U681) -> 10.52674264 | AM103: =AVERAGE(V679:V681) -> 0.9948638973 | AN103: =AVERAGE(W678:W681) -> 10.83907755 | AO103: =AVERAGE(X678:X681) -> 0.9958712631 | AP103: =AVERAGE(Y679:Y681) -> 9.157299094 | AQ103: =AVERAGE(Z679:Z681) -> 0.9949397385 | AR103: =AVERAGE(AA678:AA681) -> 20.07377008 | AS103: 0.9953775552 | AT103: 16.14859404 | AU103: 0.9953013454 | AV103: 19.93977475 | AW103: 0.9949370212 | AX103: =AVERAGE(AG679:AG681) -> 12.65250415 | AY103: =AVERAGE(AH679:AH681) -> 0.9947730817
B104: 0.2295142412 | C104: 3.143925549 | D104: 0.2074961116 | E104: 2.427786606 | F104: 0.2104903261 | G104: 2.374713247 | H104: 0.2082716301 | I104: 1.990611592 | J104: 0.1579179491 | K104: 2.939466561 | L104: 0.1545302818 | M104: 2.848574064 | N104: 0.1441337168 | O104: 3.601670434 | P104: 0.1865178015 | Q104: 2.578997385 | S104: 13.69817199 | T104: 0.05944140588 | U104: 11.70039567 | V104: 0.05866812723 | W104: 11.28181656 | X104: 0.04633253647 | Y104: 9.557766419 | Z104: 0.04853309393 | AA104: 18.61388511 | AB104: 0.06501899999 | AC104: 18.43375959 | AD104: 0.05823571236 | AE104: 24.98839629 | AF104: 0.08113350151 | AG104: 13.82708441 | AH104: 0.06779903327
B105: 0.2275857826 | C105: 3.182891945 | D105: 0.2150883029 | E105: 2.460884833 | F105: 0.220658655 | G105: 2.404724656 | H105: 0.2141682059 | I105: 2.012628126 | J105: 0.153218545 | K105: 2.969815758 | L105: 0.157241635 | M105: 2.881126344 | N105: 0.1464187726 | O105: 3.642078026 | P105: 0.1871649424 | Q105: 2.611059978 | S105: 13.98546038 | T105: 0.06017813368 | U105: 11.44127691 | V105: 0.05946795494 | W105: 10.89793943 | X105: 0.04691808285 | Y105: 9.397417873 | Z105: 0.04906987895 | AA105: 19.38287404 | AB105: 0.06569030359 | AC105: 18.32292283 | AD105: 0.05890120505 | AE105: 24.87439254 | AF105: 0.08204374843 | AG105: 13.95058254 | AH105: 0.06864192394
B106: 0.2363612254 | C106: 3.252144243 | D106: 0.2083926648 | E106: 2.492853508 | F106: 0.2264899512 | G106: 2.433511874 | H106: 0.2233099937 | I106: 2.065700881 | J106: 0.1516612247 | K106: 2.999327675 | L106: 0.1757594819 | M106: 2.939585326 | N106: 0.1634645586 | O106: 3.71876779 | P106: 0.1852935615 | Q106: 2.64134163 | S106: 13.75921214 | T106: 0.06148746937 | U106: 11.96229009 | V106: 0.06024048672 | W106: 10.74445847 | X106: 0.04747974427 | Y106: 9.250373646 | Z106: 0.0503638456 | AA106: 19.77649648 | AB106: 0.0663430871 | AC106: 16.72504547 | AD106: 0.06009632948 | AE106: 22.7496885 | AF106: 0.08377131044 | AG106: 14.25490238 | AH106: 0.0694379956
B107: 0.2451099704 | C107: 3.283406435 | D107: 0.2128423005 | E107: 2.526636199 | F107: 0.2465467403 | G107: 2.496453378 | H107: 0.2214761575 | I107: 2.091334994 | J107: 0.1608259355 | K107: 3.035128586 | L107: 0.1746030152 | M107: 2.96778216 | N107: 0.1509785652 | O107: 3.764904907 | P107: 0.1838081744 | Q107: 2.672300289 | S107: 13.39564617 | T107: 0.06207853573 | U107: 11.8709307 | V107: 0.06105685468 | W107: 10.12567992 | X107: 0.04870778286 | Y107: 9.442709398 | Z107: 0.05098883082 | AA107: 18.87213388 | AB107: 0.06713497888 | AC107: 16.99731334 | AD107: 0.06067278025 | AE107: 24.9366849 | AF107: 0.08481062427 | AG107: 14.53852799 | AH107: 0.07025186503
B108: 0.2342532823 | C108: 3.319715939 | D108: 0.2147493015 | E108: 2.555169322 | F108: 0.2499214311 | G108: 2.525623726 | H108: 0.2260507395 | I108: 2.115157357 | J108: 0.163195009 | K108: 3.067220506 | L108: 0.1822483291 | M108: 2.997698835 | N108: 0.1683540518 | O108: 3.805192133 | P108: 0.1875455119 | Q108: 2.702703947 | S108: 14.171481 | T108: 0.06276503035 | U108: 11.89838246 | V108: 0.0617463654 | W108: 10.10567087 | X108: 0.04927691946 | Y108: 9.357002598 | Z108: 0.05156964375 | AA108: 18.79481808 | AB108: 0.06784483033 | AC108: 16.44842973 | AD108: 0.06128439113 | AE108: 22.60231989 | AF108: 0.08571815975 | AG108: 14.41092309 | AH108: 0.0710511441
B109: 0.253579393 | C109: 3.356005146 | D109: 0.2299129466 | E109: 2.589614322 | F109: 0.2564541996 | G109: 2.556890838 | H109: 0.2355092267 | I109: 2.14368253 | J109: 0.1610363399 | K109: 3.096665995 | L109: 0.1689300438 | M109: 3.025650308 | N109: 0.1461820056 | O109: 3.841609137 | P109: 0.1948443821 | Q109: 2.735988436 | S109: 13.23453419 | T109: 0.06345114122 | U109: 11.26345584 | V109: 0.06257873825 | W109: 9.9701656 | X109: 0.04988696559 | Y109: 9.102329278 | Z109: 0.05226511589 | AA109: 19.2296099 | AB109: 0.0684961445 | AC109: 17.91067024 | AD109: 0.06185582579 | AE109: 26.2796308 | AF109: 0.08653851218 | AG109: 14.04191595 | AH109: 0.07192615708
B110: 0.253546536 | C110: 3.429191313 | D110: 0.2285207063 | E110: 2.6187689 | F110: 0.255287538 | G110: 2.587990681 | H110: 0.2291137228 | I110: 2.17064809 | J110: 0.1634626587 | K110: 3.163314025 | L110: 0.1814113185 | M110: 3.085081186 | N110: 0.1621318484 | O110: 3.880278949 | P110: 0.1949165037 | Q110: 2.766625786 | S110: 13.52489909 | T110: 0.06483485359 | U110: 11.45965695 | V110: 0.0632832666 | W110: 10.13755196 | X110: 0.05049374815 | Y110: 9.474107717 | Z110: 0.05292256311 | AA110: 19.35190611 | AB110: 0.06997035355 | AC110: 17.00600167 | AD110: 0.06307081947 | AE110: 23.93286073 | AF110: 0.08740961276 | AG110: 14.19390218 | AH110: 0.07273157965
B111: 0.2621931583 | C111: 3.46386574 | D111: 0.2239981542 | E111: 2.648478184 | F111: 0.2414645751 | G111: 2.647544673 | H111: 0.2316242705 | I111: 2.195742403 | J111: 0.1697836071 | K111: 3.194272915 | L111: 0.1688835894 | M111: 3.112009839 | N111: 0.1441732794 | O111: 3.91635511 | P111: 0.1989130614 | Q111: 2.796727839 | S111: 13.21112177 | T111: 0.06549043422 | U111: 11.82366075 | V111: 0.06400119957 | W111: 10.96452625 | X111: 0.05165569372 | Y111: 9.479759607 | Z111: 0.05353438748 | AA111: 18.81378874 | AB111: 0.07065514315 | AC111: 18.42695226 | AD111: 0.0636213438 | AE111: 27.16422298 | AF111: 0.08822228713 | AG111: 14.06005126 | AH111: 0.07352292984
B112: 0.258211717 | C112: 3.500690791 | D112: 0.2408411105 | E112: 2.679022117 | F112: 0.2367725472 | G112: 2.675540304 | H112: 0.2317135284 | I112: 2.221674864 | J112: 0.1507450889 | K112: 3.233338327 | L112: 0.1932196567 | M112: 3.141872697 | N112: 0.1591783141 | O112: 3.957019925 | P112: 0.2053386801 | Q112: 2.830805637 | S112: 13.5574436 | T112: 0.06618667614 | U112: 11.12360805 | V112: 0.06473930205 | W112: 11.30004443 | X112: 0.05220191064 | Y112: 9.588023968 | Z112: 0.05416664672 | AA112: 21.44904588 | AB112: 0.07151924346 | AC112: 16.26062664 | AD112: 0.06423185445 | AE112: 24.85903904 | AF112: 0.08913832844 | AG112: 13.78603211 | AH112: 0.07441879805
B113: 0.2711133907 | C113: 3.536138827 | D113: 0.2309346696 | E113: 2.709610932 | F113: 0.2368422349 | G113: 2.70669816 | H113: 0.2387345582 | I113: 2.24969013 | J113: 0.1612652962 | K113: 3.275454225 | L113: 0.1703312869 | M113: 3.172372973 | N113: 0.1714305455 | O113: 3.996341332 | P113: 0.2066199688 | Q113: 2.86383022 | S113: 13.04302535 | T113: 0.06685688321 | U113: 11.7332358 | V113: 0.06547848914 | W113: 11.42827486 | X113: 0.05280982511 | Y113: 9.423395369 | Z113: 0.05484968682 | AA113: 20.31096771 | AB113: 0.07245081847 | AC113: 18.62472262 | AD113: 0.06485539634 | AE113: 23.31172265 | AF113: 0.09002410726 | AG113: 13.86037485 | AH113: 0.07528697837
B114: 0.2723819017 | C114: 3.605408812 | D114: 0.2443742752 | E114: 2.744063988 | F114: 0.2269331863 | G114: 2.738104861 | H114: 0.2440108359 | I114: 2.278970127 | J114: 0.1356593023 | K114: 3.351447511 | L114: 0.1966099441 | M114: 3.23374388 | N114: 0.1771742726 | O114: 4.075558487 | P114: 0.2081172396 | Q114: 2.895287986 | S114: 13.23659461 | T114: 0.06816655331 | U114: 11.22893965 | V114: 0.06631105667 | W114: 12.06568729 | X114: 0.05342259471 | Y114: 9.339626737 | Z114: 0.0555635623 | AA114: 24.70488537 | AB114: 0.07413173826 | AC114: 16.44750928 | AD114: 0.06611005163 | AE114: 23.00310551 | AF114: 0.09180860289 | AG114: 13.91181236 | AH114: 0.0761139688
B115: 0.2762379001 | C115: 3.643496633 | D115: 0.2458679179 | E115: 2.773893823 | F115: 0.2114579578 | G115: 2.804450367 | H115: 0.2475869407 | I115: 2.307521582 | J115: 0.1381933068 | K115: 3.38940011 | L115: 0.1827070862 | M115: 3.261760744 | N115: 0.1581464584 | O115: 4.11439872 | P115: 0.2163967904 | Q115: 2.92733843 | S115: 13.1897058 | T115: 0.06888667012 | U115: 11.2820487 | V115: 0.06703190278 | W115: 13.26244893 | X115: 0.05471704809 | Y115: 9.320045618 | Z115: 0.05625967523 | AA115: 24.52651426 | AB115: 0.07497122391 | AC115: 17.85240415 | AD115: 0.06668282313 | AE115: 26.0163823 | AF115: 0.0926835425 | AG115: 13.52764255 | AH115: 0.07695654008
B116: 0.2703391761 | C116: 3.677481538 | D116: 0.2505390594 | E116: 2.802857936 | F116: 0.2123808116 | G116: 2.833209608 | H116: 0.2525215099 | I116: 2.336066972 | J116: 0.1345608259 | K116: 3.427576253 | L116: 0.1788089176 | M116: 3.290348477 | N116: 0.1818280667 | O116: 4.152816226 | P116: 0.217180219 | Q116: 2.957619249 | S116: 13.60321353 | T116: 0.06952921413 | U116: 11.18730925 | V116: 0.0677318285 | W116: 13.34023346 | X116: 0.05527816366 | Y116: 9.250962315 | Z116: 0.05695564028 | AA116: 25.47231878 | AB116: 0.07581565422 | AC116: 18.40147864 | AD116: 0.06726726537 | AE116: 22.83924755 | AF116: 0.09354895949 | AG116: 13.61827179 | AH116: 0.07775258985
B117: 0.2802915623 | C117: 3.712265569 | D117: 0.2554329981 | E117: 2.837375152 | F117: 0.2108155439 | G117: 2.862292493 | H117: 0.2469805628 | I117: 2.360994927 | J117: 0.12732928 | K117: 3.466841237 | L117: 0.194588763 | M117: 3.324876376 | N117: 0.1794711376 | O117: 4.186704682 | P117: 0.2219296599 | Q117: 2.991278469 | S117: 13.24430011 | T117: 0.07018686701 | U117: 11.10809947 | V117: 0.06856594646 | W117: 13.57723648 | X117: 0.05584559378 | Y117: 9.559436177 | Z117: 0.05756340865 | AA117: 27.22736858 | AB117: 0.07668416895 | AC117: 17.08668231 | AD117: 0.06797314723 | AE117: 23.32801105 | AF117: 0.09431235223 | AG117: 13.47849797 | AH117: 0.07863745409
B118: 0.2768047651 | C118: 3.789829534 | D118: 0.2524066468 | E118: 2.869706055 | F118: 0.2142117421 | G118: 2.895825112 | H118: 0.2539846301 | I118: 2.391073936 | J118: 0.1038508303 | K118: 3.539170589 | L118: 0.1877895867 | M118: 3.38492297 | N118: 0.1792325079 | O118: 4.227400457 | P118: 0.2248701846 | Q118: 3.023869184 | S118: 13.69134499 | T118: 0.07165334929 | U118: 11.36937593 | V118: 0.06934723157 | W118: 13.51851716 | X118: 0.05649984174 | Y118: 9.414246584 | Z118: 0.05829676487 | AA118: 34.07936728 | AB118: 0.07828404499 | AC118: 18.02508345 | AD118: 0.06920072852 | AE118: 23.58612567 | AF118: 0.09522909095 | AG118: 13.44717704 | AH118: 0.0794942285
B119: 0.2784122775 | C119: 3.828484224 | D119: 0.2681515614 | E119: 2.900249987 | F119: 0.218402793 | G119: 2.960734099 | H119: 0.2567047874 | I119: 2.417468794 | J119: 0.1019442951 | K119: 3.5747468 | L119: 0.1898500572 | M119: 3.415268159 | N119: 0.1863528664 | O119: 4.262691637 | P119: 0.2301114984 | Q119: 3.055899802 | S119: 13.75113288 | T119: 0.07238418375 | U119: 10.81571173 | V119: 0.07008533405 | W119: 13.55630145 | X119: 0.05776626749 | Y119: 9.417310904 | Z119: 0.05894029779 | AA119: 35.06568757 | AB119: 0.07907096657 | AC119: 17.98929224 | AD119: 0.06982109985 | AE119: 22.87430142 | AF119: 0.09602408234 | AG119: 13.28008302 | AH119: 0.08033627856
B120: 0.2769175172 | C120: 3.864821274 | D120: 0.2692935616 | E120: 2.931533912 | F120: 0.2277048926 | G120: 2.992158763 | H120: 0.2655161669 | I120: 2.447085262 | J120: 0.1087961967 | K120: 3.611766231 | L120: 0.1914823676 | M120: 3.444658524 | N120: 0.1904621472 | O120: 4.301894124 | P120: 0.2283118044 | Q120: 3.088317416 | S120: 13.95657925 | T120: 0.07307119918 | U120: 10.8860156 | V120: 0.07084131863 | W120: 13.14051152 | X120: 0.05837938758 | Y120: 9.21633244 | Z120: 0.0596623768 | AA120: 33.19754128 | AB120: 0.07988981118 | AC120: 17.98942935 | AD120: 0.07042195094 | AE120: 22.5866094 | AF120: 0.09690718232 | AG120: 13.52675313 | AH120: 0.08118850235
B121: 0.2983975659 | C121: 3.898904765 | D121: 0.2663578838 | E121: 2.96488705 | F121: 0.2353351067 | G121: 3.020790785 | H121: 0.2666254093 | I121: 2.474157829 | J121: 0.1248096178 | K121: 3.650420366 | L121: 0.1884626597 | M121: 3.478819828 | N121: 0.1968115568 | O121: 4.34488495 | P121: 0.2243897112 | Q121: 3.120295932 | S121: 13.06614132 | T121: 0.07371560713 | U121: 11.13121567 | V121: 0.07164730635 | W121: 12.83612474 | X121: 0.058938021 | Y121: 9.279527541 | Z121: 0.06032243295 | AA121: 29.24790918 | AB121: 0.08074481435 | AC121: 18.45893416 | AD121: 0.07112033821 | AE121: 22.07637103 | AF121: 0.0978756208 | AG121: 13.90569966 | AH121: 0.0820291827
B122: 0.2950032552 | C122: 3.969776772 | D122: 0.2784205725 | E122: 3.000246107 | F122: 0.2508671085 | G122: 3.054696816 | H122: 0.2661827703 | I122: 2.503412987 | J122: 0.1229410991 | K122: 3.730602946 | L122: 0.1931145539 | M122: 3.539206687 | N122: 0.1958204682 | O122: 4.42232237 | P122: 0.2342045059 | Q122: 3.153298796 | S122: 13.45672192 | T122: 0.07505556625 | U122: 10.77594978 | V122: 0.07250176763 | W122: 12.17655369 | X122: 0.05959955454 | Y122: 9.404864876 | Z122: 0.06103570286 | AA122: 30.34463636 | AB122: 0.08251839845 | AC122: 18.32698062 | AD122: 0.0723548758 | AE122: 22.58355529 | AF122: 0.099620025 | AG122: 13.46386904 | AH122: 0.08289679207
B123: 0.2930179735 | C123: 4.0057737 | D123: 0.2704584599 | E123: 3.037459747 | F123: 0.2629089355 | G123: 3.120812032 | H123: 0.2719732871 | I123: 2.532336583 | J123: 0.1268694922 | K123: 3.771300463 | L123: 0.1932187378 | M123: 3.568493468 | N123: 0.1930846771 | O123: 4.461697594 | P123: 0.2306372714 | Q123: 3.186311059 | S123: 13.67074399 | T123: 0.07573615108 | U123: 11.23078105 | V123: 0.0734010454 | W123: 11.87031557 | X123: 0.06088951476 | Y123: 9.310975393 | Z123: 0.06174088895 | AA123: 29.7258261 | AB123: 0.08341859983 | AC123: 18.46867187 | AD123: 0.07295360924 | AE123: 23.10746592 | AF123: 0.1005070162 | AG123: 13.81524781 | AH123: 0.08376464851
B124: 0.2900548776 | C124: 4.038773615 | D124: 0.288278386 | E124: 3.076173509 | F124: 0.274098739 | G124: 3.151585874 | H124: 0.2788401643 | I124: 2.562560434 | J124: 0.1188254108 | K124: 3.806674502 | L124: 0.1925541212 | M124: 3.602921254 | N124: 0.1760941371 | O124: 4.501720363 | P124: 0.2351777959 | Q124: 3.221284191 | S124: 13.92417066 | T124: 0.07636007213 | U124: 10.67084339 | V124: 0.07433657406 | W124: 11.49799479 | X124: 0.06148993681 | Y124: 9.190069302 | Z124: 0.06247777655 | AA124: 32.03586233 | AB124: 0.0842010495 | AC124: 18.71121341 | AD124: 0.07365744443 | AE124: 25.56428304 | AF124: 0.1014085943 | AG124: 13.69722927 | AH124: 0.08468405408
B125: 0.301492239 | C125: 4.078013152 | D125: 0.2843613923 | E125: 3.110283327 | F125: 0.2828822782 | G125: 3.181845833 | H125: 0.2822960665 | I125: 2.589888604 | J125: 0.1189031949 | K125: 3.845317951 | L125: 0.2015333126 | M125: 3.635569017 | N125: 0.2012182896 | O125: 4.539772432 | P125: 0.2362244721 | Q125: 3.253331835 | S125: 13.52609661 | T125: 0.07710196415 | U125: 10.93778344 | V125: 0.07516084713 | W125: 11.2479504 | X125: 0.06208033257 | Y125: 9.174370145 | Z125: 0.06314406456 | AA125: 32.33990437 | AB125: 0.08505581631 | AC125: 18.03954379 | AD125: 0.07432488915 | AE125: 22.56143038 | AF125: 0.1022657792 | AG125: 13.77220491 | AH125: 0.08552655175
B126: 0.3080278387 | C126: 4.147884802 | D126: 0.2781563749 | E126: 3.148710817 | F126: 0.2892275155 | G126: 3.212454762 | H126: 0.2870265394 | I126: 2.618582591 | J126: 0.1239611208 | K126: 3.918203565 | L126: 0.2049625789 | M126: 3.700924725 | N126: 0.1806428904 | O126: 4.579879978 | P126: 0.2353196012 | Q126: 3.286901418 | S126: 13.46594132 | T126: 0.07842300976 | U126: 11.31993045 | V126: 0.07608945795 | W126: 11.10701642 | X126: 0.06267753702 | Y126: 9.123137519 | Z126: 0.06384365254 | AA126: 31.60832637 | AB126: 0.08666799648 | AC126: 18.05658742 | AD126: 0.07566100895 | AE126: 25.35322573 | AF126: 0.1031692671 | AG126: 13.96781824 | AH126: 0.08640905955
B127: 0.3055847685 | C127: 4.183559586 | D127: 0.2874414871 | E127: 3.187911386 | F127: 0.3071492165 | G127: 3.279971158 | H127: 0.2946184576 | I127: 2.643499715 | J127: 0.1303199679 | K127: 3.956868387 | L127: 0.1952099428 | M127: 3.732499033 | N127: 0.1974091555 | O127: 4.61921209 | P127: 0.237176141 | Q127: 3.320913213 | S127: 13.69034068 | T127: 0.07909750389 | U127: 11.09064463 | V127: 0.07703675041 | W127: 10.67875476 | X127: 0.06399483538 | Y127: 8.97262085 | Z127: 0.06445115686 | AA127: 30.36271764 | AB127: 0.08752323603 | AC127: 19.12043506 | AD127: 0.07630650817 | AE127: 23.39917862 | AF127: 0.1040552871 | AG127: 14.00188568 | AH127: 0.0873031926
B128: 0.3118617584 | C128: 4.220404934 | D128: 0.2862315128 | E128: 3.225591692 | F128: 0.3025003274 | G128: 3.309466033 | H128: 0.2935602019 | I128: 2.669645179 | J128: 0.1364480083 | K128: 3.993430042 | L128: 0.1974502206 | M128: 3.771351419 | N128: 0.1908276851 | O128: 4.657073483 | P128: 0.2408701947 | Q128: 3.35558223 | S128: 13.53293509 | T128: 0.07979412957 | U128: 11.2691704 | V128: 0.07794730531 | W128: 10.94037174 | X128: 0.06457030376 | Y128: 9.094029645 | Z128: 0.06508860931 | AA128: 29.26704531 | AB128: 0.08833195496 | AC128: 19.1002644 | AD128: 0.07710079903 | AE128: 24.40460084 | AF128: 0.1049081767 | AG128: 13.93108115 | AH128: 0.0882146033
B129: 0.3029845903 | C129: 4.25929971 | D129: 0.3005478283 | E129: 3.259576931 | F129: 0.3027905772 | G129: 3.343324946 | H129: 0.3020600478 | I129: 2.698729069 | J129: 0.1237262165 | K129: 4.02861404 | L129: 0.2047500014 | M129: 3.804002364 | N129: 0.2100854615 | O129: 4.698355173 | P129: 0.2431437332 | Q129: 3.388539868 | S129: 14.05780969 | T129: 0.08052950328 | U129: 10.84545162 | V129: 0.07876856791 | W129: 11.04170736 | X129: 0.06523091798 | Y129: 8.934412506 | Z129: 0.06579770352 | AA129: 32.56071474 | AB129: 0.08911020104 | AC129: 18.57876599 | AD129: 0.07776830881 | AE129: 22.36401862 | AF129: 0.1058381141 | AG129: 13.93636523 | AH129: 0.08908102374
B130: 0.3150667002 | C130: 4.33289269 | D130: 0.3053920219 | E130: 3.297637303 | F130: 0.3076872478 | G130: 3.375882806 | H130: 0.300039947 | I130: 2.727321969 | J130: 0.1409112041 | K130: 4.10074844 | L130: 0.1981195559 | M130: 3.865965262 | N130: 0.2141953011 | O130: 4.774283971 | P130: 0.2460153836 | Q130: 3.423053536 | S130: 13.75230288 | T130: 0.08192090714 | U130: 10.79804666 | V130: 0.0796883072 | W130: 10.97179955 | X130: 0.0658661476 | Y130: 9.089862853 | Z130: 0.06649482692 | AA130: 29.10164927 | AB130: 0.09070576489 | AC130: 19.51329461 | AD130: 0.07903506665 | AE130: 22.28939638 | AF130: 0.1075485342 | AG130: 13.91398166 | AH130: 0.08998835048
B131: 0.3164441387 | C131: 4.371451984 | D131: 0.3050419688 | E131: 3.335665739 | F131: 0.2797635893 | G131: 3.444242913 | H131: 0.3037685404 | I131: 2.755308642 | J131: 0.144669277 | K131: 4.13754086 | L131: 0.2200741321 | M131: 3.898301694 | N131: 0.2155686667 | O131: 4.81543459 | P131: 0.2451105892 | Q131: 3.457157071 | S131: 13.81429279 | T131: 0.08264993797 | U131: 10.93510428 | V131: 0.08060727475 | W131: 12.31126224 | X131: 0.06719990745 | Y131: 9.07042131 | Z131: 0.0671771699 | AA131: 28.59999681 | AB131: 0.09151958818 | AC131: 17.71358431 | AD131: 0.07969614658 | AE131: 22.33828628 | AF131: 0.108475519 | AG131: 14.10447865 | AH131: 0.09088489529
B132: 0.3152338912 | C132: 4.406922347 | D132: 0.3074856599 | E132: 3.365044155 | F132: 0.293713361 | G132: 3.479198505 | H132: 0.3035744528 | I132: 2.786323275 | J132: 0.1512771348 | K132: 4.170696494 | L132: 0.220802029 | M132: 3.935511781 | N132: 0.2020381143 | O132: 4.852557585 | P132: 0.2524164981 | Q132: 3.488969373 | S132: =C132/B132 -> 13.97984947 | T132: =C132/MAX($C$4:$C$682) -> 0.08332056717 | U132: 10.94374338 | V132: 0.08131721223 | W132: 11.84555749 | X132: 0.06788191873 | Y132: 9.178385233 | Z132: 0.06793333754 | AA132: 27.56990671 | AB132: 0.09225296825 | AC132: 17.82371204 | AD132: 0.08045686261 | AE132: 24.01803047 | AF132: 0.109311775 | AG132: 13.82227152 | AH132: 0.09172120607
B133: 0.3208249062 | C133: 4.443048017 | D133: 0.3109759341 | E133: 3.397748219 | F133: 0.2784877022 | G133: 3.513668189 | H133: 0.3028404464 | I133: 2.811420043 | J133: 0.15217565 | K133: 4.21152369 | L133: 0.2174404263 | M133: 3.968160412 | N133: 0.2165036152 | O133: 4.891051188 | P133: 0.2548976843 | Q133: 3.522895262 | S133: 13.84882511 | T133: 0.08400358609 | U133: =E133/D133 -> 10.92608092 | V133: =E133/MAX($E$4:$E$682) -> 0.08210751487 | W133: 12.61695996 | X133: 0.06855444957 | Y133: 9.283502506 | Z133: 0.06854522176 | AA133: 27.67541121 | AB133: 0.09315603804 | AC133: 18.24941424 | AD133: 0.08112432507 | AE133: 22.59108322 | AF133: 0.1101789062 | AG133: 13.82082098 | AH133: 0.09261308076
B134: 0.3235016267 | C134: 4.513896247 | D134: 0.3134338061 | E134: 3.437321949 | F134: 0.28704606 | G134: 3.548933289 | H134: 0.312579299 | I134: 2.842564066 | J134: 0.1533935343 | K134: 4.288532169 | L134: 0.2295177678 | M134: 4.032476519 | N134: 0.2048039312 | O134: 4.929688015 | P134: 0.2585769921 | Q134: 3.556461558 | S134: 13.95324127 | T134: 0.08534309567 | U134: 10.96665989 | V134: 0.08306382486 | W134: =G134/F134 -> 12.363637 | X134: =G134/MAX($G$4:$G$682) -> 0.06924249961 | Y134: =I134/H134 -> 9.093897372 | Z134: =I134/MAX($I$4:$I$682) -> 0.06930454406 | AA134: =K134/J134 -> 27.95771144 | AB134: =K134/MAX($K$4:$K$682) -> 0.09485941319 | AC134: =M134/L134 -> 17.56934357 | AD134: =M134/MAX($M$4:$M$682) -> 0.08243919146 | AE134: =O134/N134 -> 24.07028022 | AF134: =O134/MAX($O$4:$O$682) -> 0.1110492637 | AG134: =Q134/P134 -> 13.75397528 | AH134: =Q134/MAX($Q$4:$Q$682) -> 0.09349550213
B135: 0.3324250877 | C135: 4.552345647 | D135: 0.3119510164 | E135: 3.468354989 | F135: 0.2795980374 | G135: 3.616530669 | H135: 0.3099736075 | I135: 2.874444283 | J135: 0.1478530342 | K135: 4.328634145 | L135: 0.2168265978 | M135: 4.06807411 | N135: 0.2067892378 | O135: 4.969428966 | P135: 0.2595633165 | Q135: 3.590257873 | S135: 13.69435044 | T135: 0.08607004875 | U135: 11.11826795 | V135: 0.08381374677 | W135: 12.93474984 | X135: 0.07056137804 | Y135: 9.273190408 | Z135: 0.07008181553 | AA135: 29.27660002 | AB135: 0.09574644161 | AC135: 18.7618777 | AD135: 0.08316694192 | AE135: 24.03137136 | AF135: 0.1119444935 | AG135: 13.83191555 | AH135: 0.09438397045
B136: 0.3241977096 | C136: 4.5892948 | D136: 0.3136571497 | E136: 3.506673437 | F136: 0.2817453444 | G136: 3.650257357 | H136: 0.3212621063 | I136: 2.900111466 | J136: 0.1518970355 | K136: 4.36899779 | L136: 0.2222804974 | M136: 4.099585342 | N136: 0.2246142675 | O136: 5.009948243 | P136: 0.264486418 | Q136: 3.623716949 | S136: 14.15585201 | T136: 0.08676863705 | U136: 11.17995697 | V136: 0.08473972255 | W136: 12.95587462 | X136: 0.07121941243 | Y136: 9.027244138 | Z136: 0.07070760701 | AA136: 28.76289043 | AB136: 0.09663925796 | AC136: 18.4432975 | AD136: 0.08381115162 | AE136: 22.30467502 | AF136: 0.1128572563 | AG136: 13.70095666 | AH136: 0.09526357314
B137: 0.3315494955 | C137: 4.627595161 | D137: 0.3219249348 | E137: 3.542923246 | F137: 0.2817165355 | G137: 3.682663848 | H137: 0.3222646316 | I137: 2.929435651 | J137: 0.1473593215 | K137: 4.402247579 | L137: 0.2201502522 | M137: 4.133068721 | N137: 0.2159249783 | O137: 5.046817776 | P137: 0.2643828322 | Q137: 3.657161631 | S137: 13.95747912 | T137: 0.0874927723 | U137: 11.00543283 | V137: 0.08561570909 | W137: 13.07223178 | X137: 0.07185168875 | Y137: 9.090155618 | Z137: 0.07142255987 | AA137: 29.87423892 | AB137: 0.09737472066 | AC137: 18.77385413 | AD137: 0.08449567952 | AE137: 23.3730151 | AF137: 0.1136878027 | AG137: 13.83282568 | AH137: 0.0961427974
B138: 0.3345170617 | C138: 4.704645609 | D138: 0.3251846383 | E138: 3.581298373 | F138: 0.2985115349 | G138: 3.719719149 | H138: 0.3272993614 | I138: 2.959866584 | J138: 0.1470715056 | K138: 4.472743808 | L138: 0.2320594589 | M138: 4.201457877 | N138: 0.2299145112 | O138: 5.120306274 | P138: 0.2736011023 | Q138: 3.69267726 | S138: 14.06399298 | T138: 0.08894954564 | U138: 11.01312286 | V138: 0.08654305454 | W138: 12.46088916 | X138: 0.07257466702 | Y138: 9.043300822 | Z138: 0.07216449634 | AA138: 30.41203522 | AB138: 0.09893404928 | AC138: 18.1050921 | AD138: 0.08589381456 | AE138: 22.27047891 | AF138: 0.115343251 | AG138: 13.49657303 | AH138: 0.09707646462
B139: 0.3293708712 | C139: 4.743397145 | D139: 0.3225911657 | E139: 3.619367089 | F139: 0.3160956502 | G139: 3.787815983 | H139: 0.3241307785 | I139: 2.990153398 | J139: 0.1419015974 | K139: 4.51204576 | L139: 0.2377656351 | M139: 4.235894344 | N139: 0.2185106277 | O139: 5.164959073 | P139: 0.2742964216 | Q139: 3.726784445 | S139: 14.40138628 | T139: 0.08968221115 | U139: 11.21967206 | V139: 0.08746299545 | W139: 11.98313226 | X139: 0.07390329019 | Y139: 9.225144898 | Z139: 0.07290291902 | AA139: 31.79700471 | AB139: 0.09980338172 | AC139: 17.81541871 | AD139: 0.08659782722 | AE139: 23.63710693 | AF139: 0.1163491281 | AG139: 13.58670457 | AH139: 0.09797310539
B140: 0.3372857471 | C140: 4.780027634 | D140: 0.3358638783 | E140: 3.656086729 | F140: 0.3280137728 | G140: 3.827908647 | H140: 0.3408847998 | I140: 3.022367488 | J140: 0.1472398763 | K140: 4.552290412 | L140: 0.2452908456 | M140: 4.269046717 | N140: 0.2263727039 | O140: 5.202855187 | P140: 0.2800510431 | Q140: 3.761143442 | S140: 14.17204158 | T140: 0.09037477454 | U140: 10.88562053 | V140: 0.08835033561 | W140: 11.66996317 | X140: 0.07468552982 | Y140: 8.866243053 | Z140: 0.07368833063 | AA140: 30.91751044 | AB140: 0.100693566 | AC140: 17.40401973 | AD140: 0.08727558809 | AE140: 22.98358016 | AF140: 0.1172027999 | AG140: 13.43020687 | AH140: 0.09887636599
B141: 0.350031356 | C141: 4.814443127 | D141: 0.3369328131 | E141: 3.693573981 | F141: 0.3277581682 | G141: 3.867786922 | H141: 0.3373938302 | I141: 3.052207501 | J141: 0.1495469982 | K141: 4.58756943 | L141: 0.2393225332 | M141: 4.306223241 | N141: 0.2162906279 | O141: 5.240645403 | P141: 0.2806718047 | Q141: 3.795002734 | S141: 13.75431956 | T141: 0.09102545958 | U141: 10.96234572 | V141: 0.08925622531 | W141: 11.80073389 | X141: 0.07546358657 | Y141: 9.046423578 | Z141: 0.07441585988 | AA141: 30.67643941 | AB141: 0.1014739139 | AC141: 17.99338818 | AD141: 0.08803561795 | AE141: 24.22964626 | AF141: 0.1180540861 | AG141: 13.52113989 | AH141: 0.09976648993
B142: 0.3534922252 | C142: 4.891307711 | D142: 0.3485554208 | E142: 3.738528762 | F142: 0.3408323228 | G142: 3.902083447 | H142: 0.3541481743 | I142: 3.081462659 | J142: 0.1514650757 | K142: 4.666281353 | L142: 0.2393859128 | M142: 4.376965605 | N142: 0.2258837223 | O142: 5.280949411 | P142: 0.2815987811 | Q142: 3.832241912 | S142: 13.83710125 | T142: 0.09247871885 | U142: 10.72578 | V142: 0.09034256988 | W142: 11.44868953 | X142: 0.07613273892 | Y142: 8.701054763 | Z142: 0.07512912979 | AA142: 30.80763886 | AB142: 0.1032149681 | AC142: 18.28414026 | AD142: 0.08948186155 | AE142: 23.37906139 | AF142: 0.1189619997 | AG142: 13.60887251 | AH142: 0.1007454674
B143: 0.3607062499 | C143: 4.928521597 | D143: 0.3480982284 | E143: 3.776591436 | F143: 0.3566303353 | G143: 3.971885669 | H143: 0.3564206014 | I143: 3.111779509 | J143: 0.1421282316 | K143: 4.705031665 | L143: 0.2317373703 | M143: 4.410996995 | N143: 0.2394376944 | O143: 5.320419538 | P143: 0.2851990176 | Q143: 3.867928795 | S143: 13.66353258 | T143: 0.09318231238 | U143: 10.84921188 | V143: 0.09126236479 | W143: 11.13726253 | X143: 0.07749463557 | Y143: 8.730638737 | Z143: 0.0758682848 | AA143: 33.10413147 | AB143: 0.1040720986 | AC143: 19.03446557 | AD143: 0.09017759288 | AE143: 22.22047599 | AF143: 0.1198511287 | AG143: 13.56220939 | AH143: 0.1016836367
B144: 0.3570661445 | C144: 4.965985427 | D144: 0.3451701005 | E144: 3.813198869 | F144: 0.3366620094 | G144: 4.007185813 | H144: 0.3482104341 | I144: 3.142540849 | J144: 0.1416880017 | K144: 4.73911007 | L144: 0.2436393499 | M144: 4.444575856 | N144: 0.2261654288 | O144: 5.356352765 | P144: 0.2875043038 | Q144: 3.902589612 | S144: 13.90774651 | T144: 0.09389063154 | U144: 11.04730353 | V144: 0.09214699343 | W144: 11.90269677 | X144: 0.07818336934 | Y144: 9.024832518 | Z144: 0.07661827691 | AA144: 33.44750448 | AB144: 0.1048258897 | AC144: 18.24243849 | AD144: 0.0908640728 | AE144: 23.68334009 | AF144: 0.1206605832 | AG144: 13.57402154 | AH144: 0.1025948318
B145: 0.3651325901 | C145: 5.006982114 | D145: 0.3598674635 | E145: 3.846213084 | F145: 0.3410960734 | G145: 4.041394874 | H145: 0.3463260333 | I145: 3.175603773 | J145: 0.1449296623 | K145: 4.776928369 | L145: 0.2415662259 | M145: 4.479576827 | N145: 0.2305685977 | O145: 5.399989978 | P145: 0.2871484102 | Q145: 3.936265731 | S145: 13.7127779 | T145: 0.09466574554 | U145: 10.68786004 | V145: 0.09294479097 | W145: 11.84825974 | X145: 0.07885081522 | Y145: 9.169405323 | Z145: 0.07742438394 | AA145: 32.96032221 | AB145: 0.1056624048 | AC145: 18.54388713 | AD145: 0.09157962606 | AE145: 23.42031843 | AF145: 0.1216435826 | AG145: 13.70812301 | AH145: 0.1034801403
B146: 0.3629569958 | C146: 5.080284845 | D146: 0.3543037921 | E146: 3.880203214 | F146: 0.3394494702 | G146: 4.075936119 | H146: 0.3507921348 | I146: 3.205966834 | J146: 0.1408234735 | K146: 4.851021816 | L146: 0.2432970703 | M146: 4.548222918 | N146: 0.2480923384 | O146: 5.47413933 | P146: 0.2939084959 | Q146: 3.971033476 | S146: 13.99693326 | T146: 0.09605166175 | U146: 10.95162767 | V146: 0.09376617176 | W146: 12.00749 | X146: 0.07952474227 | Y146: 9.139220968 | Z146: 0.07816466562 | AA146: 34.44753701 | AB146: 0.1073013014 | AC146: 18.69411297 | AD146: 0.09298301383 | AE146: 22.06492697 | AF146: 0.1233139177 | AG146: 13.51112177 | AH146: 0.1043941465
B147: 0.3667691847 | C147: 5.116663649 | D147: 0.3563280404 | E147: 3.916622197 | F147: 0.3361910085 | G147: 4.149786981 | H147: 0.354860276 | I147: 3.23343999 | J147: 0.1394522811 | K147: 4.888940045 | L147: 0.2355744193 | M147: 4.580886015 | N147: 0.2476638804 | O147: 5.515423624 | P147: 0.2914961014 | Q147: 4.005928606 | S147: 13.9506367 | T147: 0.09673946661 | U147: 10.99161939 | V147: 0.09464624644 | W147: 12.34353946 | X147: 0.08096563108 | Y147: 9.111867992 | Z147: 0.07883448854 | AA147: 35.05815758 | AB147: 0.1081400268 | AC147: 19.44560037 | AD147: 0.09365077206 | AE147: 22.26979411 | AF147: 0.1242439138 | AG147: 13.742649 | AH147: 0.1053115015
B148: 0.367808193 | C148: 5.15496024 | D148: 0.3665476789 | E148: 3.950516232 | F148: 0.3217622389 | G148: 4.187182711 | H148: 0.3597939263 | I148: 3.265022726 | J148: 0.1371160646 | K148: 4.927233737 | L148: 0.2439962079 | M148: 4.615916499 | N148: 0.2451064189 | O148: 5.554910534 | P148: 0.2927826221 | Q148: 4.041870133 | S148: 14.01534914 | T148: 0.09746353059 | U148: 10.77763265 | V148: 0.09546530505 | W148: 13.01328187 | X148: 0.0816952514 | Y148: 9.074702177 | Z148: 0.07960450711 | AA148: 35.93476629 | AB148: 0.1089870572 | AC148: 18.91798458 | AD148: 0.09436692867 | AE148: 22.66326014 | AF148: 0.1251334208 | AG148: 13.80502061 | AH148: 0.106256365
B149: 0.3682580342 | C149: 5.196226589 | D149: 0.3736756494 | E149: 3.987220624 | F149: 0.322823748 | G149: 4.219449909 | H149: 0.3710128615 | I149: 3.295359793 | J149: 0.1361410692 | K149: 4.967592472 | L149: 0.2443074187 | M149: 4.649517928 | N149: 0.2291817963 | O149: 5.595891021 | P149: 0.2976212692 | Q149: 4.076651826 | S149: 14.1102871 | T149: 0.09824374302 | U149: 10.67027148 | V149: 0.09635227672 | W149: 13.07044459 | X149: 0.08232480999 | Y149: 8.882063495 | Z149: 0.08034415504 | AA149: 36.4885666 | AB149: 0.109879765 | AC149: 19.03142342 | AD149: 0.09505386998 | AE149: 24.41682154 | AF149: 0.1260565731 | AG149: 13.69744789 | AH149: 0.1071707379
B150: 0.3787842393 | C150: 5.269989195 | D150: 0.3896677494 | E150: 4.023893079 | F150: 0.3082508842 | G150: 4.256420397 | H150: 0.3775178889 | I150: 3.327926818 | J150: 0.1311077798 | K150: 5.040678236 | L150: 0.2496597916 | M150: 4.721521529 | N150: 0.2428379158 | O150: 5.634147653 | P150: 0.2989060142 | Q150: 4.110146985 | S150: 13.91290515 | T150: 0.09963835396 | U150: 10.32647194 | V150: 0.09723847664 | W150: 13.80829907 | X150: 0.08304613349 | Y150: 8.815282443 | Z150: 0.08113817155 | AA150: 38.44682781 | AB150: 0.1114963723 | AC150: 18.91182196 | AD150: 0.09652589805 | AE150: 23.20126836 | AF150: 0.1269183662 | AG150: 13.75063327 | AH150: 0.1080512891
B151: 0.386253198 | C151: 5.308869183 | D151: 0.3765809039 | E151: 4.061386086 | F151: 0.3155606985 | G151: 4.32852582 | H151: 0.3784817706 | I151: 3.360132533 | J151: 0.1328134661 | K151: 5.07772366 | L151: 0.2483132233 | M151: 4.754441851 | N151: 0.2377294252 | O151: 5.672069808 | P151: 0.2988759304 | Q151: 4.146339223 | S151: 13.74453133 | T151: 0.1003734481 | U151: 10.78489653 | V151: 0.09814450539 | W151: 13.71693573 | X151: 0.08445296742 | Y151: 8.877924366 | Z151: 0.08192337896 | AA151: 38.23199416 | AB151: 0.1123157919 | AC151: 19.14695394 | AD151: 0.09719891491 | AE151: 23.85935104 | AF151: 0.1277726246 | AG151: 13.87311189 | AH151: 0.1090027437
B152: 0.3827902923 | C152: 5.346199052 | D152: 0.3910043091 | E152: 4.099665405 | F152: 0.3267929455 | G152: 4.364055961 | H152: 0.3769218922 | I152: 3.391406234 | J152: 0.1305073127 | K152: 5.114916958 | L152: 0.2404477696 | M152: 4.78777998 | N152: 0.2506197492 | O152: 5.712421847 | P152: 0.3049416012 | Q152: 4.181164788 | S152: 13.96639141 | T152: 0.1010792345 | U152: 10.48496221 | V152: 0.09906953562 | W152: 13.35419268 | X152: 0.0851461886 | Y152: 8.997636658 | Z152: 0.08268586296 | AA152: 39.19256976 | AB152: 0.1131384824 | AC152: 19.91193343 | AD152: 0.09788047336 | AE152: 22.79318316 | AF152: 0.1286816201 | AG152: 13.71136234 | AH152: 0.1099182699
B153: 0.3909226259 | C153: 5.384765885 | D153: 0.3877257804 | E153: 4.140282374 | F153: 0.3169615567 | G153: 4.402779249 | H153: 0.3803604345 | I153: 3.42154604 | J153: 0.1235967626 | K153: 5.155452449 | L153: 0.255181094 | M153: 4.817867077 | N153: 0.2477988352 | O153: 5.753896527 | P153: 0.3069367301 | Q153: 4.217490831 | S153: 13.77450556 | T153: 0.1018084078 | U153: 10.67837782 | V153: 0.1000510558 | W153: 13.89057807 | X153: 0.08590171063 | Y153: 8.995536154 | Z153: 0.08342070144 | AA153: 41.71187286 | AB153: 0.1140350998 | AC153: 18.88018819 | AD153: 0.09849556831 | AE153: 23.22003056 | AF153: 0.1296159049 | AG153: 13.74058696 | AH153: 0.110873242
B154: 0.3958346943 | C154: 5.459694124 | D154: 0.3956823548 | E154: 4.179936662 | F154: 0.3370856245 | G154: 4.443069515 | H154: 0.388124759 | I154: 3.486419865 | J154: 0.1213391498 | K154: 5.227336156 | L154: 0.2629043659 | M154: 4.884775966 | N154: 0.2658935636 | O154: 5.83031431 | P154: 0.3090400539 | Q154: 4.254602392 | S154: 13.79286405 | T154: 0.1032250571 | U154: 10.56386925 | V154: 0.1010093125 | W154: 13.18083357 | X154: 0.08668780563 | Y154: 8.982729867 | Z154: 0.08500238994 | AA154: 43.08037567 | AB154: 0.1156251185 | AC154: 18.58004887 | AD154: 0.09986344105 | AE154: 21.92724875 | AF154: 0.1313373401 | AG154: 13.76715523 | AH154: 0.1118488645
B155: 0.4043012609 | C155: 5.501604762 | D155: 0.414125969 | E155: 4.228054821 | F155: 0.3495033334 | G155: 4.512893824 | H155: 0.3897870332 | I155: 3.519250869 | J155: 0.1201114183 | K155: 5.263310646 | L155: 0.2576734622 | M155: 4.917556536 | N155: 0.2720147868 | O155: 5.869016528 | P155: 0.3167335275 | Q155: 4.291638195 | S155: 13.60768638 | T155: 0.104017451 | U155: 10.2095863 | V155: 0.102172101 | W155: 12.91230553 | X155: 0.0880501332 | Y155: 9.028650439 | Z155: 0.08580284252 | AA155: 43.82023559 | AB155: 0.1164208497 | AC155: 19.08445089 | AD155: 0.1005336009 | AE155: 21.5760937 | AF155: 0.1322091707 | AG155: 13.5496808 | AH155: 0.1128224955
B156: 0.4059694707 | C156: 5.539668806 | D156: 0.405302917 | E156: 4.270701587 | F156: 0.3636747599 | G156: 4.549485893 | H156: 0.3996020555 | I156: 3.550143043 | J156: 0.1106570164 | K156: 5.299474022 | L156: 0.271831726 | M156: 4.950698203 | N156: 0.2691245576 | O156: 5.912681518 | P156: 0.3214843281 | Q156: 4.328931182 | S156: 13.64553053 | T156: 0.1047371182 | U156: 10.53706107 | V156: 0.1032026717 | W156: 12.5097653 | X156: 0.08876407345 | Y156: 8.884196148 | Z156: 0.0865560245 | AA156: 47.89098959 | AB156: 0.117220759 | AC156: 18.21236349 | AD156: 0.1012111429 | AE156: 21.97005569 | AF156: 0.1331927958 | AG156: 13.46545011 | AH156: 0.1138028875
B157: 0.40848958 | C157: 5.579948135 | D157: 0.4149781913 | E157: 4.316542517 | F157: 0.3690209736 | G157: 4.585424784 | H157: 0.399548461 | I157: 3.578883529 | J157: 0.120378385 | K157: 5.336896641 | L157: 0.2698640029 | M157: 4.980341162 | N157: 0.2602825065 | O157: 5.945686038 | P157: 0.3261882605 | Q157: 4.367088778 | S157: 13.6599522 | T157: 0.1054986693 | U157: 10.4018539 | V157: 0.1043104303 | W157: 12.42591915 | X157: 0.08946526969 | Y157: 8.957320269 | Z157: 0.08725674618 | AA157: 44.33434326 | AB157: 0.1180485219 | AC157: 18.45500367 | AD157: 0.1018171579 | AE157: 22.84320263 | AF157: 0.1339362765 | AG157: 13.38824632 | AH157: 0.1148060091
B158: 0.4202318192 | C158: 5.655503266 | D158: 0.4183335106 | E158: 4.358911067 | F158: 0.3826693694 | G158: 4.620937844 | H158: 0.3963471949 | I158: 3.614075324 | J158: 0.1184502617 | K158: 5.405177065 | L158: 0.2639992287 | M158: 5.024010782 | N158: 0.2578546355 | O158: 5.985218663 | P158: 0.3302918168 | Q158: 4.40383188 | S158: 13.45805579 | T158: 0.1069271711 | U158: 10.41970332 | V158: 0.1053342779 | W158: 12.07553626 | X158: 0.09015815762 | Y158: 9.118458186 | Z158: 0.08811475722 | AA158: 45.63246201 | AB158: 0.1195588384 | AC158: 19.03039947 | AD158: 0.1027099314 | AE158: 23.21160002 | AF158: 0.1348268134 | AG158: 13.33315467 | AH158: 0.1157719453
B159: 0.4244074722 | C159: 5.690844598 | D159: 0.4268581669 | E159: 4.397959149 | F159: 0.4018647969 | G159: 4.697048322 | H159: 0.4097631822 | I159: 3.6497454 | J159: 0.1150605703 | K159: 5.443418192 | L159: 0.2800286313 | M159: 5.052604591 | N159: 0.2621385703 | O159: 6.023670311 | P159: 0.3282077238 | Q159: 4.441475357 | S159: 13.40891707 | T159: 0.1075953607 | U159: 10.30309243 | V159: 0.1062778855 | W159: 11.68813083 | X159: 0.09164313334 | Y159: 8.906962751 | Z159: 0.08898442922 | AA159: 47.30915357 | AB159: 0.1204047061 | AC159: 18.0431714 | AD159: 0.1032944979 | AE159: 22.97895462 | AF159: 0.1356929995 | AG159: 13.53251321 | AH159: 0.1167615513
B160: 0.4130891959 | C160: 5.725300975 | D160: 0.4347337782 | E160: 4.439761485 | F160: 0.4070348044 | G160: 4.737616292 | H160: 0.4110037039 | I160: 3.680085934 | J160: 0.1023893865 | K160: 5.481617152 | L160: 0.2640361339 | M160: 5.088087604 | N160: 0.2782196552 | O160: 6.064653113 | P160: 0.3377803705 | Q160: 4.477368528 | S160: 13.85972093 | T160: 0.1082468187 | U160: 10.21259839 | V160: 0.1072880504 | W160: 11.63933954 | X160: 0.09243464657 | Y160: 8.953899683 | Z160: 0.08972416165 | AA160: 53.53696645 | AB160: 0.1212496411 | AC160: 19.27042155 | AD160: 0.1040199059 | AE160: 21.79807573 | AF160: 0.1366162039 | AG160: 13.25526561 | AH160: 0.1177051437
B161: 0.4261039197 | C161: 5.761646144 | D161: 0.4389419158 | E161: 4.479504676 | F161: 0.4152090599 | G161: 4.777151488 | H161: 0.4137911648 | I161: 3.714759591 | J161: 0.11192025 | K161: 5.519873875 | L161: 0.2732147773 | M161: 5.123892363 | N161: 0.2824493994 | O161: 6.103196193 | P161: 0.3342209053 | Q161: 4.512860403 | S161: 13.52169243 | T161: 0.1089339877 | U161: 10.20523335 | V161: 0.1082484555 | W161: 11.50541245 | X161: 0.09320600955 | Y161: 8.977377739 | Z161: 0.09056953996 | AA161: 49.31970646 | AB161: 0.1220958538 | AC161: 18.75408209 | AD161: 0.1047518917 | AE161: 21.60810469 | AF161: 0.1374844497 | AG161: 13.50262755 | AH161: 0.1186381864
B162: 0.4284019768 | C162: 5.834236737 | D162: 0.4291775326 | E162: 4.522479432 | F162: 0.4197485745 | G162: 4.811781079 | H162: 0.4216252267 | I162: 3.752772552 | J162: 0.09879261255 | K162: 5.597183301 | L162: 0.2740286539 | M162: 5.196793499 | N162: 0.2810866882 | O162: 6.185211562 | P162: 0.3363243408 | Q162: 4.55015546 | S162: 13.61860368 | T162: 0.1103064396 | U162: 10.53754936 | V162: 0.1092869522 | W162: 11.46348403 | X162: 0.09388166031 | Y162: 8.900730588 | Z162: 0.09149633384 | AA162: 56.65588911 | AB162: 0.1238058857 | AC162: 18.9644164 | AD162: 0.1062422688 | AE162: 22.00464063 | AF162: 0.1393319796 | AG162: 13.52906974 | AH162: 0.1196186329
B163: 0.4288324217 | C163: 5.872053736 | D163: 0.4569941262 | E163: 4.562830268 | F163: 0.4297121863 | G163: 4.888107419 | H163: 0.4252444208 | I163: 3.791833054 | J163: 0.09815789759 | K163: 5.631610887 | L163: 0.2833463748 | M163: 5.229192139 | N163: 0.2927821626 | O163: 6.223337413 | P163: 0.3434507383 | Q163: 4.588161209 | S163: 13.69311983 | T163: 0.1110214361 | U163: 9.984439638 | V163: 0.1102620412 | W163: 11.37530555 | X163: 0.09537084765 | Y163: 8.916831988 | Z163: 0.09244866778 | AA163: 57.37297787 | AB163: 0.1245674004 | AC163: 18.45512279 | AD163: 0.1069046205 | AE163: 21.25586257 | AF163: 0.1401908266 | AG163: 13.35900814 | AH163: 0.1206177627
B164: 0.4314325253 | C164: 5.909477552 | D164: 0.4518682261 | E164: 4.605600175 | F164: 0.4351655145 | G164: 4.923299485 | H164: 0.4183875521 | I164: 3.824677054 | J164: 0.1086587335 | K164: 5.668723316 | L164: 0.2854743352 | M164: 5.265559377 | N164: 0.2852544437 | O164: 6.259510214 | P164: 0.3409508243 | Q164: 4.625188317 | S164: 13.69733899 | T164: 0.1117289987 | U164: 10.19235235 | V164: 0.1112955877 | W164: 11.31362509 | X164: 0.09605747274 | Y164: 9.141469518 | Z164: 0.09324943723 | AA164: 52.16997415 | AB164: 0.1253883021 | AC164: 18.44494838 | AD164: 0.1076481055 | AE164: 21.94360282 | AF164: 0.141005678 | AG164: 13.56555839 | AH164: 0.121591165
B165: 0.4400176803 | C165: 5.946157333 | D165: 0.4554363588 | E165: 4.643949408 | F165: 0.4239166776 | G165: 4.962809354 | H165: 0.4214346906 | I165: 3.856479869 | J165: 0.09985408435 | K165: 5.704651595 | L165: 0.3052912901 | M165: 5.304449666 | N165: 0.2650270611 | O165: 6.296524417 | P165: 0.346261027 | Q165: 4.661219675 | S165: 13.51345093 | T165: 0.1124224941 | U165: 10.19670327 | V165: 0.1122223074 | W165: 11.70703965 | X165: 0.09682834159 | Y165: 9.150836311 | Z165: 0.09402482154 | AA165: 57.12987738 | AB165: 0.1261830112 | AC165: 17.37504422 | AD165: 0.1084431712 | AE165: 23.75804339 | AF165: 0.1418394833 | AG165: 13.46157757 | AH165: 0.1225383902
B166: 0.4433176418 | C166: 6.015687701 | D166: 0.4533688227 | E166: 4.687289269 | F166: 0.4280810555 | G166: 5.001843918 | H166: 0.4325110714 | I166: 3.892574218 | J166: 0.09521353369 | K166: 5.777339947 | L166: 0.2904228369 | M166: 5.375100309 | N166: 0.2818637341 | O166: 6.333156691 | P166: 0.3451857799 | Q166: 4.698968454 | S166: 13.56970067 | T166: 0.1137370872 | U166: 10.3387993 | V166: 0.113269627 | W166: 11.68433841 | X166: 0.09758993684 | Y166: 8.999941217 | Z166: 0.09490483773 | AA166: 60.677718 | AB166: 0.1277908281 | AC166: 18.50784314 | AD166: 0.1098875397 | AE166: 22.46885968 | AF166: 0.142664685 | AG166: 13.61286799 | AH166: 0.1235307645
B167: 0.4411428173 | C167: 6.049715519 | D167: 0.4582355917 | E167: 4.727587742 | F167: 0.4114116977 | G167: 5.08186551 | H167: 0.439757208 | I167: 3.924890549 | J167: 0.09887738774 | K167: 5.813771923 | L167: 0.2870358527 | M167: 5.407431244 | N167: 0.2822315445 | O167: 6.372277295 | P167: 0.3478721198 | Q167: 4.737071494 | S167: 13.7137346 | T167: 0.1143804425 | U167: 10.31693703 | V167: 0.1142434506 | W167: 12.35226305 | X167: 0.09915122148 | Y167: 8.925130681 | Z167: 0.09569274209 | AA167: 58.79779043 | AB167: 0.1285966786 | AC167: 18.83887045 | AD167: 0.1105485072 | AE167: 22.57818951 | AF167: 0.1435459404 | AG167: 13.61727837 | AH167: 0.1245324519
B168: 0.4386084775 | C168: 6.090890821 | D168: 0.4659367104 | E168: 4.76633718 | F168: 0.3974998494 | G168: 5.121346519 | H168: 0.4472022255 | I168: 3.960882368 | J168: 0.09178412457 | K168: 5.851836294 | L168: 0.2784187843 | M168: 5.446043765 | N168: 0.2849330753 | O168: 6.410522933 | P168: 0.3442371844 | Q168: 4.773144198 | S168: 13.88685156 | T168: 0.1151589336 | U168: 10.2295807 | V168: 0.1151798414 | W168: 12.88389549 | X168: 0.09992152725 | Y168: 8.857027408 | Z168: 0.09657025849 | AA168: 63.75651913 | AB168: 0.1294386366 | AC168: 19.56061901 | AD168: 0.1113378944 | AE168: 22.49834606 | AF168: 0.1444074858 | AG168: 13.86585882 | AH168: 0.125480764
B169: 0.4491172731 | C169: 6.127476076 | D169: 0.4787928859 | E169: 4.805128049 | F169: 0.4004606108 | G169: 5.162320589 | H169: 0.4538758099 | I169: 3.994681198 | J169: 0.08477153877 | K169: 5.890478299 | L169: 0.295388326 | M169: 5.484191027 | N169: 0.2765901635 | O169: 6.447165045 | P169: 0.3450176244 | Q169: 4.810610424 | S169: 13.64337656 | T169: 0.1158506417 | U169: 10.03592198 | V169: 0.1161172333 | W169: 12.89095719 | X169: 0.1007209638 | Y169: 8.80126482 | Z169: 0.09739430764 | AA169: 69.48650909 | AB169: 0.1302933714 | AC169: 18.56603848 | AD169: 0.1121177698 | AE169: 23.30945166 | AF169: 0.1452329091 | AG169: 13.94308605 | AH169: 0.1264657103
B170: 0.4583357275 | C170: 6.194685034 | D170: 0.4676515857 | E170: 4.847985708 | F170: 0.4008788864 | G170: 5.196926033 | H170: 0.4465399186 | I170: 4.031036927 | J170: 0.08442068473 | K170: 5.962279982 | L170: 0.2955921491 | M170: 5.557470042 | N170: 0.295098871 | O170: 6.524193915 | P170: 0.3510509928 | Q170: 4.847377797 | S170: 13.51560584 | T170: 0.1171213445 | U170: 10.36666154 | V170: 0.1171529004 | W170: 12.96383075 | X170: 0.1013961434 | Y170: 9.027271156 | Z170: 0.09828069653 | AA170: 70.6258188 | AB170: 0.1318815758 | AC170: 18.80114225 | AD170: 0.1136158722 | AE170: 22.10850178 | AF170: 0.1469681101 | AG170: 13.80818712 | AH170: 0.1274322845
B171: 0.4544439415 | C171: 6.232542628 | D171: 0.4764889677 | E171: 4.889618006 | F171: 0.3987931708 | G171: 5.275982877 | H171: 0.4532333215 | I171: 4.068945337 | J171: 0.09305885062 | K171: 5.995287164 | L171: 0.2923264603 | M171: 5.596292626 | N171: 0.2823349088 | O171: 6.560620179 | P171: 0.3593041996 | Q171: 4.884421444 | S171: 13.71465666 | T171: 0.1178371085 | U171: 10.26176541 | V171: 0.1181589562 | W171: 13.22987268 | X171: 0.1029386051 | Y171: 8.977595299 | Z171: 0.09920494132 | AA171: 64.42468529 | AB171: 0.1326116722 | AC171: 19.14398245 | AD171: 0.1144095538 | AE171: 23.23701382 | AF171: 0.1477886711 | AG171: 13.59411176 | AH171: 0.1284061217
B172: 0.4555334647 | C172: 6.267592841 | D172: 0.4855621358 | E172: 4.934543441 | F172: 0.3955072661 | G172: 5.312805237 | H172: 0.4600396752 | I172: 4.103230535 | J172: 0.08165825779 | K172: 6.031526789 | L172: 0.2952756236 | M172: 5.629089399 | N172: 0.2837415785 | O172: 6.595281463 | P172: 0.3592355632 | Q172: 4.92256338 | S172: 13.75879782 | T172: 0.118499794 | U172: 10.16253756 | V172: 0.1192445917 | W172: 13.43288908 | X172: 0.1036570385 | Y172: 8.919297086 | Z172: 0.1000408486 | AA172: 73.86303543 | AB172: 0.133413268 | AC172: 19.0638473 | AD172: 0.1150800449 | AE172: 23.24397256 | AF172: 0.1485694731 | AG172: 13.70288436 | AH172: 0.1294088316
B173: 0.4514915744 | C173: 6.302002245 | D173: 0.4816702008 | E173: 4.975789057 | F173: 0.4051690797 | G173: 5.351288517 | H173: 0.4654730856 | I173: 4.141377796 | J173: 0.0916608423 | K173: 6.067999199 | L173: 0.2961196005 | M173: 5.662652346 | N173: 0.3054701289 | O173: 6.627719454 | P173: 0.3697761479 | Q173: 4.959496818 | S173: 13.9581835 | T173: 0.1191503639 | U173: 10.33028211 | V173: 0.1202413032 | W173: 13.20754417 | X173: 0.1044078778 | Y173: 8.897136964 | Z173: 0.1009709169 | AA173: 66.20056119 | AB173: 0.1342200129 | AC173: 19.12285555 | AD173: 0.1157661994 | AE173: 21.69678416 | AF173: 0.1493001917 | AG173: 13.41215988 | AH173: 0.1303797715
B174: 0.4657858113 | C174: 6.374810307 | D174: 0.4925622046 | E174: 5.015150743 | F174: 0.4161794235 | G174: 5.392902807 | H174: 0.4569990436 | I174: 4.175447537 | J174: 0.08465826511 | K174: 6.140033669 | L174: 0.3011692812 | M174: 5.73063411 | N174: 0.3007637958 | O174: 6.665971457 | P174: 0.3683399616 | Q174: 4.996669712 | S174: 13.68614104 | T174: 0.1205269275 | U174: 10.1817612 | V174: 0.1211924892 | W174: 12.95811975 | X174: 0.1052198055 | Y174: 9.136665809 | Z174: 0.1018015711 | AA174: 72.52727965 | AB174: 0.1358133664 | AC174: 19.02795029 | AD174: 0.1171560058 | AE174: 22.16347696 | AF174: 0.1501618805 | AG174: 13.56537501 | AH174: 0.1313570064
B175: 0.4582212865 | C175: 6.411066168 | D175: 0.4955686132 | E175: 5.055155751 | F175: 0.4339230061 | G175: 5.4675429 | H175: 0.4776932796 | I175: 4.20931886 | J175: 0.0766617246 | K175: 6.176588681 | L175: 0.312189733 | M175: 5.767817868 | N175: 0.2968712399 | O175: 6.701224733 | P175: 0.3749710818 | Q175: 5.034133736 | S175: 13.9912011 | T175: 0.1212124079 | U175: 10.20071816 | V175: 0.1221592211 | W175: 12.60026047 | X175: 0.1066760929 | Y175: 8.811760684 | Z175: 0.1026273877 | AA175: 80.56939384 | AB175: 0.1366219384 | AC175: 18.47536052 | AD175: 0.1179161836 | AE175: 22.57283236 | AF175: 0.150956018 | AG175: 13.42539193 | AH175: 0.1323418948
B176: 0.4575934013 | C176: 6.445821784 | D176: 0.501840661 | E176: 5.09450708 | F176: 0.4378213485 | G176: 5.505501988 | H176: 0.4735453427 | I176: 4.245883981 | J176: 0.08130586396 | K176: 6.212686785 | L176: 0.3013023486 | M176: 5.803672972 | N176: 0.2899949501 | O176: 6.739135893 | P176: 0.3787973771 | Q176: 5.070982503 | S176: 14.08635213 | T176: 0.1218695236 | U176: 10.1516427 | V176: 0.1231101567 | W176: 12.57476824 | X176: 0.1074167047 | Y176: 8.966161417 | Z176: 0.1035188818 | AA176: 76.41130027 | AB176: 0.1374204039 | AC176: 19.2619573 | AD176: 0.1186491986 | AE176: 23.2388043 | AF176: 0.1518100287 | AG176: 13.38705812 | AH176: 0.1333106088
B177: 0.46799317 | C177: 6.480891134 | D177: 0.5033720533 | E177: 5.136630213 | F177: 0.4316142698 | G177: 5.545975427 | H177: 0.4753524065 | I177: 4.282167216 | J177: 0.07326383144 | K177: 6.247159425 | L177: 0.3136216104 | M177: 5.842768115 | N177: 0.307940642 | O177: 6.775675578 | P177: 0.3801157284 | Q177: 5.10838737 | S177: 13.84826008 | T177: 0.1225325709 | U177: 10.20444059 | V177: 0.1241280738 | W177: 12.84937921 | X177: 0.1082063736 | Y177: 9.008405465 | Z177: 0.1044035032 | AA177: 85.26935191 | AB177: 0.1381829152 | AC177: 18.62999207 | AD177: 0.1194484523 | AE177: 22.00318715 | AF177: 0.1526331447 | AG177: 13.43903182 | AH177: 0.134293942
B178: 0.459484458 | C178: 6.55282526 | D178: 0.5110462507 | E178: 5.180052648 | F178: 0.4516271253 | G178: 5.579521298 | H178: 0.4859596491 | I178: 4.317712235 | J178: 0.07817535351 | K178: 6.314683726 | L178: 0.3121455262 | M178: 5.911709912 | N178: 0.3071714441 | O178: 6.851952163 | P178: 0.3851553301 | Q178: 5.14498067 | S178: 14.26125551 | T178: 0.1238926113 | U178: 10.1361719 | V178: 0.1251773888 | W178: 12.35426524 | X178: 0.1088608801 | Y178: 8.884919238 | Z178: 0.1052701262 | AA178: 80.77588962 | AB178: 0.1396765068 | AC178: 18.93895448 | AD178: 0.1208578855 | AE178: 22.3066053 | AF178: 0.1543513992 | AG178: 13.35819673 | AH178: 0.13525594
B179: 0.4634885987 | C179: 6.585233369 | D179: 0.5202455819 | E179: 5.21729736 | F179: 0.4667237401 | G179: 5.658341962 | H179: 0.502889206 | I179: 4.357859267 | J179: 0.08359028647 | K179: 6.350370554 | L179: 0.3137217959 | M179: 5.943325017 | N179: 0.2953432749 | O179: 6.889109301 | P179: 0.3925518319 | Q179: 5.180150102 | S179: 14.20797273 | T179: 0.1245053432 | U179: 10.02852795 | V179: 0.1260774174 | W179: 12.12353578 | X179: 0.1103987337 | Y179: 8.665644867 | Z179: 0.1062489508 | AA179: 75.97019728 | AB179: 0.1404658752 | AC179: 18.94457158 | AD179: 0.1215042187 | AE179: 23.32577 | AF179: 0.1551884244 | AG179: 13.19609204 | AH179: 0.1361805061
B180: 0.4726320008 | C180: 6.613859256 | D180: 0.5202980836 | E180: 5.259093654 | F180: 0.4709917804 | G180: 5.695347494 | H180: 0.5036268135 | I180: 4.393789567 | J180: 0.07791470115 | K180: 6.384913666 | L180: 0.3082319597 | M180: 5.980022682 | N180: 0.2964640657 | O180: 6.925312772 | P180: 0.3941453911 | Q180: 5.215343823 | S180: 13.99367636 | T180: 0.1250465656 | U180: 10.10784744 | V180: 0.1270874363 | W180: 12.09224392 | X180: 0.1111207409 | Y180: 8.724296344 | Z180: 0.1071249673 | AA180: 81.94748322 | AB180: 0.1412299453 | AC180: 19.40104682 | AD180: 0.1222544589 | AE180: 23.35970383 | AF180: 0.1560039666 | AG180: 13.23203047 | AH180: 0.1371057107
B181: 0.4676602781 | C181: 6.638354391 | D181: 0.5146487057 | E181: 5.299098661 | F181: 0.4800759753 | G181: 5.731836491 | H181: 0.5102981627 | I181: 4.431485119 | J181: 0.07972743362 | K181: 6.420669232 | L181: 0.3259374698 | M181: 6.012136611 | N181: 0.3117088477 | O181: 6.963413739 | P181: 0.3963436973 | Q181: 5.251582734 | S181: 14.19482197 | T181: 0.1255096889 | U181: 10.29653549 | V181: 0.1280541682 | W181: 11.93943623 | X181: 0.1118326702 | Y181: 8.684109493 | Z181: 0.1080440224 | AA181: 80.53274689 | AB181: 0.1420208341 | AC181: 18.44567492 | AD181: 0.12291099 | AE181: 22.33948055 | AF181: 0.1568622531 | AG181: 13.25007253 | AH181: 0.1380583922
B182: 0.4252834121 | C182: 6.134088875 | D182: 0.5301285783 | E182: 5.340295942 | F182: 0.4779490332 | G182: 5.767503864 | H182: 0.5064075192 | I182: 4.467689796 | J182: 0.07223421708 | K182: 6.489824772 | L182: 0.3267585735 | M182: 6.082559832 | N182: 0.3166477879 | O182: 7.002740933 | P182: 0.3995994023 | Q182: 5.289080728 | S182: 14.42353193 | T182: 0.1159756683 | U182: 10.07358622 | V182: 0.1290497118 | W182: 12.06719433 | X182: 0.1125285689 | Y182: 8.822321207 | Z182: 0.1089267285 | AA182: 89.84419067 | AB182: 0.1435505076 | AC182: 18.61484388 | AD182: 0.1243507091 | AE182: 22.11523718 | AF182: 0.1577481622 | AG182: 13.23595756 | AH182: 0.1390441737
B183: 0.4263225198 | C183: 6.188502534 | D183: 0.5230649312 | E183: 5.379608142 | F183: 0.4898515344 | G183: 5.83553326 | H183: 0.5134297907 | I183: 4.503954258 | J183: 0.07333884637 | K183: 6.522225438 | L183: 0.3238696853 | M183: 6.113544754 | N183: 0.3115065893 | O183: 7.036816592 | P183: 0.4066867133 | Q183: 5.326496819 | S183: 14.51601134 | T183: 0.1170044535 | U183: 10.28478076 | V183: 0.1299997019 | W183: 11.91286104 | X183: 0.1138558763 | Y183: 8.772288519 | Z183: 0.1098108923 | AA183: 88.93275203 | AB183: 0.1442671882 | AC183: 18.87655755 | AD183: 0.124984159 | AE183: 22.58962357 | AF183: 0.1585157721 | AG183: 13.09729737 | AH183: 0.1400278019
B184: 0.432214886 | C184: 6.240627258 | D184: 0.5364126464 | E184: 5.421333659 | F184: 0.4854855438 | G184: 5.873677877 | H184: 0.5171002944 | I184: 4.544676614 | J184: 0.06813426192 | K184: 6.55799198 | L184: 0.3147269537 | M184: 6.14978989 | N184: 0.3084809085 | O184: 7.068436327 | P184: 0.4092866679 | Q184: 5.364290898 | S184: 14.43871431 | T184: 0.1179899625 | U184: 10.10664774 | V184: 0.1310080104 | W184: 12.0985639 | X184: 0.114600108 | Y184: 8.788772048 | Z184: 0.1108037438 | AA184: 96.25101667 | AB184: 0.1450583198 | AC184: 19.54008011 | AD184: 0.1257251478 | AE184: 22.91369136 | AF184: 0.1592280582 | AG184: 13.10643937 | AH184: 0.1410213671
B185: 0.4288183153 | C185: 6.283400812 | D185: 0.5300262074 | E185: 5.463691564 | F185: 0.4832212627 | G185: 5.909245712 | H185: 0.5176707606 | I185: 4.58101097 | J185: 0.07515192032 | K185: 6.590284628 | L185: 0.3170046459 | M185: 6.189976425 | N185: 0.3170672556 | O185: 7.100374915 | P185: 0.4093681276 | Q185: 5.4015993 | S185: 14.65282752 | T185: 0.1187986713 | U185: 10.30834228 | V185: 0.1320316008 | W185: 12.22886112 | X185: 0.1152940646 | Y185: 8.849275097 | Z185: 0.1116896117 | AA185: 87.69283074 | AB185: 0.1457726112 | AC185: 19.52645334 | AD185: 0.1265467137 | AE185: 22.39390789 | AF185: 0.159947527 | AG185: 13.19496789 | AH185: 0.1420021644
B186: 0.4382809997 | C186: 6.336066019 | D186: 0.5317527552 | E186: 5.505028672 | F186: 0.4896785319 | G186: 5.948674302 | H186: 0.5189011494 | I186: 4.617445257 | J186: 0.06372980153 | K186: 6.659706458 | L186: 0.3368316094 | M186: 6.25833549 | N186: 0.3003530701 | O186: 7.173235543 | P186: 0.4151624524 | Q186: 5.437497214 | S186: 14.45662948 | T186: 0.1197943991 | U186: 10.35260959 | V186: 0.1330305233 | W186: 12.1481215 | X186: 0.1160633476 | Y186: 8.898506511 | Z186: 0.1125779159 | AA186: 104.499093 | AB186: 0.1473081748 | AC186: 18.58001243 | AD186: 0.1279442336 | AE186: 23.88267761 | AF186: 0.1615888315 | AG186: 13.09727598 | AH186: 0.1429458815
B187: 0.4465220372 | C187: 6.358751811 | D187: 0.532152305 | E187: 5.547581645 | F187: 0.4876529177 | G187: 6.021057429 | H187: 0.5230471492 | I187: 4.657139134 | J187: 0.0701753671 | K187: 6.696612672 | L187: 0.3384577731 | M187: 6.290903105 | N187: 0.3242065509 | O187: 7.206766663 | P187: 0.4145282383 | Q187: 5.475892274 | S187: 14.24062259 | T187: 0.1202233136 | U187: 10.42480055 | V187: 0.1340588275 | W187: 12.34701405 | X187: 0.1174755998 | Y187: 8.903861041 | Z187: 0.1135456921 | AA187: 95.4268278 | AB187: 0.1481245152 | AC187: 18.58696595 | AD187: 0.1286100398 | AE187: 22.22893597 | AF187: 0.1623441746 | AG187: 13.20993787 | AH187: 0.1439552458
B188: 0.4348597924 | C188: 6.384400982 | D188: 0.5314917862 | E188: 5.589028083 | F188: 0.4652830462 | G188: 6.061234022 | H188: 0.5213096241 | I188: 4.693510459 | J188: 0.06101796404 | K188: 6.72881752 | L188: 0.3278131535 | M188: 6.32496314 | N188: 0.309360077 | O188: 7.236762039 | P188: 0.4198088911 | Q188: 5.514563391 | S188: 14.68151596 | T188: 0.120708256 | U188: 10.51573745 | V188: 0.135060392 | W188: 13.02698233 | X188: 0.1182594769 | Y188: 9.003306752 | Z188: 0.1144324613 | AA188: 110.2760085 | AB188: 0.1488368645 | AC188: 19.29441535 | AD188: 0.1293063567 | AE188: 23.39268243 | AF188: 0.1630198694 | AG188: 13.13588994 | AH188: 0.1449718674
B189: 0.4357658823 | C189: 6.405577249 | D189: 0.5333567659 | E189: 5.627795359 | F189: 0.4561107357 | G189: 6.092402775 | H189: 0.5323000749 | I189: 4.731312006 | J189: 0.06310613826 | K189: 6.764160655 | L189: 0.3292167187 | M189: 6.355481065 | N189: 0.332521076 | O189: 7.269951158 | P189: 0.4123935228 | Q189: 5.551225921 | S189: 14.69958413 | T189: 0.1211086303 | U189: 10.5516527 | V189: 0.1359972138 | W189: 13.3572887 | X189: 0.118867604 | Y189: 8.888430096 | Z189: 0.1153541007 | AA189: 107.1870478 | AB189: 0.1496186306 | AC189: 19.30485514 | AD189: 0.1299302595 | AE189: 21.86312893 | AF189: 0.1637675084 | AG189: 13.46099203 | AH189: 0.1459356854
B190: 0.4374372462 | C190: 6.458504579 | D190: 0.536198169 | E190: 5.665537235 | F190: 0.4595257839 | G190: 6.126186593 | H190: 0.5360932648 | I190: 4.768805385 | J190: 0.05746199439 | K190: 6.817316879 | L190: 0.338445579 | M190: 6.421016743 | N190: 0.3270817796 | O190: 7.309426494 | P190: 0.4180320228 | Q190: 5.588551932 | S190: 14.76441395 | T190: 0.122109314 | U190: 10.56612567 | V190: 0.1369092566 | W190: 13.33154049 | X190: 0.119526753 | Y190: 8.895477146 | Z190: 0.1162682266 | AA190: 118.6404501 | AB190: 0.1507944101 | AC190: 18.97208042 | AD190: 0.1312700585 | AE190: 22.34739735 | AF190: 0.1646567548 | AG190: 13.36871729 | AH190: 0.1469169455
B191: 0.4654894272 | C191: 6.480083309 | D191: 0.5482643346 | E191: 5.702783674 | F191: 0.4315118492 | G191: 6.199627526 | H191: 0.5373891691 | I191: 4.804804714 | J191: 0.04227598819 | K191: 6.618094257 | L191: 0.3343004485 | M191: 6.449182907 | N191: 0.3149677068 | O191: 7.344875943 | P191: 0.4151942084 | Q191: 5.625442597 | S191: 13.92101072 | T191: 0.1225172976 | U191: 10.40152225 | V191: 0.137809327 | W191: 14.3672243 | X191: 0.1209596438 | Y191: 8.94101517 | Z191: 0.1171459261 | AA191: 156.5449926 | AB191: 0.1463877413 | AC191: 19.29157719 | AD191: 0.1318458823 | AE191: 23.31945715 | AF191: 0.1654553114 | AG191: 13.54894284 | AH191: 0.147886761
B192: 0.4513540864 | C192: 6.495948112 | D192: 0.5554833512 | E192: 5.741847293 | F192: 0.4478687048 | G192: 6.233714079 | H192: 0.5382347604 | I192: 4.845202438 | J192: -0.007499790906 | K192: 6.319453253 | L192: 0.3372249504 | M192: 6.471309372 | N192: 0.3197406232 | O192: 7.381751263 | P192: 0.4169087153 | Q192: 5.664427515 | S192: 14.39213316 | T192: 0.1228172494 | U192: 10.33666856 | V192: 0.13875331 | W192: 13.91861948 | X192: 0.1216246995 | Y192: 9.002024387 | Z192: 0.1181308629 | AA192: -842.6172586 | AB192: 0.1397820055 | AC192: 19.18988902 | AD192: 0.1322982316 | AE192: 23.08668566 | AF192: 0.1662859882 | AG192: 13.58673327 | AH192: 0.148911632
B193: 0.4446353515 | C193: 6.49652223 | D193: 0.5459304154 | E193: 5.783087154 | F193: 0.4445133607 | G193: 6.270911618 | H193: 0.546228836 | I193: 4.882743762 | J193: -0.01068358775 | K193: 6.386919212 | L193: 0.3280210743 | M193: 6.189603754 | N193: 0.3127077222 | O193: 7.417818744 | P193: 0.4198263751 | Q193: 5.702016933 | S193: 14.61089904 | T193: 0.1228281041 | U193: 10.59308474 | V193: 0.1397498825 | W193: 14.10736363 | X193: 0.1223504529 | Y193: 8.939007683 | Z193: 0.1190461577 | AA193: -597.8253149 | AB193: 0.1412743066 | AC193: 18.86953077 | AD193: 0.1265390949 | AE193: 23.7212522 | AF193: 0.167098467 | AG193: 13.58184543 | AH193: 0.1498998169
B194: 0.460178107 | C194: 6.466665758 | D194: 0.5536080897 | E194: 5.818564748 | F194: 0.4518410563 | G194: 6.310053965 | H194: 0.5607215067 | I194: 4.921058248 | J194: 0.004384928616 | K194: 6.495974267 | L194: 0.3080609689 | M194: 5.833796816 | N194: 0.318753322 | O194: 7.490038193 | P194: 0.4194246688 | Q194: 5.737805684 | S194: 14.05252805 | T194: 0.1222636153 | U194: 10.51025962 | V194: 0.1406072083 | W194: 13.96520718 | X194: 0.1231141511 | Y194: 8.776296592 | Z194: 0.1199803031 | AA194: 1481.432159 | AB194: 0.1436865302 | AC194: 18.93715012 | AD194: 0.1192650448 | AE194: 23.49791414 | AF194: 0.1687253279 | AG194: 13.68018171 | AH194: 0.1508406642
B195: 0.4596255223 | C195: 6.452008343 | D195: 0.5563734969 | E195: 5.855168441 | F195: 0.4686395327 | G195: 6.38367218 | H195: 0.5384810269 | I195: 4.960845125 | J195: 0.003244657807 | K195: 6.527458806 | L195: 0.31217436 | M195: 5.912298431 | N195: 0.3208758682 | O195: 7.52230663 | P195: 0.4263654268 | Q195: 5.775254141 | S195: 14.0375328 | T195: 0.1219864913 | U195: 10.52380905 | V195: 0.1414917465 | W195: 13.62171079 | X195: 0.1245505008 | Y195: 9.212664657 | Z195: 0.1209503468 | AA195: 2011.75569 | AB195: 0.1443829468 | AC195: 18.93909042 | AD195: 0.120869917 | AE195: 23.44304254 | AF195: 0.1694522271 | AG195: 13.5453153 | AH195: 0.1518251433
B196: 0.4644081493 | C196: 6.446880133 | D196: 0.5587721864 | E196: 5.895105549 | F196: 0.4768619935 | G196: 6.416524823 | H196: 0.5535204212 | I196: 4.999862592 | J196: 0.001175950456 | K196: 6.548738277 | L196: 0.313300242 | M196: 5.978766364 | N196: 0.3020316611 | O196: 7.556666421 | P196: 0.4259887338 | Q196: 5.814114902 | S196: =C196/B196 -> 13.88192723 | T196: =C196/MAX($C$4:$C$682) -> 0.1218895335 | U196: 10.55010556 | V196: 0.1424568377 | W196: 13.45572705 | X196: 0.1251914819 | Y196: 9.032842152 | Z196: 0.1219016315 | AA196: 5568.889611 | AB196: 0.1448536342 | AC196: 19.08318463 | AD196: 0.122228775 | AE196: 25.01945125 | AF196: 0.1702262374 | AG196: 13.648518 | AH196: 0.1528467504
B197: 0.4643274347 | C197: 6.454296698 | D197: 0.5599320432 | E197: 5.933207063 | F197: 0.4885658125 | G197: 6.451463629 | H197: 0.5610957245 | I197: 5.034685279 | J197: -0.002663816752 | K197: 6.569463798 | L197: 0.3098550439 | M197: 6.036221334 | N197: 0.3381800403 | O197: 7.593464198 | P197: 0.4289409394 | Q197: 5.850123029 | S197: 13.90031305 | T197: 0.1220297566 | U197: =E197/D197 -> 10.59629849 | V197: =E197/MAX($E$4:$E$682) -> 0.1433775712 | W197: 13.20490191 | X197: 0.1258731657 | Y197: 8.972952492 | Z197: 0.1227506433 | AA197: -2466.18458 | AB197: 0.1453120686 | AC197: 19.48079095 | AD197: 0.1234033736 | AE197: 22.45391003 | AF197: 0.1710551674 | AG197: 13.63852804 | AH197: 0.1537933649
B198: 0.4735845824 | C198: 6.495271348 | D198: 0.5605985721 | E198: 5.967606893 | F198: 0.4962869982 | G198: 6.487679929 | H198: 0.5666723847 | I198: 5.070855587 | J198: 0.0002856899422 | K198: 6.616267199 | L198: 0.3274652114 | M198: 6.141259546 | N198: 0.3361862898 | O198: 7.631397348 | P198: 0.4322652643 | Q198: 5.885776478 | S198: 13.71512416 | T198: 0.122804454 | U198: 10.6450626 | V198: 0.1442088525 | W198: =G198/F198 -> 13.07243581 | X198: =G198/MAX($G$4:$G$682) -> 0.1265797744 | Y198: =I198/H198 -> 8.948478387 | Z198: =I198/MAX($I$4:$I$682) -> 0.1236325115 | AA198: =K198/J198 -> 23158.90839 | AB198: =K198/MAX($K$4:$K$682) -> 0.146347328 | AC198: =M198/L198 -> 18.75392968 | AD198: =M198/MAX($M$4:$M$682) -> 0.125550755 | AE198: =O198/N198 -> 22.69990651 | AF198: =O198/MAX($O$4:$O$682) -> 0.1719096735 | AG198: =Q198/P198 -> 13.61612177 | AH198: =Q198/MAX($Q$4:$Q$682) -> 0.1547306552
B199: 0.4779347281 | C199: 6.522139505 | D199: 0.5670867364 | E199: 6.004323369 | F199: 0.5158690115 | G199: 6.557757204 | H199: 0.5695808927 | I199: 5.107275433 | J199: -0.001632195781 | K199: 6.64310929 | L199: 0.3182750692 | M199: 6.186047178 | N199: 0.3429824611 | O199: 7.665479951 | P199: 0.4333984976 | Q199: 5.921690737 | S199: 13.64650678 | T199: 0.1233124435 | U199: 10.58801588 | V199: 0.1450961162 | W199: 12.71205879 | X199: 0.1279470375 | Y199: 8.966725356 | Z199: 0.1245204636 | AA199: -4070.044395 | AB199: 0.1469410568 | AC199: 19.43616631 | AD199: 0.1264663849 | AE199: 22.34948087 | AF199: 0.1726774397 | AG199: 13.66338547 | AH199: 0.155674802
B200: 0.4842748741 | C200: 6.551395183 | D200: 0.5681364238 | E200: 6.04416956 | F200: 0.526915739 | G200: 6.587947075 | H200: 0.5698227386 | I200: 5.148188119 | J200: -0.01151963215 | K200: 6.670354569 | L200: 0.3257519255 | M200: 6.222173684 | N200: 0.3264939785 | O200: 7.703125496 | P200: 0.441082331 | Q200: 5.959070509 | S200: 13.52825747 | T200: 0.1238655732 | U200: 10.63858839 | V200: 0.1460590103 | W200: 12.5028474 | X200: 0.1285360658 | Y200: 9.034718643 | Z200: 0.1255179556 | AA200: -579.0423239 | AB200: 0.1475437038 | AC200: 19.1009575 | AD200: 0.1272049484 | AE200: 23.5934688 | AF200: 0.173525467 | AG200: 13.51010931 | AH200: 0.1566574755
... 482 more rows

Sheet Tabelle3
A1: Bruchwerte | B1: SLA_1_1 | C1: SLA_1_2 | D1: SLA_1_3 | E1: SLA_1_4 | F1: SLA_1_5 | G1: SLA_1_6 | H1: SLA_1_7 | I1: SLA_1_8
A2: 1 | B2: 19.43105697 | C2: 17.86342459 | D2: 70.29164388 | E2: 28.12874816 | F2: 15.76543845 | G2: 14.60045165 | H2: 109.716196 | I2: 29.97982276
A3: 2 | B3: 14.10177561 | C3: 22.18797812 | D3: 18.21635592 | E3: 12.98313805 | F3: 21.94531844 | G3: 19.61947005 | H3: 50.10016184 | I3: 18.96543128
A4: 3 | B4: 12.07576983 | C4: 14.35413579 | D4: 10.66660365 | E4: 9.900699321 | F4: 15.72598695 | G4: 18.2589815 | H4: 44.38743241 | I4: 17.63659682
A5: 4 | B5: 12.70359402 | C5: 11.7599487 | D5: 12.03291107 | E5: 9.326126353 | F5: 13.73300606 | G5: 18.15949131 | H5: 32.65651489 | I5: 14.706656
A6: 5 | B6: 14.98825096 | C6: 10.69816209 | D6: 10.56111989 | E6: 9.835699495 | F6: 14.45927534 | G6: 17.79598649 | H6: 28.19500412 | I6: 13.53740246
A7: 6 | B7: 14.75110274 | C7: 11.25632059 | D7: 12.40800094 | E7: 9.375710824 | F7: 16.57515176 | G7: 17.8761268 | H7: 27.06049434 | I7: 14.41187716
A8: 7 | B8: 13.4926948 | C8: 11.48546105 | D8: 11.54111061 | E8: 9.157148361 | F8: 19.0583789 | G8: 17.44301515 | H8: 25.78975169 | I8: 13.97821262
A9: 8 | B9: 13.58137074 | C9: 10.98096203 | D9: 12.10183111 | E9: 9.0373875 | F9: 26.48474854 | G9: 18.50647542 | H9: 23.01154117 | I9: 13.90626076
A10: 9 | B10: 13.97085291 | C10: 11.01418249 | D10: 13.11146318 | E10: 8.950055038 | F10: 30.83254916 | G10: 18.11123256 | H10: 24.83826865 | I10: 13.7676849
A11: 10 | B11: 13.91214825 | C11: 10.75433067 | D11: 11.78985185 | E11: 8.970497884 | F11: 29.10274447 | G11: 18.94507158 | H11: 23.22054319 | I11: 13.7183517
A12: 11 | B12: 13.67634979 | C12: 10.40689252 | D12: 12.90618868 | E12: 8.857750591 | F12: 33.38425743 | G12: 18.54977229 | H12: 23.53999163 | I12: 13.68587029
A13: 12 | B13: 13.69028505 | C13: 10.20856988 | D13: 12.38947028 | E13: 8.898724775 | F13: 42.48240786 | G13: 18.95387415 | H13: 23.19007041 | I13: 13.50637502
A14: 13 | B14: 14.07212048 | C14: 10.18148132 | D14: 12.62151071 | E14: 9.028321402 | F14: 55.67265725 | G14: 19.00453596 | H14: 23.15922944 | I14: 13.65304186
A15: 14 | B15: 13.73466191 | C15: 10.41571915 | D15: 12.80362847 | E15: 9.122054588 | F15: 74.01538251 | G15: 19.04033251 | H15: 22.2131085 | I15: 13.35013661
A16: 15 | B16: 13.82689688 | C16: 10.60994363 | D16: 14.57479358 | E16: 9.19815134 | F16: 92.59638133 | G16: 19.02123596 | H16: 22.55442073 | I16: 13.30809448
A17: 16 | B17: 13.77194098 | C17: 10.78731985 | D17: 17.28710153 | E17: 8.834125589 | F17: 736.1124762 | G17: 19.20250084 | H17: 22.61019337 | I17: 13.60708612
A18: 17 | B18: 13.66482812 | C18: 10.87436164 | D18: 15.84436696 | E18: 8.414224435 | F18: 439.3210948 | G18: 19.21723265 | H18: 23.0783174 | I18: 13.72351571
A19: 18 | B19: 13.67157353 | C19: 10.74401018 | D19: 15.59598232 | E19: 8.361225065 | F19: 170.7650796 | G19: 19.35271628 | H19: 23.3347803 | I19: 13.51921648
A20: 19 | B20: 13.8704966 | C20: 10.66778896 | D20: 15.28145385 | E20: 8.273204743 | F20: 325.4526711 | G20: 18.9520092 | H20: 23.04718669 | I20: 13.41641902
A21: 20 | B21: 14.14086398 | C21: 10.60694343 | D21: 16.08500744 | E21: 8.281715196 | F21: 147.7668751 | G21: 19.12737598 | H21: 23.46995978 | I21: 13.53761008
A22: 21 | B22: 14.19188396 | C22: 10.66529209 | D22: 15.86669957 | E22: 8.397688652 | F22: 92.76834345 | G22: 19.27211991 | H22: 23.67017537 | I22: 13.4680965
A23: 22 | B23: 13.99710992 | C23: 10.62968142 | D23: 17.06078559 | E23: 8.418603875 | F23: 73.19018463 | G23: 19.12962276 | H23: 23.4180227 | I23: 13.67718911
A24: 23 | B24: 13.85499961 | C24: 10.53886398 | D24: 16.2323124 | E24: 8.417443428 | F24: 63.03413837 | G24: 19.26888682 | H24: 23.280501 | I24: 13.90601297
A25: 24 | B25: 13.77068933 | C25: 10.53205697 | D25: 15.71798102 | E25: 8.409001777 | F25: 59.06822104 | G25: 19.61482738 | H25: 23.3657377 | I25: 13.92930946
A26: 25 | B26: 13.72066822 | C26: 10.54574288 | D26: 16.1840759 | E26: 8.411095433 | F26: 52.41763287 | G26: 19.35499221 | H26: 23.56550795 | I26: 13.7415684
A27: 26 | B27: 13.56325631 | C27: 10.62048217 | D27: 15.46986053 | E27: 8.507684701 | F27: 50.70160379 | G27: 19.34921564 | H27: 23.6572784 | I27: 13.84428579
A28: 27 | B28: 13.43680492 | C28: 10.68761785 | D28: 16.17375643 | E28: 8.573925657 | F28: 49.50796977 | G28: 19.30487176 | H28: 23.2745719 | I28: 13.86020003
A29: 28 | B29: 13.21662617 | C29: 10.7810162 | D29: 17.23180734 | E29: 8.679065274 | F29: 47.49375463 | G29: 19.61917198 | H29: 23.53130873 | I29: 13.81932911
A30: 29 | B30: 13.11113313 | C30: 10.86620435 | D30: 16.65979645 | E30: 8.730341668 | F30: 46.19784683 | G30: 19.65942406 | H30: 23.47285458 | I30: 13.94281737
A31: 30 | B31: 13.09713128 | C31: 10.91294925 | D31: 15.76834146 | E31: 8.834573767 | F31: 44.67293414 | G31: 19.62220358 | H31: 23.28260777 | I31: 13.84181763
A32: 31 | B32: 13.20912676 | C32: 10.9334381 | D32: 16.01111993 | E32: 8.887911869 | F32: 42.20600913 | G32: 19.63839754 | H32: 23.49763628 | I32: 13.97653686
A33: 32 | B33: 13.30061484 | C33: 10.94376571 | D33: 15.71245494 | E33: 8.899494568 | F33: 41.76352615 | G33: 19.51863348 | H33: 23.23051777 | I33: 14.06206212
A34: 33 | B34: 13.29392723 | C34: 11.00143909 | D34: 15.90394657 | E34: 8.894937049 | F34: 41.79322431 | G34: 19.75161206 | H34: 23.26787242 | I34: 13.98129462
A35: 34 | B35: 13.17765377 | C35: 11.0118068 | D35: 16.55753777 | E35: 8.961523722 | F35: 40.0510908 | G35: 19.838599 | H35: 23.10689205 | I35: 13.90849471
A36: 35 | B36: 13.16647428 | C36: 11.03287577 | D36: 16.20039646 | E36: 9.05928667 | F36: 39.30556419 | G36: 19.8155213 | H36: 22.95336533 | I36: 13.94117502
A37: 36 | B37: 13.13980624 | C37: 11.06454384 | D37: 15.69685804 | E37: 9.105777379 | F37: 38.68635792 | G37: 19.76249343 | H37: 22.98072086 | I37: 13.94554977
A38: 37 | B38: 13.1488242 | C38: 11.08398568 | D38: 16.15191169 | E38: 9.118814511 | F38: 36.77363269 | G38: 19.74393418 | H38: 23.05260502 | I38: 13.88894685
A39: 38 | B39: 13.23763304 | C39: 11.12319363 | D39: 16.08398928 | E39: 9.143046242 | F39: 35.07622865 | G39: 19.73255289 | H39: 23.34150366 | I39: 13.89438102
A40: 39 | B40: 13.20618308 | C40: 11.16161156 | D40: 16.08720338 | E40: 9.188931558 | F40: 34.30197565 | G40: 19.6500664 | H40: 23.29754287 | I40: 14.00979452
A41: 40 | B41: 13.06758492 | C41: 11.17608091 | D41: 16.75823294 | E41: 9.236253589 | F41: 33.04348275 | G41: 19.66303563 | H41: 23.2629207 | I41: 14.11317943
A42: 41 | B42: 12.93183758 | C42: 11.25493928 | D42: 16.73769337 | E42: 9.214057616 | F42: 31.562737 | G42: 19.64316732 | H42: 23.038324 | I42: 14.11420655
A43: 42 | B43: 12.87548451 | C43: 11.28358888 | D43: 15.92873709 | E43: 9.27165708 | F43: 30.44259659 | G43: 19.6389295 | H43: 23.2712067 | I43: 14.04748493
A44: 43 | B44: 12.87596041 | C44: 11.32139151 | D44: 15.58023333 | E44: 9.284094041 | F44: 29.78923818 | G44: 19.64079229 | H44: 23.02387977 | I44: 14.00751843
A45: 44 | B45: 12.93764551 | C45: 11.29413368 | D45: 15.79599658 | E45: 9.379460222 | F45: 29.23534937 | G45: 19.57446114 | H45: 22.87010011 | I45: 14.0737359
A46: 45 | B46: 12.90077394 | C46: 11.30284771 | D46: 15.56901442 | E46: 9.398707856 | F46: 28.48151366 | G46: 19.65971314 | H46: 22.83179739 | I46: 14.06610916
A47: 46 | B47: 12.79125805 | C47: 11.2412892 | D47: 15.65180448 | E47: 9.444233609 | F47: 27.96019973 | G47: 19.62701328 | H47: 22.82418643 | I47: 14.01379302
A48: 47 | B48: 12.71686623 | C48: 11.23283923 | D48: 15.90688773 | E48: 9.421076486 | F48: 27.53665034 | G48: 19.6072629 | H48: 22.74746955 | I48: 13.97888643
A49: 48 | B49: 12.62106108 | C49: 11.17431252 | D49: 15.60480628 | E49: 9.423883577 | F49: 27.4278053 | G49: 19.52626142 | H49: 22.77360311 | I49: 14.05599704
A50: 49 | B50: 12.59175118 | C50: 11.1469545 | D50: 15.25586682 | E50: 9.406558028 | F50: 27.18344098 | G50: 19.56413572 | H50: 22.61900061 | I50: 14.07417901
A51: 50 | B51: 12.5429257 | C51: 11.10473797 | D51: 15.45734451 | E51: 9.388379624 | F51: 27.25268424 | G51: 19.6487671 | H51: 22.6766128 | I51: 14.01680467
A52: 51 | B52: 12.51295103 | C52: 11.06261192 | D52: 15.486715 | E52: 9.408752656 | F52: 26.96138341 | G52: 19.52071989 | H52: 22.5470978 | I52: 13.9841717
A53: 52 | B53: 12.47293648 | C53: 11.03039168 | D53: 15.12093365 | E53: 9.438011951 | F53: 26.68860718 | G53: 19.55333977 | H53: 22.46563636 | I53: 13.95377911
A54: 53 | B54: 12.36854192 | C54: 10.995288 | D54: 15.15369611 | E54: 9.481745945 | F54: 26.70148427 | G54: 19.48843653 | H54: 22.60945426 | I54: 13.98619448
A55: 54 | B55: 12.26199568 | C55: 11.0061584 | D55: 15.02308017 | E55: 9.49156263 | F55: 26.66520625 | G55: 19.38330865 | H55: 22.54800015 | I55: 13.92947481
A56: 55 | B56: 12.2541367 | C56: 11.00836716 | D56: 14.64351062 | E56: 9.53979477 | F56: 26.46220576 | G56: 19.3671682 | H56: 22.31776972 | I56: 13.87245866
A57: 56 | B57: 12.24282198 | C57: 11.03522169 | D57: 14.50696294 | E57: 9.543458872 | F57: 26.13044067 | G57: 19.38235983 | H57: 22.28807654 | I57: 13.8499629
A58: 57 | B58: 12.28732776 | C58: 11.02470728 | D58: 14.72223167 | E58: 9.565644048 | F58: 26.02418525 | G58: 19.31482184 | H58: 22.11427479 | I58: 13.92860332
A59: 58 | B59: 12.29538898 | C59: 11.11881204 | D59: 14.62801785 | E59: 9.579405865 | F59: 26.04441633 | G59: 19.2452315 | H59: 22.24107408 | I59: 13.96439865
A60: 59 | B60: 12.2902277 | C60: 11.13998466 | D60: 14.44241318 | E60: 9.578817661 | F60: 26.2884683 | G60: 19.182388 | H60: 22.29977923 | I60: 13.95238336
A61: 60 | B61: 12.21235266 | C61: 11.16164869 | D61: 14.4991555 | E61: 9.58220488 | F61: 25.93547283 | G61: 19.05428758 | H61: 22.11084958 | I61: 13.88987586
A62: 61 | B62: 12.15579212 | C62: 11.18088679 | D62: 14.44170276 | E62: 9.576042252 | F62: 25.87015829 | G62: 19.02334168 | H62: 22.15826284 | I62: 13.8140313
A63: 62 | B63: 12.10809504 | C63: 11.18220971 | D63: 14.12227883 | E63: 9.551605907 | F63: 25.86693919 | G63: 18.95569776 | H63: 22.10109338 | I63: 13.83601044
A64: 63 | B64: 12.10792774 | C64: 11.16344667 | D64: 13.96117793 | E64: 9.597059974 | F64: 25.85028935 | G64: 18.80819737 | H64: 22.12187498 | I64: 13.82102793
A65: 64 | B65: 12.06570784 | C65: 11.15924329 | D65: 14.08191185 | E65: 9.619601775 | F65: 25.72619921 | G65: 18.82463225 | H65: 21.92421499 | I65: 13.76408415
A66: 65 | B66: 12.01554136 | C66: 11.16202556 | D66: 14.03373243 | E66: 9.641549905 | F66: 25.56938027 | G66: 18.76333949 | H66: 21.96188265 | I66: 13.74928552
A67: 66 | B67: 11.91821742 | C67: 11.16477335 | D67: 13.79122408 | E67: 9.66750624 | F67: 25.33240645 | G67: 18.69162632 | H67: 22.02330823 | I67: 13.75866312
A68: 67 | B68: 11.83877555 | C68: 11.16938116 | D68: 13.86925687 | E68: 9.621546498 | F68: 25.03275912 | G68: 18.61329717 | H68: 22.01972618 | I68: 13.7638714
A69: 68 | B69: 11.78107116 | C69: 11.1517464 | D69: 13.89452624 | E69: 9.588034852 | F69: 24.97282986 | G69: 18.45603294 | H69: 21.9174412 | I69: 13.72107085
A70: 69 | B70: 11.75009865 | C70: 11.16899288 | D70: 13.67344219 | E70: 9.571431342 | F70: 24.6755118 | G70: 18.42002352 | H70: 21.85214163 | I70: 13.6863612
A71: 70 | B71: 11.72642779 | C71: 11.1434443 | D71: 13.46989161 | E71: 9.555310597 | F71: 24.48490641 | G71: 18.26369296 | H71: 21.62555428 | I71: 13.66331529
A72: 71 | B72: 11.68894177 | C72: 11.14759433 | D72: 13.42556095 | E72: 9.54743339 | F72: 24.1782126 | G72: 18.29630207 | H72: 21.74983831 | I72: 13.66226423
A73: 72 | B73: 11.63012456 | C73: 11.12798081 | D73: 13.35101309 | E73: 9.595114028 | F73: 23.87062453 | G73: 18.24677413 | H73: 21.74892312 | I73: 13.64281627
A74: 73 | B74: 11.52976296 | C74: 11.12170363 | D74: 13.23092805 | E74: 9.613782456 | F74: 23.6974619 | G74: 18.17388893 | H74: 21.66287291 | I74: 13.57175404
A75: 74 | B75: 11.45059901 | C75: 11.13054476 | D75: 13.26123635 | E75: 9.606504106 | F75: 23.60063696 | G75: 18.19069102 | H75: 21.58074311 | I75: 13.53462226
A76: 75 | B76: 11.40757657 | C76: 11.13180243 | D76: 13.31208884 | E76: 9.550290962 | F76: 23.36669417 | G76: 18.1026555 | H76: 21.54240579 | I76: 13.53662452
A77: 76 | B77: 11.3530404 | C77: 11.1226928 | D77: 13.12217462 | E77: 9.513875927 | F77: 23.27844733 | G77: 18.10482599 | H77: 21.38792247 | I77: 13.53312832
A78: 77 | B78: 11.2774259 | C78: 11.11439105 | D78: 12.91787369 | E78: 9.485399272 | F78: 23.08341828 | G78: 18.10286487 | H78: 21.40122729 | I78: 13.51481046
A79: 78 | B79: 11.18689879 | C79: 11.09309244 | D79: 12.90772184 | E79: 9.478593947 | F79: 23.08767184 | G79: 17.97331139 | H79: 21.3620097 | I79: 13.47373531
A80: 79 | B80: 11.11949119 | C80: 11.06010984 | D80: 12.94437802 | E80: 9.488048038 | F80: 22.98707642 | G80: 17.91297431 | H80: 21.26961661 | I80: 13.40693516
A81: 80 | B81: 11.05837615 | C81: 11.04082448 | D81: 12.861428 | E81: 9.490102417 | F81: 22.67219086 | G81: 17.75981671 | H81: 21.23513414 | I81: 13.3906426
A82: 81 | B82: 11.0307285 | C82: 11.00648895 | D82: 12.80305809 | E82: 9.501843329 | F82: 22.57429104 | G82: 17.69328713 | H82: 21.20298652 | I82: 13.36246735
A83: 82 | B83: 11.01390225 | C83: 10.9671672 | D83: 12.76772971 | E83: 9.518641338 | F83: 22.54557673 | G83: 17.58655581 | H83: 21.15521925 | I83: 13.31625985
A84: 83 | B84: 10.94366191 | C84: 10.9123427 | D84: 12.5681011 | E84: 9.478295873 | F84: 22.68016511 | G84: 17.49562275 | H84: 21.05055356 | I84: 13.28185808
A85: 84 | B85: 10.84317297 | C85: 10.87996162 | D85: 12.33559519 | E85: 9.449078712 | F85: 22.51511243 | G85: 17.45954699 | H85: 21.01373961 | I85: 13.26104969
A86: 85 | B86: 10.78142544 | C86: 10.82333919 | D86: 12.32666455 | E86: 9.424196823 | F86: 22.40931525 | G86: 17.36475831 | H86: 21.12241335 | I86: 13.25242898
A87: 86 | B87: 10.72258603 | C87: 10.79779826 | D87: 12.34495123 | E87: 9.384877723 | F87: 22.36596042 | G87: 17.29499767 | H87: 21.0318201 | I87: 13.21621321
A88: 87 | B88: 10.65096776 | C88: 10.76418063 | D88: 12.2090713 | E88: 9.379502897 | F88: 22.31554126 | G88: 17.20382452 | H88: 20.93994285 | I88: 13.14321816
A89: 88 | B89: 10.55037521 | C89: 10.74261205 | D89: 11.97331172 | E89: 9.357289774 | F89: 22.22122543 | G89: 17.13117488 | H89: 20.75726851 | I89: 13.08846608
A90: 89 | B90: 10.42894785 | C90: 10.72056769 | D90: 11.90297405 | E90: 9.377614412 | F90: 22.10309898 | G90: 17.03355186 | H90: 20.7079808 | I90: 13.03111144
A91: 90 | B91: 10.3358738 | C91: 10.71070329 | D91: 11.88661512 | E91: 9.361715969 | F91: 21.96081219 | G91: 17.02674261 | H91: 20.70506997 | I91: 13.01617381
A92: 91 | B92: 10.25889584 | C92: 10.69556332 | D92: 11.81228243 | E92: 9.312262141 | F92: 21.94018489 | G92: 16.95980636 | H92: 20.6591943 | I92: 13.00336111
A93: 92 | B93: 10.18166875 | C93: 10.69409166 | D93: 11.69205935 | E93: 9.288688813 | F93: 21.87351999 | G93: 16.83709866 | H93: 20.54653651 | I93: 12.96587716
A94: 93 | B94: 10.06795102 | C94: 10.70130493 | D94: 11.52432135 | E94: 9.256396637 | F94: 21.69321541 | G94: 16.74621682 | H94: 20.43265522 | I94: 12.93793022
A95: 94 | B95: 9.924125959 | C95: 10.68346286 | D95: 11.42775182 | E95: 9.226287006 | F95: 21.26794165 | G95: 16.6833224 | H95: 20.45433758 | I95: 12.91517395
A96: 95 | B96: 9.816997818 | C96: 10.67520182 | D96: 11.40080937 | E96: 9.19025963 | F96: 21.06101272 | G96: 16.6121092 | H96: 20.30276242 | I96: 12.90322493
A97: 96 | B97: 9.689346307 | C97: 10.65518814 | D97: 11.36202121 | E97: 9.179635955 | F97: 20.80944318 | G97: 16.50222752 | H97: 20.27703543 | I97: 12.85584427
A98: 97 | B98: 9.559702611 | C98: 10.6437455 | D98: 11.14118517 | E98: 9.175292858 | F98: 20.51353634 | G98: 16.38780583 | H98: 20.17183094 | I98: 12.80046753
A99: 98 | B99: 9.421533724 | C99: 10.61186866 | D99: 10.93221687 | E99: 9.162460245 | F99: 20.33319358 | G99: 16.29927276 | H99: 20.1508727 | I99: 12.7374778
A100: 99 | B100: 9.303799668 | C100: 10.57152156 | D100: 10.89849856 | E100: 9.168717686 | F100: 20.25867018 | G100: 16.22243854 | H100: 20.02365627 | I100: 12.67577216
A101: 100 | B101: 9.169908347 | C101: 10.52674264 | D101: 10.83907755 | E101: 9.157299094 | F101: 20.07377008 | G101: 16.14859404 | H101: 19.93977475 | I101: 12.65250415
